Workbook

Sheet INI-VAL (hidden)
C1: Initial Values
C5: Malawi | E5: Source | F5: Initial Indicators (2017)
C6: Population (2012 est.) | D6: 14.8 | E6: Malawi data sheet - PRB and MoEPD | F6: Indicators | G6: Unit | H6: Value
C7: Life expectancy (2008) | D7: 41.1 | E7: 2008 Census Main Report by Malawi NSO | F7: Customer Satisfaction | G7: Scale 1-10 | H7: 7.5
C8: Population growth rate Lilonwge (2008 est.) | D8: 4.4 | E8: 2008 Census Main Report by Malawi NSO | F8: Working Ratio | G8: Ratio | H8: 1.1
C9: Population growth rate (2012 est.) | D9: 0.018 | E9: Malawi data sheet - PRB and MoEPD | F9: O&M In-efficiency Factor | G9: Ratio | H9: =1.3 -> 1.3
C10: Urban population (2012) | D10: 2.3 | E10: Malawi data sheet - PRB and MoEPD | F10: Full recovery ratio | G10: Ratio | H10: 0.73
C11: GDP per capita (PPP) (2015 est.) | D11: 1100 | E11: CIA World Factbook 2015 | F11: Cash ratio | G11: Ratio | H11: 0.2
C12: Inflation Annual Rate (2015 est.) | D12: 0.03 | E12: CIA World Factbook 2015 | F12: Commercial water losses | G12: Percentage of water produced | H12: 0.15
C13: Mortality rate of children under five | D13: 112/1000 | E13: 2010 Malawi Demographic and Health Survey | F13: Loan | G13: Number | H13: ='Yearly Decision'!E81 -> 15000000
C14: Literacy rate | D14: 64 | E14: 2008 Census Main Report by Malawi NSO | F14: Affordability of tariffs | G14: % of GDP | H14: 0.05
C15: Drought factor (year 5-7) | D15: 0.75 | F15: Awareness to pay | G15: % | H15: 0.7
F16: Collection efficiency | G16: Percentage of bills collected | H16: 0.75
C17: Staff of Macondo Utility (2008) | F17: Physical water losses | G17: Percentage of water produced | H17: 0.3
C18: Departments | D18: Number of Staff | F18: Physical water Inefficiency Factor | H18: 1.4
C19: Directors | D19: 19 | F19: Continuity | G19: Hours of service per day | H19: 17
C20: Managers | D20: 65 | F20: Water quality | G20: Percentage of samples adhering to set standards | H20: 0.7
C21: Operational Staff | F21: Coverage | G21: Percentage of the total population | H21: =(H29*H54+H49*H55)/H28 -> 0.7858410793
C22: Workers (Operations) | D22: 130 | F22: Meter Error | G22: Percentage error by meters | H22: 0.1
C23: Bill Collectors | D23: 26 | F23: Illegal Connections | G23: Percentage of illegal connections based on inhouse cxns | H23: 0.05
C24: Costumer Sevices Employees | D24: 91 | F24: Own Consumption | G24: Percentage necessary for production | H24: 0.01
C25: Total Employees | D25: =SUM(D19:D24) -> 331
F26: Initial Lilongwe Facts (2012)
C27: 60000 | F27: Item | G27: Unit | H27: Value
C28: 30000 | F28: Population | G28: Number of Inhabitants | H28: 1077116
C29: 6000 | F29: Connections In-house | G29: Number of total legal in-house connections | H29: 50639
C30: 6000 | F30: Household consumption | G30: m3 per connection/month | H30: 20.52
C31: 6000 | F31: Water Kiosk Consumption | G31: m3 per Water Kiosk/month | H31: 296.1
F32: Un-metered consumption | G32: m3 per connection/month | H32: 30.78
F33: Unitary Consumption | G33: m3 per connection/month | H33: 14.8
F34: Total Billed Consumption | G34: m3 billed by the utility/month | H34: =H31*H49+H30*H48+H32*H50 -> 1572572.16
F35: GDP | G35: US$ per capita | H35: 3004
F36: Subsidy on connections | G36: % of connection cost | H36: 0.4
F37: Inhouse Tariff | G37: US$ per m3 | H37: 0.61
F38: Waterkiosk Tariff | G38: US$ per m3 | H38: 1.04
F39: Un-metered connection Tariff | G39: US$ per connection / year | H39: 150.21
F40: Min. Tariff (2009) | G40: US$ per month | H40: 2.67
C41: Specifications on Meters | F41: Produced Volume | G41: m3/year | H41: 34936340
B42: Type | C42: Cost | D42: Error margin | F42: Resource Volume | G42: m3/year | H42: =H41 -> 34936340
B43: A | C43: 200 | D43: 0.02 | F43: Treatment Capacity | G43: m3/year | H43: =H41 -> 34936340
B44: B | C44: 150 | D44: 0.05 | F44: Total Water Demand from consumers | G44: m3/year | H44: =(H30*H48+H31*H49+H32*H50)/(H17+H12)*12 -> 41935257.6
B45: C | C45: 100 | D45: 0.08 | F45: Assets value | G45: US$ | H45: 68750000
F46: Network Size | G46: km | H46: 1051
F47: Number Of Meters Total | G47: No. | H47: =H48+H49 -> 17337
F48: Number Of Meters Inhouse | G48: No. | H48: 16711
F49: Number of Water Kiosks | G49: No. | H49: 626
F50: Number of Un-metered connections | G50: No. | H50: =H29-H48 -> 33928
F51: % to In-house connections | G51: % of water consumed | H51: =(H30*H48+H32*H50)/H34 -> 0.8821303055
F52: % to Waterkiosk | G52: % of water consumed | H52: =(H31*H49)/H34 -> 0.1178696945
F53: Consumer Awareness | G53: Unit (1-10) | H53: 7
F54: People served In-house | G54: No of people served | H54: 8
F55: People served Waterkiosk | G55: No of people served | H55: 705
F56: Consumption pp for metered | G56: l/c/d | H56: =H30*1000/(30*H54) -> 85.5
F57: Consumption pp for Waterkiosk | G57: l/c/d | H57: =H31*1000/(30*H55) -> 14
F58: Consumption pp for un-metered | G58: l/c/d | H58: =H32*1000/(30*H54) -> 128.25
F59: Grant Value for Game | G59: USD | H59: 65000000
B60: B | C60: C | D60: D | E60: E
A61: 61 | B61: Staff 'Golden' Ratios
A62: 62 | B62: Ratio | C62: Optimal | D62: Initial values | E62: Minimum
A63: 63 | B63: Director to Manager | C63: =1/5 -> 0.2 | D63: =D19/D20 -> 0.2923076923 | E63: =C63/2 -> 0.1
A64: 64 | B64: Management to Workers | C64: =1/8 -> 0.125 | D64: =(D19+D20)/SUM(D22:D24) -> 0.3400809717 | E64: =C64/2 -> 0.0625
A65: 65 | B65: Workers to Network Size (km) | C65: 0.168 | D65: =D22/H46 -> 0.1236917222 | E65: 0.053
A66: 66 | B66: Workers to Treatment Capacity (m3) | C66: 5.3e-06 | D66: =D22/H43 -> 3.72105378e-06 | E66: 1.3e-06
A67: 67 | B67: Bill Collectors to # of Connections | C67: 0.000685 | D67: =D23/H29 -> 0.000513438259 | E67: 0.000171
A68: 68 | B68: Customer Service to # of Connections | C68: 0.002765 | D68: =D24/H29 -> 0.001797033907 | E68: 0.000691
A69: 69 | B69: Process 'Golden' Ratios
A70: 70 | B70: Trainees / Staff / 4 years | C70: 1 | D70: 0 | E70: 0
A71: 71 | B71: SOP's / 3 years | C71: 5 | D71: 0 | E71: 0
A72: 72 | B72: Office packages / year | C72: 2 | D72: 0 | E72: 0
A73: 73 | B73: Awareness Campaigns / year | C73: 1 | D73: 0 | E73: 0
A74: 74 | B74: Leakage Trainees / Op. Staff / 4 years | C74: 1 | D74: 0 | E74: 0
B75: Maintenance to Network | C75: 1 | D75: 0 | E75: 0.1 | F75: 5 years
B76: Maintenance to Resources | C76: 1 | D76: 0 | E76: 0.1 | F76: 5 years
B77: Maintenance to Treatment | C77: 1 | D77: 0 | E77: 0.1 | F77: 5 years
B79: Based on World Bank recs. | C79: Min Staff/1000 cxns | D79: Max staff/1000 cxns | F79: Initial | G79: In game min | H79: In game max
B80: Staff distribution | C80: =SUM(C81:C85) -> 5 | D80: =SUM(D81:D85) -> 8 | E80: =ROUND(C80*($F$89/1000),0) -> 256 | F80: =ROUND(D80*($F$89/1000),0) -> 410 | G80: =C80*$H$29/1000 -> 253.195 | H80: 405.112
B81: Director | C81: 0.1666666667 | D81: =1/6 -> 0.1666666667 | E81: =ROUND(C81*($F$89/1000),0) -> 9 | F81: =ROUND(D81*($F$89/1000),0) -> 9 | G81: 8.439833333 | H81: 8.439833333
B82: Manager | C82: 0.8333333333 | D82: =5/6 -> 0.8333333333 | E82: 43 | F82: =ROUND(D82*($F$89/1000),0) -> 43 | G82: 42.19916667 | H82: 42.19916667
B83: Worker | C83: =16/7 -> 2.285714286 | D83: 4 | E83: 117 | F83: =ROUND(D83*($F$89/1000),0) -> 205 | G83: 115.7462857 | H83: 202.556
B84: Bill Collector | C84: =8/7 -> 1.142857143 | D84: 2 | E84: 59 | F84: =ROUND(D84*($F$89/1000),0) -> 103 | G84: 57.87314286 | H84: 101.278
B85: Costumer Service | C85: =4/7 -> 0.5714285714 | D85: 1 | E85: 29 | F85: =ROUND(D85*($F$89/1000),0) -> 51 | G85: 28.93657143 | H85: 50.639
F89: 51265 | G89: Total CXNS initial

Sheet Yearly Costs (hidden)
F3: 2009 | G3: 2010 | H3: 2011 | I3: 2012 | J3: 2013 | K3: 2014 | L3: 2015 | M3: 2016 | N3: 2017 | O3: 2018
D4: Unitary Cost | E4: Actual Value | F4: Turn 1 | G4: Turn 2 | H4: Turn 3 | I4: Turn 4 | J4: Turn 5 | K4: Turn 6 | L4: Turn 7 | M4: Turn 8 | N4: Turn 9 | O4: Turn 10 | P4: Utilisation US$
B5: 1 | C5: Financial
B6: 1.1 | C6: Subsidy (for connection fee) | D6: 150 | E6: =$D$6*'Yearly Decision'!E6*Calculations!D10 -> 3038340 | F6: =$D$6*(1-'Yearly Decision'!F6)*(Calculations!E10-Calculations!D10) -> 0 | G6: =$D$6*('Yearly Decision'!G6)*(Calculations!F10-Calculations!E10) -> 0 | H6: =$D$6*('Yearly Decision'!H6)*(Calculations!G10-Calculations!F10) -> 0 | I6: =$D$6*('Yearly Decision'!I6)*(Calculations!H10-Calculations!G10) -> 0 | J6: =$D$6*('Yearly Decision'!J6)*(Calculations!I10-Calculations!H10) -> 0 | K6: =$D$6*('Yearly Decision'!K6)*(Calculations!J10-Calculations!I10) -> 0 | L6: =$D$6*('Yearly Decision'!L6)*(Calculations!K10-Calculations!J10) -> 0 | M6: =$D$6*('Yearly Decision'!M6)*(Calculations!L10-Calculations!K10) -> 0 | N6: =$D$6*('Yearly Decision'!N6)*(Calculations!M10-Calculations!L10) -> 0 | O6: =$D$6*('Yearly Decision'!O6)*(Calculations!N10-Calculations!M10) -> 0 | P6: =SUM(F6:O6) -> 0
B7: 1.2 | C7: In-house Tariff | D7: ='INI-VAL'!H37 -> 0.61 | E7: ='Yearly Decision'!E7 -> 0.61 | F7: ='Yearly Decision'!F7 -> 0 | G7: ='Yearly Decision'!G7 -> 0 | H7: ='Yearly Decision'!H7 -> 0 | I7: ='Yearly Decision'!I7 -> 0 | J7: ='Yearly Decision'!J7 -> 0 | K7: ='Yearly Decision'!K7 -> 0 | L7: ='Yearly Decision'!L7 -> 0 | M7: ='Yearly Decision'!M7 -> 0 | N7: ='Yearly Decision'!N7 -> 0 | O7: ='Yearly Decision'!O7 -> 0 | P7: =SUM(F7:O7) -> 0
B8: 1.3 | C8: StandPipe Tariff | D8: ='INI-VAL'!H38 -> 1.04 | E8: ='Yearly Decision'!E8 -> 1.04 | F8: ='Yearly Decision'!F8 -> 0 | G8: ='Yearly Decision'!G8 -> 0 | H8: ='Yearly Decision'!H8 -> 0 | I8: ='Yearly Decision'!I8 -> 0 | J8: ='Yearly Decision'!J8 -> 0 | K8: ='Yearly Decision'!K8 -> 0 | L8: ='Yearly Decision'!L8 -> 0 | M8: ='Yearly Decision'!M8 -> 0 | N8: ='Yearly Decision'!N8 -> 0 | O8: ='Yearly Decision'!O8 -> 0
B9: 1.4 | C9: Un-metered Connection Tariff | D9: ='INI-VAL'!H39 -> 150.21 | E9: ='Yearly Decision'!E9 -> 150.21 | F9: ='Yearly Decision'!F9 -> 0 | G9: ='Yearly Decision'!G9 -> 0 | H9: ='Yearly Decision'!H9 -> 0 | I9: ='Yearly Decision'!I9 -> 0 | J9: ='Yearly Decision'!J9 -> 0 | K9: ='Yearly Decision'!K9 -> 0 | L9: ='Yearly Decision'!L9 -> 0 | M9: ='Yearly Decision'!M9 -> 0 | N9: ='Yearly Decision'!N9 -> 0 | O9: ='Yearly Decision'!O9 -> 0
B10: 2 | C10: Infraestructure
B11: 2.1 | C11: Additional Water Kiosk | D11: 10000 | E11: =D11*'Yearly Decision'!E11 -> 6260000 | F11: =$D$11*'Yearly Decision'!F11 -> 0 | G11: =$D$11*'Yearly Decision'!G11 -> 0 | H11: =$D$11*'Yearly Decision'!H11 -> 0 | I11: =$D$11*'Yearly Decision'!I11 -> 0 | J11: =$D$11*'Yearly Decision'!J11 -> 0 | K11: =$D$11*'Yearly Decision'!K11 -> 0 | L11: =$D$11*'Yearly Decision'!L11 -> 0 | M11: =$D$11*'Yearly Decision'!M11 -> 0 | N11: =$D$11*'Yearly Decision'!N11 -> 0 | O11: =$D$11*'Yearly Decision'!O11 -> 0 | P11: =SUM(F11:O11) -> 0
B12: 2.2 | C12: Additional Network | D12: 22700 | E12: =D12*'Yearly Decision'!E12 -> 23857700 | F12: =$D$12*'Yearly Decision'!F12 -> 0 | G12: =$D$12*'Yearly Decision'!G12 -> 0 | H12: =$D$12*'Yearly Decision'!H12 -> 0 | I12: =$D$12*'Yearly Decision'!I12 -> 0 | J12: =$D$12*'Yearly Decision'!J12 -> 0 | K12: =$D$12*'Yearly Decision'!K12 -> 0 | L12: =$D$12*'Yearly Decision'!L12 -> 0 | M12: =$D$12*'Yearly Decision'!M12 -> 0 | N12: =$D$12*'Yearly Decision'!N12 -> 0 | O12: =$D$12*'Yearly Decision'!O12 -> 0 | P12: =SUM(F12:O12) -> 0
B13: 2.3 | C13: Additional Water Treatment Capacity | D13: 0.33 | E13: =D13*'Yearly Decision'!E13 -> 11528992.2 | F13: =$D$13*'Yearly Decision'!F13 -> 0 | G13: =$D$13*'Yearly Decision'!G13 -> 0 | H13: =$D$13*'Yearly Decision'!H13 -> 0 | I13: =$D$13*'Yearly Decision'!I13 -> 0 | J13: =$D$13*'Yearly Decision'!J13 -> 0 | K13: =$D$13*'Yearly Decision'!K13 -> 0 | L13: =$D$13*'Yearly Decision'!L13 -> 0 | M13: =$D$13*'Yearly Decision'!M13 -> 0 | N13: =$D$13*'Yearly Decision'!N13 -> 0 | O13: =$D$13*'Yearly Decision'!O13 -> 0 | P13: =SUM(F13:O13) -> 0
B14: 2.4 | C14: Additional Water Resources Abstracted | D14: 0.11 | E14: =D14*'Yearly Decision'!E14 -> 3842997.4 | F14: =$D$14*'Yearly Decision'!F14 -> 0 | G14: =$D$14*'Yearly Decision'!G14 -> 0 | H14: =$D$14*'Yearly Decision'!H14 -> 0 | I14: =$D$14*'Yearly Decision'!I14 -> 0 | J14: =$D$14*'Yearly Decision'!J14 -> 0 | K14: =$D$14*'Yearly Decision'!K14 -> 0 | L14: =$D$14*'Yearly Decision'!L14 -> 0 | M14: =$D$14*'Yearly Decision'!M14 -> 0 | N14: =$D$14*'Yearly Decision'!N14 -> 0 | O14: =$D$14*'Yearly Decision'!O14 -> 0 | P14: =SUM(F14:O14) -> 0
B15: 2.5 | C15: Additional Number of Meters | D15: Varies by meter | E15: =D15*'Yearly Decision'!E17 ->  | F15: ='INI-VAL'!$C$45*'Yearly Decision'!F17+'INI-VAL'!$C$44*'Yearly Decision'!F16+'INI-VAL'!$C$43*'Yearly Decision'!F15 -> 0 | G15: ='INI-VAL'!$C$45*'Yearly Decision'!G17+'INI-VAL'!$C$44*'Yearly Decision'!G16+'INI-VAL'!$C$43*'Yearly Decision'!G15 -> 0 | H15: ='INI-VAL'!$C$45*'Yearly Decision'!H17+'INI-VAL'!$C$44*'Yearly Decision'!H16+'INI-VAL'!$C$43*'Yearly Decision'!H15 -> 0 | I15: ='INI-VAL'!$C$45*'Yearly Decision'!I17+'INI-VAL'!$C$44*'Yearly Decision'!I16+'INI-VAL'!$C$43*'Yearly Decision'!I15 -> 0 | J15: ='INI-VAL'!$C$45*'Yearly Decision'!J17+'INI-VAL'!$C$44*'Yearly Decision'!J16+'INI-VAL'!$C$43*'Yearly Decision'!J15 -> 0 | K15: ='INI-VAL'!$C$45*'Yearly Decision'!K17+'INI-VAL'!$C$44*'Yearly Decision'!K16+'INI-VAL'!$C$43*'Yearly Decision'!K15 -> 0 | L15: ='INI-VAL'!$C$45*'Yearly Decision'!L17+'INI-VAL'!$C$44*'Yearly Decision'!L16+'INI-VAL'!$C$43*'Yearly Decision'!L15 -> 0 | M15: ='INI-VAL'!$C$45*'Yearly Decision'!M17+'INI-VAL'!$C$44*'Yearly Decision'!M16+'INI-VAL'!$C$43*'Yearly Decision'!M15 -> 0 | N15: ='INI-VAL'!$C$45*'Yearly Decision'!N17+'INI-VAL'!$C$44*'Yearly Decision'!N16+'INI-VAL'!$C$43*'Yearly Decision'!N15 -> 0 | O15: ='INI-VAL'!$C$45*'Yearly Decision'!O17+'INI-VAL'!$C$44*'Yearly Decision'!O16+'INI-VAL'!$C$43*'Yearly Decision'!O15 -> 0 | P15: =SUM(F15:O15) -> 0
B16: 3 | C16: Staff
B17: 3.1 | C17: Additional Director | D17: ='INI-VAL'!C27 -> 60000 | E17: =D17*'Yearly Decision'!E19 -> 1140000 | F17: =$D$17*'Yearly Decision'!F19 -> 0 | G17: =$D$17*'Yearly Decision'!G19 -> 0 | H17: =$D$17*'Yearly Decision'!H19 -> 0 | I17: =$D$17*'Yearly Decision'!I19 -> 0 | J17: =$D$17*'Yearly Decision'!J19 -> 0 | K17: =$D$17*'Yearly Decision'!K19 -> 0 | L17: =$D$17*'Yearly Decision'!L19 -> 0 | M17: =$D$17*'Yearly Decision'!M19 -> 0 | N17: =$D$17*'Yearly Decision'!N19 -> 0 | O17: =$D$17*'Yearly Decision'!O19 -> 0 | P17: =SUM(F17:O17) -> 0
B18: 3.2 | C18: Additional Manager | D18: ='INI-VAL'!C28 -> 30000 | E18: =D18*'Yearly Decision'!E20 -> 1950000 | F18: =$D$18*'Yearly Decision'!F20 -> 0 | G18: =$D$18*'Yearly Decision'!G20 -> 0 | H18: =$D$18*'Yearly Decision'!H20 -> 0 | I18: =$D$18*'Yearly Decision'!I20 -> 0 | J18: =$D$18*'Yearly Decision'!J20 -> 0 | K18: =$D$18*'Yearly Decision'!K20 -> 0 | L18: =$D$18*'Yearly Decision'!L20 -> 0 | M18: =$D$18*'Yearly Decision'!M20 -> 0 | N18: =$D$18*'Yearly Decision'!N20 -> 0 | O18: =$D$18*'Yearly Decision'!O20 -> 0 | P18: =SUM(F18:O18) -> 0
B19: 3.3 | C19: Additional Workers | D19: ='INI-VAL'!C29 -> 6000 | E19: =D19*'Yearly Decision'!E21 -> 780000 | F19: =$D$19*'Yearly Decision'!F21 -> 0 | G19: =$D$19*'Yearly Decision'!G21 -> 0 | H19: =$D$19*'Yearly Decision'!H21 -> 0 | I19: =$D$19*'Yearly Decision'!I21 -> 0 | J19: =$D$19*'Yearly Decision'!J21 -> 0 | K19: =$D$19*'Yearly Decision'!K21 -> 0 | L19: =$D$19*'Yearly Decision'!L21 -> 0 | M19: =$D$19*'Yearly Decision'!M21 -> 0 | N19: =$D$19*'Yearly Decision'!N21 -> 0 | O19: =$D$19*'Yearly Decision'!O21 -> 0 | P19: =SUM(F19:O19) -> 0
B20: 3.4 | C20: Additional Bill Collectors | D20: ='INI-VAL'!C30 -> 6000 | E20: =D20*'Yearly Decision'!E22 -> 156000 | F20: =$D$20*'Yearly Decision'!F22 -> 0 | G20: =$D$20*'Yearly Decision'!G22 -> 0 | H20: =$D$20*'Yearly Decision'!H22 -> 0 | I20: =$D$20*'Yearly Decision'!I22 -> 0 | J20: =$D$20*'Yearly Decision'!J22 -> 0 | K20: =$D$20*'Yearly Decision'!K22 -> 0 | L20: =$D$20*'Yearly Decision'!L22 -> 0 | M20: =$D$20*'Yearly Decision'!M22 -> 0 | N20: =$D$20*'Yearly Decision'!N22 -> 0 | O20: =$D$20*'Yearly Decision'!O22 -> 0 | P20: =SUM(F20:O20) -> 0
B21: 3.5 | C21: Additional Costumer Sevices Employees | D21: ='INI-VAL'!C31 -> 6000 | E21: =D21*'Yearly Decision'!E23 -> 546000 | F21: =$D$21*'Yearly Decision'!F23 -> 0 | G21: =$D$21*'Yearly Decision'!G23 -> 0 | H21: =$D$21*'Yearly Decision'!H23 -> 0 | I21: =$D$21*'Yearly Decision'!I23 -> 0 | J21: =$D$21*'Yearly Decision'!J23 -> 0 | K21: =$D$21*'Yearly Decision'!K23 -> 0 | L21: =$D$21*'Yearly Decision'!L23 -> 0 | M21: =$D$21*'Yearly Decision'!M23 -> 0 | N21: =$D$21*'Yearly Decision'!N23 -> 0 | O21: =$D$21*'Yearly Decision'!O23 -> 0 | P21: =SUM(F21:O21) -> 0
B22: 4 | C22: Maintenance
B23: 4.1 | C23: Rehabilitated Network | D23: 20000 | E23: =D23*'Yearly Decision'!E25*'Yearly Decision'!E12 -> 0 | F23: ='Yearly Decision'!F25*'Yearly Costs'!$D$23 -> 0 | G23: ='Yearly Decision'!G25*'Yearly Costs'!$D$23 -> 0 | H23: ='Yearly Decision'!H25*'Yearly Costs'!$D$23 -> 0 | I23: ='Yearly Decision'!I25*'Yearly Costs'!$D$23 -> 0 | J23: ='Yearly Decision'!J25*'Yearly Costs'!$D$23 -> 0 | K23: ='Yearly Decision'!K25*'Yearly Costs'!$D$23 -> 0 | L23: ='Yearly Decision'!L25*'Yearly Costs'!$D$23 -> 0 | M23: ='Yearly Decision'!M25*'Yearly Costs'!$D$23 -> 0 | N23: ='Yearly Decision'!N25*'Yearly Costs'!$D$23 -> 0 | O23: ='Yearly Decision'!O25*'Yearly Costs'!$D$23 -> 0 | P23: =SUM(F23:O23) -> 0
B24: 4.2 | C24: Treatment Maintenance | D24: 0.012 | E24: =D24*'Yearly Decision'!E26*'Yearly Decision'!E13 -> 0 | F24: =$D$24*'Yearly Decision'!F26 -> 0 | G24: =$D$24*'Yearly Decision'!G26 -> 0 | H24: =$D$24*'Yearly Decision'!H26 -> 0 | I24: =$D$24*'Yearly Decision'!I26 -> 0 | J24: =$D$24*'Yearly Decision'!J26 -> 0 | K24: =$D$24*'Yearly Decision'!K26 -> 0 | L24: =$D$24*'Yearly Decision'!L26 -> 0 | M24: =$D$24*'Yearly Decision'!M26 -> 0 | N24: =$D$24*'Yearly Decision'!N26 -> 0 | O24: =$D$24*'Yearly Decision'!O26 -> 0 | P24: =SUM(F24:O24) -> 0
B25: 4.3 | C25: Resources Maintenance | D25: 0.0038 | E25: =D25*'Yearly Decision'!E27*'Yearly Decision'!E14 -> 0 | F25: =$D$25*'Yearly Decision'!F27 -> 0 | G25: =$D$25*'Yearly Decision'!G27 -> 0 | H25: =$D$25*'Yearly Decision'!H27 -> 0 | I25: =$D$25*'Yearly Decision'!I27 -> 0 | J25: =$D$25*'Yearly Decision'!J27 -> 0 | K25: =$D$25*'Yearly Decision'!K27 -> 0 | L25: =$D$25*'Yearly Decision'!L27 -> 0 | M25: =$D$25*'Yearly Decision'!M27 -> 0 | N25: =$D$25*'Yearly Decision'!N27 -> 0 | O25: =$D$25*'Yearly Decision'!O27 -> 0 | P25: =$D$25*'Yearly Decision'!P27 -> 0
B26: 4.4 | C26: Meter Calibration Program | D26: 10 | E26: =D26*'Yearly Decision'!E28 -> 0 | F26: ='Yearly Decision'!F28*'Yearly Costs'!$D26 -> 0 | G26: ='Yearly Decision'!G28*'Yearly Costs'!$D26 -> 0 | H26: ='Yearly Decision'!H28*'Yearly Costs'!$D26 -> 0 | I26: ='Yearly Decision'!I28*'Yearly Costs'!$D26 -> 0 | J26: ='Yearly Decision'!J28*'Yearly Costs'!$D26 -> 0 | K26: ='Yearly Decision'!K28*'Yearly Costs'!$D26 -> 0 | L26: ='Yearly Decision'!L28*'Yearly Costs'!$D26 -> 0 | M26: ='Yearly Decision'!M28*'Yearly Costs'!$D26 -> 0 | N26: ='Yearly Decision'!N28*'Yearly Costs'!$D26 -> 0 | O26: ='Yearly Decision'!O28*'Yearly Costs'!$D26 -> 0 | P26: =SUM(F26:O26) -> 0
B27: 5 | C27: Capacity Development
B28: 5.1 | C28: Additional Leakage Trainees | D28: 750 | E28: =$D28*'Yearly Decision'!E30 -> 0 | F28: =$D28*'Yearly Decision'!F30 -> 0 | G28: =$D28*'Yearly Decision'!G30 -> 0 | H28: =$D28*'Yearly Decision'!H30 -> 0 | I28: =$D28*'Yearly Decision'!I30 -> 0 | J28: =$D28*'Yearly Decision'!J30 -> 0 | K28: =$D28*'Yearly Decision'!K30 -> 0 | L28: =$D28*'Yearly Decision'!L30 -> 0 | M28: =$D28*'Yearly Decision'!M30 -> 0 | N28: =$D28*'Yearly Decision'!N30 -> 0 | O28: =$D28*'Yearly Decision'!O30 -> 0 | P28: =SUM(F28:O28) -> 0
B29: 5.2 | C29: Additional Staff training | D29: 1000 | E29: =$D29*'Yearly Decision'!E31 -> 0 | F29: =$D29*'Yearly Decision'!F31 -> 0 | G29: =$D29*'Yearly Decision'!G31 -> 0 | H29: =$D29*'Yearly Decision'!H31 -> 0 | I29: =$D29*'Yearly Decision'!I31 -> 0 | J29: =$D29*'Yearly Decision'!J31 -> 0 | K29: =$D29*'Yearly Decision'!K31 -> 0 | L29: =$D29*'Yearly Decision'!L31 -> 0 | M29: =$D29*'Yearly Decision'!M31 -> 0 | N29: =$D29*'Yearly Decision'!N31 -> 0 | O29: =$D29*'Yearly Decision'!O31 -> 0 | P29: 0
B30: 5.3 | C30: Additional Office technology | D30: 5000 | E30: =$D30*'Yearly Decision'!E32 -> 0 | F30: =$D30*'Yearly Decision'!F32 -> 0 | G30: =$D30*'Yearly Decision'!G32 -> 0 | H30: =$D30*'Yearly Decision'!H32 -> 0 | I30: =$D30*'Yearly Decision'!I32 -> 0 | J30: =$D30*'Yearly Decision'!J32 -> 0 | K30: =$D30*'Yearly Decision'!K32 -> 0 | L30: =$D30*'Yearly Decision'!L32 -> 0 | M30: =$D30*'Yearly Decision'!M32 -> 0 | N30: =$D30*'Yearly Decision'!N32 -> 0 | O30: =$D30*'Yearly Decision'!O32 -> 0 | P30: 0
B31: 5.4 | C31: SOPs | D31: 10000 | E31: =$D31*'Yearly Decision'!E33 -> 0 | F31: =$D31*'Yearly Decision'!F33 -> 0 | G31: =$D31*'Yearly Decision'!G33 -> 0 | H31: =$D31*'Yearly Decision'!H33 -> 0 | I31: =$D31*'Yearly Decision'!I33 -> 0 | J31: =$D31*'Yearly Decision'!J33 -> 0 | K31: =$D31*'Yearly Decision'!K33 -> 0 | L31: =$D31*'Yearly Decision'!L33 -> 0 | M31: =$D31*'Yearly Decision'!M33 -> 0 | N31: =$D31*'Yearly Decision'!N33 -> 0 | O31: =$D31*'Yearly Decision'!O33 -> 0 | P31: 0
B32: 5.5 | C32: Awareness Campaigns | D32: 5000 | E32: =$D32*'Yearly Decision'!E34 -> 0 | F32: =$D32*'Yearly Decision'!F34 -> 0 | G32: =$D32*'Yearly Decision'!G34 -> 0 | H32: =$D32*'Yearly Decision'!H34 -> 0 | I32: =$D32*'Yearly Decision'!I34 -> 0 | J32: =$D32*'Yearly Decision'!J34 -> 0 | K32: =$D32*'Yearly Decision'!K34 -> 0 | L32: =$D32*'Yearly Decision'!L34 -> 0 | M32: =$D32*'Yearly Decision'!M34 -> 0 | N32: =$D32*'Yearly Decision'!N34 -> 0 | O32: =$D32*'Yearly Decision'!O34 -> 0 | P32: 0
C36: Total | F36: =F11+F12+F13+F14+F15+F17+F18+F19+F20+F21+F23+F24+F25+F26+F28+F29+F30+F31+F32 -> 0 | G36: =G11+G12+G13+G14+G15+G17+G18+G19+G20+G21+G23+G24+G25+G26+G28+G29+G30+G31+G32 -> 0 | H36: 0 | I36: 0 | J36: 0 | K36: 0 | L36: 0 | M36: 0 | N36: 0 | O36: 0 | P36: 0

Sheet Financial State (hidden)
E3: =YEAR(TODAY()) -> 2018 | F3: =E3+1 -> 2019 | G3: =F3+1 -> 2020 | H3: =G3+1 -> 2021 | I3: =H3+1 -> 2022 | J3: =I3+1 -> 2023 | K3: =J3+1 -> 2024 | L3: =K3+1 -> 2025 | M3: =L3+1 -> 2026 | N3: =M3+1 -> 2027
D4: Initial Value | E4: Turn 1 | F4: Turn 2 | G4: Turn 3 | H4: Turn 4 | I4: Turn 5 | J4: Turn 6 | K4: Turn 7 | L4: Turn 8 | M4: Turn 9 | N4: Turn 10 | O4: Total US$
C5: Total Income | D5: =SUM(D6:D8) -> 8310699.393 | E5: =SUM(E6:E8) -> 7522107.513 | F5: 7350209.612 | G5: 7130856.169 | H5: 6896953.995 | I5: 5919527.409 | J5: 5724512.931 | K5: 5527775.401 | L5: 5904342.943 | M5: 5654597.097 | N5: 10790288.84 | O5: =SUM(E5:N5) -> 68421171.91
C6: In-house Connection | D6: =Calculations!D117*Calculations!D13/Calculations!D10*Calculations!D4*Calculations!D81 -> 2378986.162 | E6: =Calculations!E117*Calculations!E13/Calculations!E10*Calculations!E4*Calculations!E81 -> 1973278.021 | F6: =Calculations!F117*Calculations!F13/Calculations!F10*Calculations!F4*Calculations!F81 -> 1879666.068 | G6: =Calculations!G117*Calculations!G13/Calculations!G10*Calculations!G4*Calculations!G81 -> 1769648.678 | H6: =Calculations!H117*Calculations!H13/Calculations!H10*Calculations!H4*Calculations!H81 -> 1655368.665 | I6: =Calculations!I117*Calculations!I13/Calculations!I10*Calculations!I4*Calculations!I81 -> 1153306.801 | J6: =Calculations!J117*Calculations!J13/Calculations!J10*Calculations!J4*Calculations!J81 -> 1065895.148 | K6: =Calculations!K117*Calculations!K13/Calculations!K10*Calculations!K4*Calculations!K81 -> 979123.3797 | L6: =Calculations!L117*Calculations!L13/Calculations!L10*Calculations!L4*Calculations!L81 -> 1191778.428 | M6: =Calculations!M117*Calculations!M13/Calculations!M10*Calculations!M4*Calculations!M81 -> 1078746.696 | N6: =Calculations!N117*Calculations!N13/Calculations!N10*Calculations!N4*Calculations!N81 -> 3636564.655 | O6: =SUM(E6:N6) -> 16383376.54
C7: Standpipe Connection | D7: =Calculations!D120*Calculations!D82*Calculations!D5 -> 2312628.472 | E7: =Calculations!E120*Calculations!E82*Calculations!E5 -> 1905440.975 | F7: =Calculations!F120*Calculations!F82*Calculations!F5 -> 1803182.965 | G7: =Calculations!G120*Calculations!G82*Calculations!G5 -> 1700924.954 | H7: =Calculations!H120*Calculations!H82*Calculations!H5 -> 1598666.943 | I7: =Calculations!I120*Calculations!I82*Calculations!I5 -> 1142791.3 | J7: =Calculations!J120*Calculations!J82*Calculations!J5 -> 1064912.388 | K7: =Calculations!K120*Calculations!K82*Calculations!K5 -> 987033.4754 | L7: =Calculations!L120*Calculations!L82*Calculations!L5 -> 1190423.48 | M7: =Calculations!M120*Calculations!M82*Calculations!M5 -> 1088165.47 | N7: =Calculations!N120*Calculations!N82*Calculations!N5 -> 3580171.682 | O7: =SUM(E7:N7) -> 16061713.63
C8: Non-metered Connection | D8: =Calculations!D6*Calculations!D14*Calculations!D83 -> 3619084.759 | E8: =Calculations!E6*Calculations!E14*Calculations!E83 -> 3643388.517 | F8: =Calculations!F6*Calculations!F14*Calculations!F83 -> 3667360.58 | G8: =Calculations!G6*Calculations!G14*Calculations!G83 -> 3660282.538 | H8: =Calculations!H6*Calculations!H14*Calculations!H83 -> 3642918.387 | I8: =Calculations!I6*Calculations!I14*Calculations!I83 -> 3623429.309 | J8: =Calculations!J6*Calculations!J14*Calculations!J83 -> 3593705.395 | K8: =Calculations!K6*Calculations!K14*Calculations!K83 -> 3561618.546 | L8: =Calculations!L6*Calculations!L14*Calculations!L83 -> 3522141.036 | M8: =Calculations!M6*Calculations!M14*Calculations!M83 -> 3487684.931 | N8: =Calculations!N6*Calculations!N14*Calculations!N83 -> 3573552.501 | O8: 35976081.74
C10: Costs | D10: =D11+D19+D25 -> 11447000 | E10: =E11+E19+E25 -> 14015435.36 | F10: =F11+F19+F25 -> 14543683.09 | G10: 15095126.6 | H10: 15670682.2 | I10: 16268968.81 | J10: 16893163.8 | K10: 17544283.22 | L10: 18225928.47 | M10: 18936797.37 | N10: 19678029.87 | O10: 166872098.8
C11: Staff Cost | D11: =SUM(D12:D17) -> 4572000 | E11: =SUM(E12:E17) -> 4572000 | F11: 4572000 | G11: 4572000 | H11: 4572000 | I11: 4572000 | J11: 4572000 | K11: 4572000 | L11: 4572000 | M11: 4572000 | N11: 4572000 | O11: =SUM(E11:N11) -> 45720000
C12: Director | D12: =Calculations!D31 -> 1140000 | E12: =Calculations!E31 -> 1140000 | F12: =Calculations!F31 -> 1140000 | G12: =Calculations!G31 -> 1140000 | H12: =Calculations!H31 -> 1140000 | I12: =Calculations!I31 -> 1140000 | J12: =Calculations!J31 -> 1140000 | K12: =Calculations!K31 -> 1140000 | L12: =Calculations!L31 -> 1140000 | M12: =Calculations!M31 -> 1140000 | N12: =Calculations!N31 -> 1140000
C13: Manager | D13: =Calculations!D32 -> 1950000 | E13: =Calculations!E32 -> 1950000 | F13: =Calculations!F32 -> 1950000 | G13: =Calculations!G32 -> 1950000 | H13: =Calculations!H32 -> 1950000 | I13: =Calculations!I32 -> 1950000 | J13: =Calculations!J32 -> 1950000 | K13: =Calculations!K32 -> 1950000 | L13: =Calculations!L32 -> 1950000 | M13: =Calculations!M32 -> 1950000 | N13: =Calculations!N32 -> 1950000
C14: Workers | D14: =Calculations!D33 -> 780000 | E14: =Calculations!E33 -> 780000 | F14: =Calculations!F33 -> 780000 | G14: =Calculations!G33 -> 780000 | H14: =Calculations!H33 -> 780000 | I14: =Calculations!I33 -> 780000 | J14: =Calculations!J33 -> 780000 | K14: =Calculations!K33 -> 780000 | L14: =Calculations!L33 -> 780000 | M14: =Calculations!M33 -> 780000 | N14: =Calculations!N33 -> 780000
C15: Bill Collectors | D15: =Calculations!D34 -> 156000 | E15: =Calculations!E34 -> 156000 | F15: =Calculations!F34 -> 156000 | G15: =Calculations!G34 -> 156000 | H15: =Calculations!H34 -> 156000 | I15: =Calculations!I34 -> 156000 | J15: =Calculations!J34 -> 156000 | K15: =Calculations!K34 -> 156000 | L15: =Calculations!L34 -> 156000 | M15: =Calculations!M34 -> 156000 | N15: =Calculations!N34 -> 156000
C16: Costumer Sevices Employees | D16: =Calculations!D35 -> 546000 | E16: =Calculations!E35 -> 546000 | F16: =Calculations!F35 -> 546000 | G16: =Calculations!G35 -> 546000 | H16: =Calculations!H35 -> 546000 | I16: =Calculations!I35 -> 546000 | J16: =Calculations!J35 -> 546000 | K16: =Calculations!K35 -> 546000 | L16: =Calculations!L35 -> 546000 | M16: =Calculations!M35 -> 546000 | N16: =Calculations!N35 -> 546000
C17: Fired Pesonel | D17: =Calculations!D36 -> 0 | E17: =Calculations!E36 -> 0 | F17: =Calculations!F36 -> 0 | G17: =Calculations!G36 -> 0 | H17: =Calculations!H36 -> 0 | I17: =Calculations!I36 -> 0 | J17: =Calculations!J36 -> 0 | K17: =Calculations!K36 -> 0 | L17: =Calculations!L36 -> 0 | M17: =Calculations!M36 -> 0 | N17: =Calculations!N36 -> 0
C19: O&M cost | D19: =Calculations!D42 -> 6875000 | E19: =Calculations!E42 -> 9443435.361 | F19: =Calculations!F42 -> 9971683.093 | G19: =Calculations!G42 -> 10523126.6 | H19: =Calculations!H42 -> 11098682.2 | I19: =Calculations!I42 -> 11696968.81 | J19: =Calculations!J42 -> 12321163.8 | K19: =Calculations!K42 -> 12972283.22 | L19: =Calculations!L42 -> 13653928.47 | M19: =Calculations!M42 -> 14364797.37 | N19: =Calculations!N42 -> 15106029.87 | O19: =SUM(E19:N19) -> 121152098.8
C20: O&MDistribution | D20: =Calculations!D43 -> 0 | E20: =Calculations!E43 -> 0 | F20: =Calculations!F43 -> 0 | G20: =Calculations!G43 -> 0 | H20: =Calculations!H43 -> 0 | I20: =Calculations!I43 -> 0 | J20: =Calculations!J43 -> 0 | K20: =Calculations!K43 -> 0 | L20: =Calculations!L43 -> 0 | M20: =Calculations!M43 -> 0 | N20: =Calculations!N43 -> 0
C21: O&MResources | D21: =Calculations!D44 -> 0 | E21: =Calculations!E44 -> 0 | F21: =Calculations!F44 -> 0 | G21: =Calculations!G44 -> 0 | H21: =Calculations!H44 -> 0 | I21: =Calculations!I44 -> 0 | J21: =Calculations!J44 -> 0 | K21: =Calculations!K44 -> 0 | L21: =Calculations!L44 -> 0 | M21: =Calculations!M44 -> 0 | N21: =Calculations!N44 -> 0
C22: O&MProduction | D22: =Calculations!D45 -> 0 | E22: =Calculations!E45 -> 0 | F22: =Calculations!F45 -> 0 | G22: =Calculations!G45 -> 0 | H22: =Calculations!H45 -> 0 | I22: =Calculations!I45 -> 0 | J22: =Calculations!J45 -> 0 | K22: =Calculations!K45 -> 0 | L22: =Calculations!L45 -> 0 | M22: =Calculations!M45 -> 0 | N22: =Calculations!N45 -> 0
C23: O&Mmeters | D23: =Calculations!D46 -> 0 | E23: =Calculations!E46 -> 0 | F23: =Calculations!F46 -> 0 | G23: =Calculations!G46 -> 0 | H23: =Calculations!H46 -> 0 | I23: =Calculations!I46 -> 0 | J23: =Calculations!J46 -> 0 | K23: =Calculations!K46 -> 0 | L23: =Calculations!L46 -> 0 | M23: =Calculations!M46 -> 0 | N23: =Calculations!N46 -> 0
C24: O&Mfixed | D24: =$D$19*0.7 -> 4812500 | E24: =E19-SUM(E20:E23) -> 9443435.361 | F24: =F19-SUM(F20:F23) -> 9971683.093 | G24: 10523126.6 | H24: 11098682.2 | I24: 11696968.81 | J24: 12321163.8 | K24: 12972283.22 | L24: 13653928.47 | M24: 14364797.37 | N24: 15106029.87
C25: Infraestructure Investment | D25: =Calculations!D37 -> 0 | E25: =Calculations!E37 -> 0 | F25: =Calculations!F37 -> 0 | G25: =Calculations!G37 -> 0 | H25: =Calculations!H37 -> 0 | I25: =Calculations!I37 -> 0 | J25: =Calculations!J37 -> 0 | K25: =Calculations!K37 -> 0 | L25: =Calculations!L37 -> 0 | M25: =Calculations!M37 -> 0 | N25: =Calculations!N37 -> 0 | O25: 0
C27: Budget | D27: =Calculations!D8 -> 15000000 | E27: =Calculations!E8 -> 8506672.152 | F27: =Calculations!F8 -> 1313198.671 | G27: =Calculations!G8 -> -6651071.758 | H27: =Calculations!H8 -> -15424799.96 | I27: =Calculations!I8 -> -25774241.36 | J27: =Calculations!J8 -> -36942892.23 | K27: =Calculations!K8 -> -48959400.05 | L27: =Calculations!L8 -> -61280985.57 | M27: =Calculations!M8 -> -74563185.85 | N27: =Calculations!N8 -> -83450926.88

Sheet BUSINESS AS USUAL (hidden)
B2: Business as Usual
B3: Turn1 | C3: Turn2 | D3: Turn3 | E3: Turn4 | F3: Turn5 | G3: Turn6 | H3: Turn7 | I3: Turn8 | J3: Turn9 | K3: Turn10
A4: Full Recovery Cost Ratio | B4: 0.7056147449 | C4: 0.6855276947 | D4: 0.6554801831 | E4: 0.6260881246 | F4: 0.5970591801 | G4: 0.5689336215 | H4: 0.5417130591 | I4: 0.5153964584 | J4: 0.4893693481 | K4: 0.4752603761
A5: Collection Efficiency | B5: 0.8063406791 | C5: 0.8061860171 | D5: 0.8076295297 | E5: 0.8088467235 | F5: 0.8093794031 | G5: 0.809911826 | H5: 0.8104442256 | I5: 0.8109768363 | J5: 0.8104617996 | K5: 0.8297558133
A6: Physical Losses | B6: 0.3999655696 | C6: 0.4085362603 | D6: 0.4171069511 | E6: 0.4256776419 | F6: 0.4342483327 | G6: 0.4428190234 | H6: 0.4513897142 | I6: 0.459960405 | J6: 0.4685310958 | K6: 0.4771017865
A7: Coverage | B7: 0.6547618043 | C7: 0.6431840037 | D7: 0.6318129626 | E7: 0.6206433137 | F7: 0.609670043 | G7: 0.5988884601 | H7: 0.5882986306 | I7: 0.57789596 | J7: 0.5676761321 | K7: 0.5576390935
A8: Afordability | B8: 0.04869805419 | C8: 0.04727966426 | D8: 0.04590258666 | E8: 0.04456561812 | F8: 0.04326759041 | G8: 0.04200736933 | H8: 0.04078385372 | I8: 0.03959597448 | J8: 0.03844269367 | K8: 0.03732300356
A9: Willingness to pay | B9: 0.3356947817 | C9: 0.3076203041 | D9: 0.2776024745 | E9: 0.2456412929 | F9: 0.2117367594 | G9: 0.175888874 | H9: 0.1380976366 | I9: 0.09836304726 | J9: 0.08731781913 | K9: 0.07585738445
A10: Asset Depreciation | B10: 98000 | C10: 96040 | D10: 94119.2 | E10: 92236.816 | F10: 90392.07968 | G10: 88584.23809 | H10: 86812.55332 | I10: 85076.30226 | J10: 83374.77621 | K10: 81707.28069
A11: Asset Value | B11: 4900000 | C11: 4802000 | D11: 4705960 | E11: 4611840.8 | F11: 4519603.984 | G11: 4429211.904 | H11: 4340627.666 | I11: 4253815.113 | J11: 4168738.811 | K11: 4085364.034
A12: Service Affordability | B12: 0.04869805419 | C12: 0.04727966426 | D12: 0.04590258666 | E12: 0.04456561812 | F12: 0.04326759041 | G12: 0.04200736933 | H12: 0.04078385372 | I12: 0.03959597448 | J12: 0.03844269367 | K12: 0.03732300356
A13: Commercial Water Losses | B13: 0.1000517331 | C13: 0.1000517331 | D13: 0.1000517331 | E13: 0.1000517331 | F13: 0.1000517331 | G13: 0.1000517331 | H13: 0.1000517331 | I13: 0.1000517331 | J13: 0.1000517331 | K13: 0.1000517331
A14: Continuity | B14: 0.671665321 | C14: 0.6622395689 | D14: 0.6528587748 | E14: 0.6324026721 | F14: 0.6122697437 | G14: 0.5924599895 | H14: 0.5729734096 | I14: 0.5538100039 | J14: 0.5349697725 | K14: 0.3348508293
A15: Water Quality | B15: 0.68 | C15: 0.66 | D15: 0.64 | E15: 0.62 | F15: 0.6 | G15: 0.58 | H15: 0.56 | I15: 0.54 | J15: 0.49 | K15: 0.44
A17: Initial Values
B18: Turn1 | C18: Turn2 | D18: Turn3 | E18: Turn4 | F18: Turn5 | G18: Turn6 | H18: Turn7 | I18: Turn8 | J18: Turn9 | K18: Turn10
A19: Full Recovery Cost Ratio | B19: =Calculations!D25 -> 0.7260154969 | C19: =B19 -> 0.7260154969 | D19: =C19 -> 0.7260154969 | E19: 0.7260154969 | F19: 0.7260154969 | G19: 0.7260154969 | H19: 0.7260154969 | I19: 0.7260154969 | J19: 0.7260154969 | K19: 0.7260154969
A20: Collection Efficiency | B20: =Calculations!D80 -> 0.7224982084 | C20: =B20 -> 0.7224982084 | D20: 0.7224982084 | E20: 0.7224982084 | F20: 0.7224982084 | G20: 0.7224982084 | H20: 0.7224982084 | I20: 0.7224982084 | J20: 0.7224982084 | K20: 0.7224982084
A21: Physical Losses | B21: =Calculations!D91 -> 0.3 | C21: 0.3 | D21: 0.3 | E21: 0.3 | F21: 0.3 | G21: 0.3 | H21: 0.3 | I21: 0.3 | J21: 0.3 | K21: 0.3
A22: Coverage | B22: =Calculations!D99 -> 0.7858410793 | C22: 0.7858410793 | D22: 0.7858410793 | E22: 0.7858410793 | F22: 0.7858410793 | G22: 0.7858410793 | H22: 0.7858410793 | I22: 0.7858410793 | J22: 0.7858410793 | K22: 0.7858410793
A23: Afordability | B23: =Calculations!D84 -> 0.05000213049 | C23: 0.05000213049 | D23: 0.05000213049 | E23: 0.05000213049 | F23: 0.05000213049 | G23: 0.05000213049 | H23: 0.05000213049 | I23: 0.05000213049 | J23: 0.05000213049 | K23: 0.05000213049
A24: Willingness to pay | B24: =Calculations!D86 -> 0.75 | C24: 0.75 | D24: 0.75 | E24: 0.75 | F24: 0.75 | G24: 0.75 | H24: 0.75 | I24: 0.75 | J24: 0.75 | K24: 0.75
A25: Asset Depreciation | B25: =Calculations!D79 -> 1375000 | C25: 1375000 | D25: 1375000 | E25: 1375000 | F25: 1375000 | G25: 1375000 | H25: 1375000 | I25: 1375000 | J25: 1375000 | K25: 1375000
A26: Asset Value | B26: =Calculations!D78 -> 68750000 | C26: 68750000 | D26: 68750000 | E26: 68750000 | F26: 68750000 | G26: 68750000 | H26: 68750000 | I26: 68750000 | J26: 68750000 | K26: 68750000
A27: Service Affordability | B27: =Calculations!D84 -> 0.05000213049 | C27: 0.05000213049 | D27: 0.05000213049 | E27: 0.05000213049 | F27: 0.05000213049 | G27: 0.05000213049 | H27: 0.05000213049 | I27: 0.05000213049 | J27: 0.05000213049 | K27: 0.05000213049
A28: Commercial Water Losses | B28: =Calculations!D95 -> 5589848.895 | C28: 5589848.895 | D28: 5589848.895 | E28: 5589848.895 | F28: 5589848.895 | G28: 5589848.895 | H28: 5589848.895 | I28: 5589848.895 | J28: 5589848.895 | K28: 5589848.895
A29: Continuity | B29: =Calculations!D89 -> 0.7179377672 | C29: 0.7179377672 | D29: 0.7179377672 | E29: 0.7179377672 | F29: 0.7179377672 | G29: 0.7179377672 | H29: 0.7179377672 | I29: 0.7179377672 | J29: 0.7179377672 | K29: 0.7179377672
A30: Water Quality | B30: =Calculations!D88 -> 0.7 | C30: 0.7 | D30: 0.7 | E30: 0.7 | F30: 0.7 | G30: 0.7 | H30: 0.7 | I30: 0.7 | J30: 0.7 | K30: 0.7

Sheet KPI (hidden)
B1: KEY PERFORMANCE INDICATORS

Sheet Financial Manager (hidden)
A1: FINANCIAL MANAGER PERFORMANCE INDICATORS

Sheet RESULTS (hidden)
A1: 1 | B1: Decisions | C1: TURN 1 | D1: TURN 2 | E1: TURN 3 | F1: TURN 4 | G1: TURN 5 | H1: TURN 6 | I1: TURN 7 | J1: TURN 8 | K1: TURN 9 | L1: TURN 10 | M1: Current Turn | N1: 2
A2: 2 | B2: Financial Decisions
A3: 3 | B3: Subsidy on connection fee | C3: 0.8 | D3: 0 | E3: 0 | F3: 0 | G3: 0 | H3: 0 | I3: 0 | J3: 0 | K3: 0 | L3: 0
A4: 4 | B4: In-house Tariff | C4: 1.2 | D4: 0 | E4: 0 | F4: 0 | G4: 0 | H4: 0 | I4: 0 | J4: 0 | K4: 0 | L4: 0
A5: 5 | B5: Water Kiosk Tariff | C5: 1.8 | D5: 0 | E5: 0 | F5: 0 | G5: 0 | H5: 0 | I5: 0 | J5: 0 | K5: 0 | L5: 0
A6: 6 | B6: Un-metered Connection Tariff | C6: 200 | D6: 0 | E6: 0 | F6: 0 | G6: 0 | H6: 0 | I6: 0 | J6: 0 | K6: 0 | L6: 0
A7: 7 | B7: Infrastructural Decisions
A8: 8 | B8: Additional Water Kiosks | C8: 0 | D8: 0 | E8: 0 | F8: 0 | G8: 0 | H8: 0 | I8: 0 | J8: 0 | K8: 0 | L8: 0
A9: 9 | B9: Additional Distribution Network | C9: 0 | D9: 0 | E9: 0 | F9: 0 | G9: 0 | H9: 0 | I9: 0 | J9: 0 | K9: 0 | L9: 0
A10: 10 | B10: Additional Water Treatment Capacity | C10: 0 | D10: 0 | E10: 0 | F10: 0 | G10: 0 | H10: 0 | I10: 0 | J10: 0 | K10: 0 | L10: 0
A11: 11 | B11: Additional Water Resources Abstracted | C11: 0 | D11: 0 | E11: 0 | F11: 0 | G11: 0 | H11: 0 | I11: 0 | J11: 0 | K11: 0 | L11: 0
A12: 12 | B12: Additional Number of Meters Type A | C12: 0 | D12: 0 | E12: 0 | F12: 0 | G12: 0 | H12: 0 | I12: 0 | J12: 0 | K12: 0 | L12: 0
A13: 13 | B13: Additional Number of Meters Type B | C13: 0 | D13: 0 | E13: 0 | F13: 0 | G13: 0 | H13: 0 | I13: 0 | J13: 0 | K13: 0 | L13: 0
A14: 14 | B14: Additional Number of Meters Type C | C14: 0 | D14: 0 | E14: 0 | F14: 0 | G14: 0 | H14: 0 | I14: 0 | J14: 0 | K14: 0 | L14: 0
A15: 15 | B15: Human Resources Decisions
A16: 16 | B16: Additional Director | C16: 0 | D16: 0 | E16: 0 | F16: 0 | G16: 0 | H16: 0 | I16: 0 | J16: 0 | K16: 0 | L16: 0
A17: 17 | B17: Additional Manager | C17: 0 | D17: 0 | E17: 0 | F17: 0 | G17: 0 | H17: 0 | I17: 0 | J17: 0 | K17: 0 | L17: 0
A18: 18 | B18: Additional Operational Staff | C18: 0 | D18: 0 | E18: 0 | F18: 0 | G18: 0 | H18: 0 | I18: 0 | J18: 0 | K18: 0 | L18: 0
A19: 19 | B19: Additional Bill Collectors | C19: 0 | D19: 0 | E19: 0 | F19: 0 | G19: 0 | H19: 0 | I19: 0 | J19: 0 | K19: 0 | L19: 0
A20: 20 | B20: Additional Costumer Services Employees | C20: 0 | D20: 0 | E20: 0 | F20: 0 | G20: 0 | H20: 0 | I20: 0 | J20: 0 | K20: 0 | L20: 0
A21: 21 | B21: Maintenance Decisions
A22: 22 | B22: Rehabilitated Network | C22: 0 | D22: 0 | E22: 0 | F22: 0 | G22: 0 | H22: 0 | I22: 0 | J22: 0 | K22: 0 | L22: 0
A23: 23 | B23: Treatment Maintenance | C23: 0 | D23: 0 | E23: 0 | F23: 0 | G23: 0 | H23: 0 | I23: 0 | J23: 0 | K23: 0 | L23: 0
A24: 24 | B24: Resources Maintenance | C24: 0 | D24: 0 | E24: 0 | F24: 0 | G24: 0 | H24: 0 | I24: 0 | J24: 0 | K24: 0 | L24: 0
A25: 25 | B25: Additional Meter Calibration Program | C25: 0 | D25: 0 | E25: 0 | F25: 0 | G25: 0 | H25: 0 | I25: 0 | J25: 0 | K25: 0 | L25: 0
A26: 26 | B26: Capacity Development Decisions
A27: 27 | B27: Additional Leakage Trainees | C27: 0 | D27: 0 | E27: 0 | F27: 0 | G27: 0 | H27: 0 | I27: 0 | J27: 0 | K27: 0 | L27: 0
A28: 28 | B28: Additional Staff Trainings | C28: 0 | D28: 0 | E28: 0 | F28: 0 | G28: 0 | H28: 0 | I28: 0 | J28: 0 | K28: 0 | L28: 0
A29: 29 | B29: Additional Office Technology | C29: 0 | D29: 0 | E29: 0 | F29: 0 | G29: 0 | H29: 0 | I29: 0 | J29: 0 | K29: 0 | L29: 0
A30: 30 | B30: Standard Operating Procedures | C30: 0 | D30: 0 | E30: 0 | F30: 0 | G30: 0 | H30: 0 | I30: 0 | J30: 0 | K30: 0 | L30: 0
A31: 31 | B31: Awareness Campaigns | C31: 0 | D31: 0 | E31: 0 | F31: 0 | G31: 0 | H31: 0 | I31: 0 | J31: 0 | K31: 0 | L31: 0
A32: 32 | B32: KPIS
A33: 33 | B33: Full Recovery Cost Ratio | C33: 0.7188139308 | D33: 0.7011269266 | E33: 0.6646392297 | F33: 0.6209079521 | G33: 0.4996548318 | H33: 0.4629763272 | I33: 0.4275301556 | J33: 0.4462094355 | K33: 0.4073259918 | L33: 0.8448280362
A34: 34 | B34: Collection Efficiency | C34: 0.5808275903 | D34: 0.6203054727 | E34: 0.6368400656 | F34: 0.6418581964 | G34: 0.6422467136 | H34: 0.6385206228 | I34: 0.6332777119 | J34: 0.6260580241 | K34: 0.6195603445 | L34: 0.63654091
A35: 35 | B35: Physical Losses | C35: 0.3910498116 | D35: 0.4149270687 | E35: 0.4388043259 | F35: 0.462681583 | G35: 0.4864974624 | H35: 0.5103133418 | I35: 0.5341292212 | J35: 0.5580064784 | K35: 0.5818837355 | L35: 0
A36: 36 | B36: Coverage | C36: 0.7719461124 | D36: 0.7582968194 | E36: 0.7448890422 | F36: 0.7317181123 | G36: 0.7187801724 | H36: 0.7060708739 | I36: 0.6935860405 | J36: 0.6813222018 | K36: 0.6692754251 | L36: 0.6574414029
A37: 37 | B37: Affordability | C37: 0.09549985133 | D37: 0.09271830226 | E37: 0.09001776919 | F37: 0.08739589241 | G37: 0.08485038099 | H37: 0.08237901067 | I37: 0.07997962201 | J37: 0.07765011845 | K37: 0.07538846452 | L37: 0.073192684
A38: 38 | B38: Customer Satisfaction | C38: 0.5273840221 | D38: 0.6715802675 | E38: 0.724003355 | F38: 0.7303605939 | G38: 0.7135188078 | H38: 0.6848991601 | I38: 0.6502122324 | J38: 0.6122987677 | K38: 0.572592765 | L38: 0.6267997427
A39: 39 | B39: Asset Depreciation | C39: 1347500 | D39: 1320550 | E39: 1294139 | F39: 1268256.22 | G39: 1242891.096 | H39: 1218033.274 | I39: 1193672.608 | J39: 1169799.156 | K39: 1146403.173 | L39: 1123475.109
A40: 40 | B40: Asset Value | C40: 67375000 | D40: 66027500 | E40: 64706950 | F40: 63412811 | G40: 62144554.78 | H40: 60901663.68 | I40: 59683630.41 | J40: 58489957.8 | K40: 57320158.65 | L40: 56173755.47
A41: 41 | B41: Commercial Water Losses | C41: 0.1757003495 | D41: 0.1757003495 | E41: 0.1757003495 | F41: 0.1757003495 | G41: 0.1757003495 | H41: 0.1757003495 | I41: 0.1757003495 | J41: 0.1757003495 | K41: 0.1757003495 | L41: 0.1757003495
A42: 42 | B42: Continuity | C42: 15.88608265 | D42: 15.34659078 | E42: 14.78558655 | F42: 14.20306997 | G42: 13.6006213 | H42: 12.97677074 | I42: 12.33151828 | J42: 11.66311819 | K42: 10.97320574 | L42: 21.66040322
A43: 43 | B43: Water Quality | C43: 0.65 | D43: 0.6 | E43: 0.55 | F43: 0.5 | G43: 0.45 | H43: 0.4 | I43: 0.35 | J43: 0.3 | K43: 0.25 | L43: 0.2
A44: 44 | B44: Utility Efficiency

Sheet WATER MANAGER
A1: 1
P11: =SUM(E11:O11) -> 0
P12: =SUM(E12:O12) -> 0
P13: =SUM(E13:O13) -> 0
P14: =SUM(E14:O14) -> 0
P15: =SUM(E15:O15) -> 0
P17: =SUM(E17:O17) -> 0
P18: =SUM(E18:O18) -> 0
P19: =SUM(E19:O19) -> 0
P20: =SUM(E20:O20) -> 0
P21: =SUM(E21:O21) -> 0
P23: =SUM(E23:O23) -> 0
P24: =SUM(E24:O24) -> 0
P25: =SUM(E25:O25) -> 0
P26: =SUM(E26:O26) -> 0
P27: =SUM(E27:O27) -> 0
P29: =SUM(E29:O29) -> 0
P30: 0
P31: 0
P32: 0
P33: 0
P34: 0

Sheet Yearly Decision (hidden)
A1: 1
F3: =YEAR(TODAY()) -> 2018 | G3: =F3+1 -> 2019 | H3: =G3+1 -> 2020 | I3: 2021 | J3: 2022 | K3: 2023 | L3: 2024 | M3: 2025 | N3: 2026 | O3: 2027
D4: Unit | E4: Initial Value | F4: Turn 1 | G4: Turn 2 | H4: Turn 3 | I4: Turn 4 | J4: Turn 5 | K4: Turn 6 | L4: Turn 7 | M4: Turn 8 | N4: Turn 9 | O4: Turn 10 | P4: Actual Value
B5: 1 | C5: Financial Decisions
B6: 1.1 | C6: Subsidy on connection fee | D6: % | E6: ='INI-VAL'!H36 -> 0.4 | F6: 0 | G6: 0 | H6: 0 | I6: 0 | J6: 0 | K6: 0 | L6: 0 | M6: 0 | N6: 0 | O6: 0 | P6: 0.4
B7: 1.2 | C7: In-house Tariff | D7: US$/m3 | E7: ='INI-VAL'!H37 -> 0.61 | F7: 0 | G7: 0 | H7: 0 | I7: 0 | J7: 0 | K7: 0 | L7: 0 | M7: 0 | N7: 0 | O7: 0 | P7: 0.61
B8: 1.3 | C8: Water Kiosk Tariff | D8: US$/m3 | E8: ='INI-VAL'!H38 -> 1.04 | F8: 0 | G8: 0 | H8: 0 | I8: 0 | J8: 0 | K8: 0 | L8: 0 | M8: 0 | N8: 0 | O8: 0 | P8: 1.04
B9: 1.4 | C9: Un-metered Connection Tariff | D9: US$/Connection | E9: ='INI-VAL'!H39 -> 150.21 | F9: 0 | G9: 0 | H9: 0 | I9: 0 | J9: 0 | K9: 0 | L9: 0 | M9: 0 | N9: 0 | O9: 0 | P9: 150.21
B10: 2 | C10: Infrastructural Decisions
B11: 2.1 | C11: Additional Water Kiosks | D11: No. Of Kiosks | E11: ='INI-VAL'!H49 -> 626 | F11: 0 | G11: 0 | H11: 0 | I11: 0 | J11: 0 | K11: 0 | L11: 0 | M11: 0 | N11: 0 | O11: 0 | P11: 626
B12: 2.2 | C12: Additional Distribution Network | D12: km network | E12: ='INI-VAL'!H46 -> 1051 | F12: 0 | G12: 0 | H12: 0 | I12: 0 | J12: 0 | K12: 0 | L12: 0 | M12: 0 | N12: 0 | O12: 0 | P12: 1051
B13: 2.3 | C13: Additional Water Treatment Capacity | D13: m3 | E13: ='INI-VAL'!H43 -> 34936340 | F13: 0 | G13: 0 | H13: 0 | I13: 0 | J13: 0 | K13: 0 | L13: 0 | M13: 0 | N13: 0 | O13: 0 | P13: 34936340
B14: 2.4 | C14: Additional Water Resources Abstracted | D14: m3 | E14: ='INI-VAL'!H42 -> 34936340 | F14: 0 | G14: 0 | H14: 0 | I14: 0 | J14: 0 | K14: 0 | L14: 0 | M14: 0 | N14: 0 | O14: 0 | P14: 34936340
B15: 2.5 | C15: Additional Number of Meters Type A | D15: No. A Meters | E15: 0 | F15: 0 | G15: 0 | H15: 0 | I15: 0 | J15: 0 | K15: 0 | L15: 0 | M15: 0 | N15: 0 | O15: 0 | P15: 0
C16: Additional Number of Meters Type B | D16: No. B Meters | E16: 0 | F16: 0 | G16: 0 | H16: 0 | I16: 0 | J16: 0 | K16: 0 | L16: 0 | M16: 0 | N16: 0 | O16: 0 | P16: 0
C17: Additional Number of Meters Type C | D17: No. C Meters | E17: ='INI-VAL'!H48 -> 16711 | F17: 0 | G17: 0 | H17: 0 | I17: 0 | J17: 0 | K17: 0 | L17: 0 | M17: 0 | N17: 0 | O17: 0 | P17: 16711
B18: 3 | C18: Human Resources Decisions
B19: 3.1 | C19: Additional Director | D19: No. Directors | E19: ='INI-VAL'!D19 -> 19 | F19: 0 | G19: 0 | H19: 0 | I19: 0 | J19: 0 | K19: 0 | L19: 0 | M19: 0 | N19: 0 | O19: 0 | P19: 19
B20: 3.2 | C20: Additional Manager | D20: No. Managers | E20: ='INI-VAL'!D20 -> 65 | F20: 0 | G20: 0 | H20: 0 | I20: 0 | J20: 0 | K20: 0 | L20: 0 | M20: 0 | N20: 0 | O20: 0 | P20: 65
B21: 3.3 | C21: Additional Operational Staff | D21: No. Employees | E21: ='INI-VAL'!D22 -> 130 | F21: 0 | G21: 0 | H21: 0 | I21: 0 | J21: 0 | K21: 0 | L21: 0 | M21: 0 | N21: 0 | O21: 0 | P21: 130
B22: 3.4 | C22: Additional Bill Collectors | D22: No. Bill Collectors | E22: ='INI-VAL'!D23 -> 26 | F22: 0 | G22: 0 | H22: 0 | I22: 0 | J22: 0 | K22: 0 | L22: 0 | M22: 0 | N22: 0 | O22: 0 | P22: 26
B23: 3.5 | C23: Additional Costumer Services Employees | D23: No. Employees | E23: ='INI-VAL'!D24 -> 91 | F23: 0 | G23: 0 | H23: 0 | I23: 0 | J23: 0 | K23: 0 | L23: 0 | M23: 0 | N23: 0 | O23: 0 | P23: 91
B24: 4 | C24: Maintenance Decisions
B25: 4.1 | C25: Rehabilitated Network | D25: Km | E25: 0 | F25: 0 | G25: 0 | H25: 0 | I25: 0 | J25: 0 | K25: 0 | L25: 0 | M25: 0 | N25: 0 | O25: 0 | P25: 0
B26: 4.2 | C26: Treatment Maintenance | D26: m3 | E26: 0 | F26: 0 | G26: 0 | H26: 0 | I26: 0 | J26: 0 | K26: 0 | L26: 0 | M26: 0 | N26: 0 | O26: 0 | P26: 0
B27: 4.3 | C27: Resources Maintenance | D27: m3 | E27: 0 | F27: 0 | G27: 0 | H27: 0 | I27: 0 | J27: 0 | K27: 0 | L27: 0 | M27: 0 | N27: 0 | O27: 0 | P27: 0
B28: 4.4 | C28: Additional Meter Calibration Program | D28: No. meters | E28: 0 | F28: 0 | G28: 0 | H28: 0 | I28: 0 | J28: 0 | K28: 0 | L28: 0 | M28: 0 | N28: 0 | O28: 0 | P28: 0
B29: 5 | C29: Capacity Development Decisions
B30: 5.1 | C30: Additional Leakage Trainees | D30: No. Trainees | E30: 0 | F30: 0 | G30: 0 | H30: 0 | I30: 0 | J30: 0 | K30: 0 | L30: 0 | M30: 0 | N30: 0 | O30: 0 | P30: 0
B31: 5.2 | C31: Additional Staff Trainings | D31: No. Trainees | E31: 0 | F31: 0 | G31: 0 | H31: 0 | I31: 0 | J31: 0 | K31: 0 | L31: 0 | M31: 0 | N31: 0 | O31: 0 | P31: 0
B32: 5.3 | C32: Additional Office Technology | D32: Package | E32: 0 | F32: 0 | G32: 0 | H32: 0 | I32: 0 | J32: 0 | K32: 0 | L32: 0 | M32: 0 | N32: 0 | O32: 0 | P32: 0
B33: 5.4 | C33: Standard Operating Procedures | D33: Procedure | E33: 0 | F33: 0 | G33: 0 | H33: 0 | I33: 0 | J33: 0 | K33: 0 | L33: 0 | M33: 0 | N33: 0 | O33: 0 | P33: 0
B34: 5.5 | C34: Awareness Campaigns | D34: Procedure | E34: 0 | F34: 0 | G34: 0 | H34: 0 | I34: 0 | J34: 0 | K34: 0 | L34: 0 | M34: 0 | N34: 0 | O34: 0 | P34: 0
C36: New Network | D36: km | E36: 0 | F36: =F91 -> 0 | G36: =G91 -> 0 | H36: 0 | I36: 0 | J36: 0 | K36: 0 | L36: 0 | M36: 0 | N36: 0 | O36: 0
C37: Old Network | D37: km | E37: =E12 -> 1051 | F37: =F92 -> 1051 | G37: 1051 | H37: 1051 | I37: 1051 | J37: 1051 | K37: 1051 | L37: 1051 | M37: 1051 | N37: 1051 | O37: 0
B39: A | C39: Water distribution - In-house connections | D39: % | E39: =Calculations!D107 -> 0.8821303055 | F39: =Calculations!E107 -> 0.8821303055 | G39: =Calculations!F107 -> 0.8821303055 | H39: =Calculations!G107 -> 0.8821303055 | I39: =Calculations!H107 -> 0.8821303055 | J39: 0.88 | K39: 0.88 | L39: 0.88 | M39: =Calculations!L107 -> 0.8821303055 | N39: =Calculations!M107 -> 0.8821303055 | O39: =Calculations!N107 -> 0.8821303055
B40: B | C40: Water distribution - Water Kiosk | D40: % | E40: =Calculations!D110 -> 0.1178696945 | F40: =Calculations!E110 -> 0.1178696945 | G40: =Calculations!F110 -> 0.1178696945 | H40: =Calculations!G110 -> 0.1178696945 | I40: =Calculations!H110 -> 0.1178696945 | J40: =1-J39 -> 0.12 | K40: =1-K39 -> 0.12 | L40: 0.12 | M40: =Calculations!L110 -> 0.1178696945 | N40: =Calculations!M110 -> 0.1178696945 | O40: =Calculations!N110 -> 0.1178696945
C41: Liters per capita per day In-house | D41: lcd | E41: =Calculations!D118 -> 112.5473157 | F41: =Calculations!E118 -> 92.73096374 | G41: =Calculations!F118 -> 87.7544339 | H41: =Calculations!G118 -> 82.77790406 | I41: =Calculations!H118 -> 77.80137422 | J41: =Calculations!I118 -> 54.49630287 | K41: =Calculations!J118 -> 50.78249022 | L41: =Calculations!K118 -> 47.06867757 | M41: =Calculations!L118 -> 57.93363217 | N41: =Calculations!M118 -> 52.95710233 | O41: =Calculations!N118 -> 174.234088
C42: Liters per capita per day WK | D42: lcd | E42: =Calculations!D121 -> 32.86751909 | F42: =Calculations!E121 -> 27.08049234 | G42: =Calculations!F121 -> 25.62718189 | H42: =Calculations!G121 -> 24.17387145 | I42: =Calculations!H121 -> 22.720561 | J42: =Calculations!I121 -> 16.24156898 | K42: =Calculations!J121 -> 15.13473896 | L42: =Calculations!K121 -> 14.02790893 | M42: =Calculations!L121 -> 16.91852666 | N42: =Calculations!M121 -> 15.46521621 | O42: =Calculations!N121 -> 50.88208613
C81: Initial Financial Loan | D81: USD | E81: 15000000
E82: Bankruptcy | F82: =Calculations!D8 -> 15000000 | G82: =Calculations!E8 -> 8506672.152 | H82: =Calculations!F8 -> 1313198.671 | I82: =Calculations!G8 -> -6651071.758 | J82: =Calculations!H8 -> -15424799.96 | K82: =Calculations!I8 -> -25774241.36 | L82: =Calculations!J8 -> -36942892.23 | M82: =Calculations!K8 -> -48959400.05 | N82: =Calculations!L8 -> -61280985.57 | O82: =Calculations!M8 -> -74563185.85
E83: Kiosk to Network | F83: =Calculations!E12 -> 0 | G83: =Calculations!F12 -> 0 | H83: =Calculations!G12 -> 0 | I83: =Calculations!H12 -> 0 | J83: =Calculations!I12 -> 0 | K83: =Calculations!J12 -> 0 | L83: =Calculations!K12 -> 0 | M83: =Calculations!L12 -> 0 | N83: =Calculations!M12 -> 0 | O83: =Calculations!N12 -> 0
E84: Meters | F84: =Calculations!E14 -> 33928 | G84: =Calculations!F14 -> 33928 | H84: =Calculations!G14 -> 33928 | I84: =Calculations!H14 -> 33928 | J84: =Calculations!I14 -> 33928 | K84: =Calculations!J14 -> 33928 | L84: =Calculations!K14 -> 33928 | M84: =Calculations!L14 -> 33928 | N84: =Calculations!M14 -> 33928 | O84: =Calculations!N14 -> 33928
F86: 1 | G86: 2 | H86: 3 | I86: 4 | J86: 5 | K86: 6 | L86: 7 | M86: 8 | N86: 9
D87: New bought pipes | F87: =F12 -> 0 | G87: 0 | H87: 0 | I87: 0 | J87: 0 | K87: 0 | L87: 0 | M87: 0 | N87: 0
D88: Rehab pipes | F88: =F25 -> 0 | G88: 0 | H88: 0 | I88: 0 | J88: 0 | K88: 0 | L88: 0 | M88: 0 | N88: 0
D89: Actual size | F89: =E37+F87 -> 1051 | G89: =F89+G87 -> 1051 | H89: =G89+H87 -> 1051 | I89: 1051 | J89: 1051 | K89: 1051 | L89: 1051 | M89: 1051 | N89: 1051
D91: New Net | F91: =SUM($F$87:F88) -> 0 | G91: =SUM($F$87:G88) -> 0 | H91: =SUM($F$87:H88) -> 0 | I91: =SUM($F$87:I88) -> 0 | J91: =SUM($F$87:J88) -> 0 | K91: =SUM($F$87:K88)-SUM(F91:F91) -> 0 | L91: =SUM($F$87:L88)-SUM(G91:G91) -> 0 | M91: =SUM($F$87:M88)-SUM(H91:H91) -> 0 | N91: =SUM($F$87:N88)-SUM(I91:I91) -> 0
D92: Old Net | F92: =F89-F91 -> 1051 | G92: =G89-G91 -> 1051 | H92: 1051 | I92: 1051 | J92: 1051 | K92: =K89-K91 -> 1051 | L92: 1051 | M92: 1051 | N92: =N89-N91 -> 1051
F95: =F91+F92 -> 1051 | G95: =G91+G92 -> 1051 | H95: 1051 | I95: 1051 | J95: 1051 | K95: 1051 | L95: 1051 | M95: 1051 | N95: 1051

Sheet BENCH-MARKING (hidden)
A1: MANAGER PERFORMANCE INDICATORS BENCHMARKING | J1: MANAGER PERFORMANCE INDICATORS BENCHMARKING

Sheet Commercial Manager (hidden)
A1: COMMERCIAL MANAGER PERFORMANCE INDICATORS

Sheet Operational Manager (hidden)
A1: OPERATIONAL MANAGER PERFORMANCE INDICATORS

Sheet Water Balance (hidden)
A1: WATER BALANCE

Sheet EQ (hidden)
E3: Continuity | L3: Quality
A4: New cxns | B4: 50639
A5: Ratio 1 | B5: =H6/H7 -> 1.310274689 | C5: =$B$4*B5 -> 66351 | E5: hours | F5: Ph loss | G5: Ileg Con | H5: No Connections | L5: Samples | M5: Ph loss | N5: Dist Man | O5: Resources Man | S5: 0.05 | T5: 0.8
A6: Ratio 2 | B6: =H8/H7 -> 0.6466557396 | C6: =$B$4*B6 -> 32746 | E6: 3 | F6: 0.7 | G6: 0.01 | H6: 66351 | L6: 0.2 | M6: 0.6 | N6: 0.2 | O6: 0.2 | S6: 0.15 | T6: 0.3
E7: 16 | F7: 0.37 | G7: 0.05 | H7: 50639 | L7: 0.7 | M7: 0.4 | N7: 0.7 | O7: 0.5 | S7: 0.25 | T7: 0.05
E8: 23 | F8: 0.05 | G8: 0.1 | H8: 32746 | L8: 0.9 | M8: 0.15 | N8: 0.9 | O8: 0.7
E10: Hours | F10: Ph loss | G10: Ille Con | H10: No Connections
B11: =ROUND(B19*3/7,0) -> 21702 | E11: =(-37.705*F11+25.787)*0.5+(188.52*G11+1.2787)*0.25+(-0.0005*H11+36.579)*0.25 -> 17.2886 | F11: 0.15 | G11: 0.01 | H11: 21702 | L11: Samples | M11: Ph loss | N11: Dist Man | O11: Resources Man
B12: =ROUND(B11+($B$19-$B$11)/8,0) -> 25319 | E12: =(-37.705*F12+25.787)*0.5+(188.52*G12+1.2787)*0.25+(-0.0005*H12+36.579)*0.25 -> 15.94098 | F12: 0.2 | G12: 0.011 | H12: 25319 | L12: =(0.793+1.27*M12+-3.77*M12^2)/3+N12+0.556*LN(O12)/3+1.0929/3 -> 0.6655758402 | M12: 0.15 | N12: 0.3 | O12: =0.2 -> 0.2
B13: =ROUND(B12+($B$19-$B$11)/8,0) -> 28936 | E13: 14.59336 | F13: 0.25 | G13: 0.012 | H13: 28936 | L13: =(0.793+1.27*M13+-3.77*M13^2)/3+N13+0.556*LN(O13)/3+1.0929/3 -> 0.7561067784 | M13: 0.2 | N13: 0.35 | O13: =0.25 -> 0.25
B14: 32553 | E14: 13.24574 | F14: 0.3 | G14: 0.013 | H14: 32553 | L14: 0.8327887069 | M14: 0.25 | N14: 0.4 | O14: 0.3
B15: 36170 | E15: 11.89812 | F15: 0.35 | G15: 0.014 | H15: 36170 | L15: 0.8979662996 | M15: 0.3 | N15: 0.45 | O15: 0.35
B16: 39787 | E16: 10.5505 | F16: 0.4 | G16: 0.015 | H16: 39787 | L16: 0.9530391177 | M16: 0.35 | N16: 0.5 | O16: 0.4
B17: 43404 | E17: 9.20288 | F17: 0.45 | G17: 0.016 | H17: 43404 | L17: 0.998909907 | M17: 0.4 | N17: 0.55 | O17: 0.45
B18: 47021 | E18: 7.85526 | F18: 0.5 | G18: 0.017 | H18: 47021 | L18: 1.036195056 | M18: 0.45 | N18: 0.6 | O18: 0.5
B19: 50639 | E19: 6.507515 | F19: 0.55 | G19: 0.018 | H19: 50639 | L19: 1.065334209 | M19: 0.5 | N19: 0.65 | O19: 0.55
B20: =ROUND(50639*11/7,0) -> 79576 | E20: 1.994895 | F20: 0.6 | G20: 0.019 | H20: 79576 | L20: 1.086651984 | M20: 0.55 | N20: 0.7 | O20: 0.6
L21: 1.1003949 | M21: 0.6 | N21: 0.75 | O21: 0.65
E24: Collection Efficiency Gain
D26: Eff | E26: No Connections | F26: SOPS/7732 con | G26: No Con/ bill col | L26: % Il. Conn | M26: tariff | N26: Sub
D27: 1 | E27: 7732 | F27: =25/7732 -> 0.003233316089 | G27: 400 | L27: 0.1 | M27: 1.13 | N27: 0
D28: 0.8 | E28: =E27/$D$28 -> 9665 | F28: =20/7732 -> 0.002586652871 | G28: =E28/8 -> 1208.125 | L28: 0.05 | M28: 0.61 | N28: 0.4
D29: 0.5 | E29: =E28/$D$28 -> 12081.25 | F29: =15/7732 -> 0.001939989653 | G29: 1510.15625 | L29: 0.01 | M29: 0.226 | N29: 1
D30: 0.2 | E30: 15101.5625 | F30: =10/7732 -> 0.001293326436 | G30: 1887.695312
L31: % Il. Conn | M31: tariff | N31: Sub | O31: Customer Disc
L32: =(0.2246*M32-0.0118)*0.4+(-0.09*N32+0.0983)*0.4+IF(O32="Yes",0,1)*0.2*0.1 -> 0.07952 | M32: 0.5 | N32: 0 | O32: Yes
L33: =(0.2246*M33-0.0118)*0.4+(-0.09*N33+0.0983)*0.4+IF(O33="Yes",0,1)*0.2*0.1 -> 0.038168 | M33: 0.2 | N33: 0.4 | O33: Yes
L34: 0.007584 | M34: 0.1 | N34: 1 | O34: Yes
D35: Eff % | E35: SOPS/7732 | F35: No Con/ bill col | L35: 0.09952 | M35: 0.5 | N35: 0 | O35: No
D36: =0.6*(1.00590067021-3.16861445688*EXP(-93431.7085275*F36^-1.47672030952))+(0.8823*LN(E36)+6.0483)*0.4 -> 0.9726948542 | E36: 0.003 | F36: 400 | L36: 0.058168 | M36: 0.2 | N36: 0.4 | O36: No
D37: =0.6*(1.00590067021-3.16861445688*EXP(-93431.7085275*F37^-1.47672030952))+(0.8823*LN(E37)+6.0483)*0.4 -> 0.9071648561 | E37: 0.0025 | F37: 600 | L37: 0.027584 | M37: 0.1 | N37: 1 | O37: No
D38: 0.7704440255 | E38: 0.002 | F38: 1000
D39: 0.4456324804 | E39: 0.0015 | F39: 1500
D40: 0.03853480482 | E40: 0.001 | F40: 2000
M42: =M27*$L$43 -> 2.552962963
L43: =0.61/0.27 -> 2.259259259 | M43: =M28*$L$43 -> 1.378148148
M44: 0.5105925926
G48: Unit cost | H48: Differences | I48: Change
D49: Workers | E49: Original | F49: 40 | G49: 1200 | H49: =F49/F52 -> 0.4444444444
D50: Workers | E50: Added | F50: 1 | G50: =F50*G49 -> 1200 | H50: =F50/F53 -> 1
D51: Workers | E51: Total | F51: =F49+F50 -> 41 | G51: =F51*G49 -> 49200 | H51: 0.4505494505
D52: Network | E52: Original | F52: 90 | G52: 22700
D53: Network | E53: Added | F53: 1 | G53: =F53*G52 -> 22700
D54: Network | E54: Total | F54: =F52+F53 -> 91 | G54: =F54*G52 -> 2065700

Sheet Bench1 (hidden)
N7: 0
N15: 0
A44: 44 | B44: Utility Efficiency

Sheet Calculations (hidden)
A1: 2 | E1: 1 | F1: 2 | G1: 3 | H1: 4 | I1: 5 | J1: 6 | K1: 7 | L1: 8 | M1: 9 | N1: 10
D2: Initial Value | E2: =YEAR(TODAY()) -> 2018 | F2: =E2+1 -> 2019 | G2: =F2+1 -> 2020 | H2: 2021 | I2: 2022 | J2: 2023 | K2: 2024 | L2: 2025 | M2: 2026 | N2: 2027
B3: Subsidy | C3: US$/m3 | D3: ='Yearly Decision'!E6 -> 0.4 | E3: =IF('Yearly Decision'!F6=0,D3,'Yearly Decision'!F6) -> 0.4 | F3: =IF('Yearly Decision'!G6=0,E3,'Yearly Decision'!G6) -> 0.4 | G3: =IF('Yearly Decision'!H6=0,F3,'Yearly Decision'!H6) -> 0.4 | H3: =IF('Yearly Decision'!I6=0,G3,'Yearly Decision'!I6) -> 0.4 | I3: =IF('Yearly Decision'!J6=0,H3,'Yearly Decision'!J6) -> 0.4 | J3: =IF('Yearly Decision'!K6=0,I3,'Yearly Decision'!K6) -> 0.4 | K3: =IF('Yearly Decision'!L6=0,J3,'Yearly Decision'!L6) -> 0.4 | L3: =IF('Yearly Decision'!M6=0,K3,'Yearly Decision'!M6) -> 0.4 | M3: =IF('Yearly Decision'!N6=0,L3,'Yearly Decision'!N6) -> 0.4 | N3: =IF('Yearly Decision'!O6=0,M3,'Yearly Decision'!O6) -> 0.4
B4: Tariff In-house | C4: US$/m3 | D4: ='Yearly Decision'!E7 -> 0.61 | E4: =IF('Yearly Decision'!F7=0,D4,'Yearly Decision'!F7) -> 0.61 | F4: =IF('Yearly Decision'!G7=0,E4,'Yearly Decision'!G7) -> 0.61 | G4: =IF('Yearly Decision'!H7=0,F4,'Yearly Decision'!H7) -> 0.61 | H4: =IF('Yearly Decision'!I7=0,G4,'Yearly Decision'!I7) -> 0.61 | I4: =IF('Yearly Decision'!J7=0,H4,'Yearly Decision'!J7) -> 0.61 | J4: =IF('Yearly Decision'!K7=0,I4,'Yearly Decision'!K7) -> 0.61 | K4: =IF('Yearly Decision'!L7=0,J4,'Yearly Decision'!L7) -> 0.61 | L4: =IF('Yearly Decision'!M7=0,K4,'Yearly Decision'!M7) -> 0.61 | M4: =IF('Yearly Decision'!N7=0,L4,'Yearly Decision'!N7) -> 0.61 | N4: =IF('Yearly Decision'!O7=0,M4,'Yearly Decision'!O7) -> 0.61
B5: Tariff Standpipe | C5: US$/m3 | D5: ='Yearly Decision'!E8 -> 1.04 | E5: =IF('Yearly Decision'!F8=0,D5,'Yearly Decision'!F8) -> 1.04 | F5: =IF('Yearly Decision'!G8=0,E5,'Yearly Decision'!G8) -> 1.04 | G5: =IF('Yearly Decision'!H8=0,F5,'Yearly Decision'!H8) -> 1.04 | H5: =IF('Yearly Decision'!I8=0,G5,'Yearly Decision'!I8) -> 1.04 | I5: =IF('Yearly Decision'!J8=0,H5,'Yearly Decision'!J8) -> 1.04 | J5: =IF('Yearly Decision'!K8=0,I5,'Yearly Decision'!K8) -> 1.04 | K5: =IF('Yearly Decision'!L8=0,J5,'Yearly Decision'!L8) -> 1.04 | L5: =IF('Yearly Decision'!M8=0,K5,'Yearly Decision'!M8) -> 1.04 | M5: =IF('Yearly Decision'!N8=0,L5,'Yearly Decision'!N8) -> 1.04 | N5: =IF('Yearly Decision'!O8=0,M5,'Yearly Decision'!O8) -> 1.04
B6: Un-metered trariff | C6: US$/Connection | D6: ='Yearly Decision'!E9 -> 150.21 | E6: =IF('Yearly Decision'!F9=0,D6,'Yearly Decision'!F9) -> 150.21 | F6: =IF('Yearly Decision'!G9=0,E6,'Yearly Decision'!G9) -> 150.21 | G6: =IF('Yearly Decision'!H9=0,F6,'Yearly Decision'!H9) -> 150.21 | H6: =IF('Yearly Decision'!I9=0,G6,'Yearly Decision'!I9) -> 150.21 | I6: =IF('Yearly Decision'!J9=0,H6,'Yearly Decision'!J9) -> 150.21 | J6: =IF('Yearly Decision'!K9=0,I6,'Yearly Decision'!K9) -> 150.21 | K6: =IF('Yearly Decision'!L9=0,J6,'Yearly Decision'!L9) -> 150.21 | L6: =IF('Yearly Decision'!M9=0,K6,'Yearly Decision'!M9) -> 150.21 | M6: =IF('Yearly Decision'!N9=0,L6,'Yearly Decision'!N9) -> 150.21 | N6: =IF('Yearly Decision'!O9=0,M6,'Yearly Decision'!O9) -> 150.21
B7: SUB-INDICATOR | C7: UNIT | D7: Initial Value | E7: Turn 1 | F7: Turn 2 | G7: Turn 3 | H7: Turn 4 | I7: Turn 5 | J7: Turn 6 | K7: Turn 7 | L7: Turn 8 | M7: Turn 9 | N7: Turn 10
B8: Financial Reserves | C8: US$ | D8: ='INI-VAL'!H13 -> 15000000 | E8: =D8+(E26-E29) -> 8506672.152 | F8: =E8+(F26-F29) -> 1313198.671 | G8: -6651071.758 | H8: -15424799.96 | I8: -25774241.36 | J8: -36942892.23 | K8: -48959400.05 | L8: -61280985.57 | M8: -74563185.85 | N8: -83450926.88
B9: Infraestructure | D9: =D8/$D$8 -> 1 | E9: =E8/$D$8 -> 0.5671114768 | F9: =F8/$D$8 -> 0.08754657806 | G9: -0.4434047839 | H9: -1.028319997 | I9: -1.718282757 | J9: -2.462859482 | K9: -3.263960003 | L9: -4.085399038 | M9: -4.970879056 | N9: -5.563395125
B10: In-house Connections | C10: No. | D10: ='INI-VAL'!H29 -> 50639 | E10: =D10+ROUND(((E20*'INI-VAL'!$H$29/'INI-VAL'!$H$46-D10)*0.7+(E20*'INI-VAL'!$H$29/'INI-VAL'!$H$46-D10)*E100*0.3),0) -> 50639 | F10: =E10+ROUND(((F20*'INI-VAL'!$H$29/'INI-VAL'!$H$46-E10)*0.7+(F20*'INI-VAL'!$H$29/'INI-VAL'!$H$46-E10)*F100*0.3),0) -> 50639 | G10: =F10+ROUND(((G20*'INI-VAL'!$H$29/'INI-VAL'!$H$46-F10)*0.7+(G20*'INI-VAL'!$H$29/'INI-VAL'!$H$46-F10)*G100*0.3),0) -> 50639 | H10: =G10+ROUND(((H20*'INI-VAL'!$H$29/'INI-VAL'!$H$46-G10)*0.7+(H20*'INI-VAL'!$H$29/'INI-VAL'!$H$46-G10)*H100*0.3),0) -> 50639 | I10: =H10+ROUND(((I20*'INI-VAL'!$H$29/'INI-VAL'!$H$46-H10)*0.7+(I20*'INI-VAL'!$H$29/'INI-VAL'!$H$46-H10)*I100*0.3),0) -> 50639 | J10: =I10+ROUND(((J20*'INI-VAL'!$H$29/'INI-VAL'!$H$46-I10)*0.7+(J20*'INI-VAL'!$H$29/'INI-VAL'!$H$46-I10)*J100*0.3),0) -> 50639 | K10: =J10+ROUND(((K20*'INI-VAL'!$H$29/'INI-VAL'!$H$46-J10)*0.7+(K20*'INI-VAL'!$H$29/'INI-VAL'!$H$46-J10)*K100*0.3),0) -> 50639 | L10: =K10+ROUND(((L20*'INI-VAL'!$H$29/'INI-VAL'!$H$46-K10)*0.7+(L20*'INI-VAL'!$H$29/'INI-VAL'!$H$46-K10)*L100*0.3),0) -> 50639 | M10: =L10+ROUND(((M20*'INI-VAL'!$H$29/'INI-VAL'!$H$46-L10)*0.7+(M20*'INI-VAL'!$H$29/'INI-VAL'!$H$46-L10)*M100*0.3),0) -> 50639 | N10: =M10+ROUND(((N20*'INI-VAL'!$H$29/'INI-VAL'!$H$46-M10)*0.7+(N20*'INI-VAL'!$H$29/'INI-VAL'!$H$46-M10)*N100*0.3),0) -> 50639
B11: Water Kiosk | C11: No. | D11: ='INI-VAL'!H49 -> 626 | E11: =D11+'Yearly Decision'!F11 -> 626 | F11: =E11+'Yearly Decision'!G11 -> 626 | G11: =F11+'Yearly Decision'!H11 -> 626 | H11: =G11+'Yearly Decision'!I11 -> 626 | I11: =H11+'Yearly Decision'!J11 -> 626 | J11: =I11+'Yearly Decision'!K11 -> 626 | K11: =J11+'Yearly Decision'!L11 -> 626 | L11: =K11+'Yearly Decision'!M11 -> 626 | M11: =L11+'Yearly Decision'!N11 -> 626 | N11: =M11+'Yearly Decision'!O11 -> 626
B12: Water Kiosk Connection Availability | C12: No. | D12: =(D20-$D$20)*0.72222222222222 -> 0 | E12: =ROUND((E20-$D$20)-(E11-$D$11),0) -> 0 | F12: =ROUND((F20-$D$20)-(F11-$D$11),0) -> 0 | G12: 0 | H12: 0 | I12: 0 | J12: 0 | K12: 0 | L12: 0 | M12: 0 | N12: 0
B13: No. Meters (Total) | C13: No. | D13: =SUM('Yearly Decision'!E15:E17) -> 16711 | E13: =D13+SUM('Yearly Decision'!F15:F17) -> 16711 | F13: =E13+SUM('Yearly Decision'!G15:G17) -> 16711 | G13: =F13+SUM('Yearly Decision'!H15:H17) -> 16711 | H13: =G13+SUM('Yearly Decision'!I15:I17) -> 16711 | I13: =H13+SUM('Yearly Decision'!J15:J17) -> 16711 | J13: =I13+SUM('Yearly Decision'!K15:K17) -> 16711 | K13: =J13+SUM('Yearly Decision'!L15:L17) -> 16711 | L13: =K13+SUM('Yearly Decision'!M15:M17) -> 16711 | M13: =L13+SUM('Yearly Decision'!N15:N17) -> 16711 | N13: =M13+SUM('Yearly Decision'!O15:O17) -> 16711
B14: Un-metered in-house connections | C14: No. | D14: =D10-D13 -> 33928 | E14: =E10-E13 -> 33928 | F14: 33928 | G14: 33928 | H14: 33928 | I14: 33928 | J14: 33928 | K14: 33928 | L14: 33928 | M14: 33928 | N14: 33928
B15: Demography
B16: GDP per capita | C16: U$D/year | D16: ='INI-VAL'!H35 -> 3004 | E16: =D16*(1+'INI-VAL'!$D$12) -> 3094.12 | F16: =E16*(1+'INI-VAL'!$D$12) -> 3186.9436 | G16: =F16*(1+'INI-VAL'!$D$12) -> 3282.551908 | H16: =G16*(1+'INI-VAL'!$D$12) -> 3381.028465 | I16: =H16*(1+'INI-VAL'!$D$12) -> 3482.459319 | J16: =I16*(1+'INI-VAL'!$D$12) -> 3586.933099 | K16: =J16*(1+'INI-VAL'!$D$12) -> 3694.541092 | L16: =K16*(1+'INI-VAL'!$D$12) -> 3805.377324 | M16: =L16*(1+'INI-VAL'!$D$12) -> 3919.538644 | N16: =M16*(1+'INI-VAL'!$D$12) -> 4037.124804
B17: Population | C17: Inhab. | D17: ='INI-VAL'!H28 -> 1077116 | E17: =ROUND(D17*1.018,0) -> 1096504 | F17: =ROUND(E17*1.018,0) -> 1116241 | G17: =ROUND(F17*1.018,0) -> 1136333 | H17: 1156787 | I17: 1177609 | J17: 1198806 | K17: 1220385 | L17: 1242352 | M17: 1264714 | N17: 1287479
B18: Population Served | C18: Inhab. | D18: =D10*'INI-VAL'!$H$54+Calculations!D11*'INI-VAL'!$H$55 -> 846442 | E18: =E10*'INI-VAL'!$H$54+Calculations!E11*'INI-VAL'!$H$55 -> 846442 | F18: =F10*'INI-VAL'!$H$54+Calculations!F11*'INI-VAL'!$H$55 -> 846442 | G18: =G10*'INI-VAL'!$H$54+Calculations!G11*'INI-VAL'!$H$55 -> 846442 | H18: =H10*'INI-VAL'!$H$54+Calculations!H11*'INI-VAL'!$H$55 -> 846442 | I18: =I10*'INI-VAL'!$H$54+Calculations!I11*'INI-VAL'!$H$55 -> 846442 | J18: =J10*'INI-VAL'!$H$54+Calculations!J11*'INI-VAL'!$H$55 -> 846442 | K18: =K10*'INI-VAL'!$H$54+Calculations!K11*'INI-VAL'!$H$55 -> 846442 | L18: =L10*'INI-VAL'!$H$54+Calculations!L11*'INI-VAL'!$H$55 -> 846442 | M18: =M10*'INI-VAL'!$H$54+Calculations!M11*'INI-VAL'!$H$55 -> 846442 | N18: =N10*'INI-VAL'!$H$54+Calculations!N11*'INI-VAL'!$H$55 -> 846442
B19: Illegal Connections | C19: No. | D19: =ROUND(D10*'INI-VAL'!$H$23,0) -> 2532 | E19: =IF(E4=0,D19,IF(ROUND(((0.0994*E4-0.0118)*0.5+(-0.0882*E3+0.0945)*0.5)*E10,0)<0,0,ROUND(((0.0994*E4-0.0118)*0.5+(-0.0882*E3+0.0945)*0.5)*E10,0))) -> 2736 | F19: 2736 | G19: =IF(G4=0,F19,IF(ROUND(((0.0994*G4-0.0118)*0.5+(-0.0882*G3+0.0945)*0.5)*G10,0)<0,0,ROUND(((0.0994*G4-0.0118)*0.5+(-0.0882*G3+0.0945)*0.5)*G10,0))) -> 2736 | H19: =IF(H4=0,G19,IF(ROUND(((0.0994*H4-0.0118)*0.5+(-0.0882*H3+0.0945)*0.5)*H10,0)<0,0,ROUND(((0.0994*H4-0.0118)*0.5+(-0.0882*H3+0.0945)*0.5)*H10,0))) -> 2736 | I19: 2736 | J19: 2736 | K19: 2736 | L19: 2736 | M19: 2736 | N19: 2736
B20: Network Size | C20: km | D20: ='INI-VAL'!H46 -> 1051 | E20: =D20+'Yearly Decision'!F12 -> 1051 | F20: =E20+'Yearly Decision'!G12 -> 1051 | G20: =F20+'Yearly Decision'!H12 -> 1051 | H20: =G20+'Yearly Decision'!I12 -> 1051 | I20: =H20+'Yearly Decision'!J12 -> 1051 | J20: =I20+'Yearly Decision'!K12 -> 1051 | K20: =J20+'Yearly Decision'!L12 -> 1051 | L20: =K20+'Yearly Decision'!M12 -> 1051 | M20: =L20+'Yearly Decision'!N12 -> 1051 | N20: =M20+'Yearly Decision'!O12 -> 1051
B21: Vol. Treated (Produced) | C21: m3 | D21: ='INI-VAL'!H41 -> 34936340 | E21: =IF(($D$21+SUM('Yearly Decision'!$F$13:F13))>=(Calculations!$D$22+SUM('Yearly Decision'!$F$14:F14)),Calculations!$D$22+SUM('Yearly Decision'!$F$14:F14),$D$21+SUM('Yearly Decision'!$F$13:F13)) -> 34936340 | F21: =IF(($D$21+SUM('Yearly Decision'!$F$13:G13))>=(Calculations!$D$22+SUM('Yearly Decision'!$F$14:G14)),Calculations!$D$22+SUM('Yearly Decision'!$F$14:G14),$D$21+SUM('Yearly Decision'!$F$13:G13)) -> 34936340 | G21: =IF(($D$21+SUM('Yearly Decision'!$F$13:H13))>=(Calculations!$D$22+SUM('Yearly Decision'!$F$14:H14)),Calculations!$D$22+SUM('Yearly Decision'!$F$14:H14),$D$21+SUM('Yearly Decision'!$F$13:H13)) -> 34936340 | H21: =IF(($D$21+SUM('Yearly Decision'!$F$13:I13))>=(Calculations!$D$22+SUM('Yearly Decision'!$F$14:I14)),Calculations!$D$22+SUM('Yearly Decision'!$F$14:I14),$D$21+SUM('Yearly Decision'!$F$13:I13)) -> 34936340 | I21: =IF(($D$21+SUM('Yearly Decision'!$F$13:J13))>=(Calculations!$D$22+SUM('Yearly Decision'!$F$14:J14)),Calculations!$D$22+SUM('Yearly Decision'!$F$14:J14),$D$21+SUM('Yearly Decision'!$F$13:J13))*'INI-VAL'!$D$15 -> 26202255 | J21: =IF(($D$21+SUM('Yearly Decision'!$F$13:K13))>=(Calculations!$D$22+SUM('Yearly Decision'!$F$14:K14)),Calculations!$D$22+SUM('Yearly Decision'!$F$14:K14),$D$21+SUM('Yearly Decision'!$F$13:K13))*'INI-VAL'!$D$15 -> 26202255 | K21: =IF(($D$21+SUM('Yearly Decision'!$F$13:L13))>=(Calculations!$D$22+SUM('Yearly Decision'!$F$14:L14)),Calculations!$D$22+SUM('Yearly Decision'!$F$14:L14),$D$21+SUM('Yearly Decision'!$F$13:L13))*'INI-VAL'!$D$15 -> 26202255 | L21: =IF(($D$21+SUM('Yearly Decision'!$F$13:M13))>=(Calculations!$D$22+SUM('Yearly Decision'!$F$14:M14)),Calculations!$D$22+SUM('Yearly Decision'!$F$14:M14),$D$21+SUM('Yearly Decision'!$F$13:M13)) -> 34936340 | M21: =IF(($D$21+SUM('Yearly Decision'!$F$13:N13))>=(Calculations!$D$22+SUM('Yearly Decision'!$F$14:N14)),Calculations!$D$22+SUM('Yearly Decision'!$F$14:N14),$D$21+SUM('Yearly Decision'!$F$13:N13)) -> 34936340 | N21: =IF(($D$21+SUM('Yearly Decision'!$F$13:O13))>=(Calculations!$D$22+SUM('Yearly Decision'!$F$14:O14)),Calculations!$D$22+SUM('Yearly Decision'!$F$14:O14),$D$21+SUM('Yearly Decision'!$F$13:O13)) -> 34936340
B22: Vol. Resource Available | C22: m3 | D22: ='INI-VAL'!H42 -> 34936340 | E22: =IF(($D$21+SUM('Yearly Decision'!$F$13:F13))>=(Calculations!$D$22+SUM('Yearly Decision'!$F$14:F14)),Calculations!$D$22+SUM('Yearly Decision'!$F$14:F14),$D$21+SUM('Yearly Decision'!$F$13:F13)) -> 34936340 | F22: =IF(($D$21+SUM('Yearly Decision'!$F$13:G13))>=(Calculations!$D$22+SUM('Yearly Decision'!$F$14:G14)),Calculations!$D$22+SUM('Yearly Decision'!$F$14:G14),$D$21+SUM('Yearly Decision'!$F$13:G13)) -> 34936340 | G22: =IF(($D$21+SUM('Yearly Decision'!$F$13:H13))>=(Calculations!$D$22+SUM('Yearly Decision'!$F$14:H14)),Calculations!$D$22+SUM('Yearly Decision'!$F$14:H14),$D$21+SUM('Yearly Decision'!$F$13:H13)) -> 34936340 | H22: =IF(($D$21+SUM('Yearly Decision'!$F$13:I13))>=(Calculations!$D$22+SUM('Yearly Decision'!$F$14:I14)),Calculations!$D$22+SUM('Yearly Decision'!$F$14:I14),$D$21+SUM('Yearly Decision'!$F$13:I13)) -> 34936340 | I22: =IF(($D$21+SUM('Yearly Decision'!$F$13:J13))>=(Calculations!$D$22+SUM('Yearly Decision'!$F$14:J14)),Calculations!$D$22+SUM('Yearly Decision'!$F$14:J14),$D$21+SUM('Yearly Decision'!$F$13:J13))*'INI-VAL'!$D$15 -> 26202255 | J22: =IF(($D$21+SUM('Yearly Decision'!$F$13:K13))>=(Calculations!$D$22+SUM('Yearly Decision'!$F$14:K14)),Calculations!$D$22+SUM('Yearly Decision'!$F$14:K14),$D$21+SUM('Yearly Decision'!$F$13:K13))*'INI-VAL'!$D$15 -> 26202255 | K22: =IF(($D$21+SUM('Yearly Decision'!$F$13:L13))>=(Calculations!$D$22+SUM('Yearly Decision'!$F$14:L14)),Calculations!$D$22+SUM('Yearly Decision'!$F$14:L14),$D$21+SUM('Yearly Decision'!$F$13:L13))*'INI-VAL'!$D$15 -> 26202255 | L22: =IF(($D$21+SUM('Yearly Decision'!$F$13:M13))>=(Calculations!$D$22+SUM('Yearly Decision'!$F$14:M14)),Calculations!$D$22+SUM('Yearly Decision'!$F$14:M14),$D$21+SUM('Yearly Decision'!$F$13:M13)) -> 34936340 | M22: =IF(($D$21+SUM('Yearly Decision'!$F$13:N13))>=(Calculations!$D$22+SUM('Yearly Decision'!$F$14:N14)),Calculations!$D$22+SUM('Yearly Decision'!$F$14:N14),$D$21+SUM('Yearly Decision'!$F$13:N13)) -> 34936340 | N22: =IF(($D$21+SUM('Yearly Decision'!$F$13:O13))>=(Calculations!$D$22+SUM('Yearly Decision'!$F$14:O14)),Calculations!$D$22+SUM('Yearly Decision'!$F$14:O14),$D$21+SUM('Yearly Decision'!$F$13:O13)) -> 34936340
B23: Vol. Lost | C23: m3 | D23: =D22*(D91+D94) -> 16070750.9 | E23: 19392439.66 | F23: 20226623.63 | G23: 21060807.61 | H23: 21894991.58 | I23: 17045273.43 | J23: 17669303.18 | K23: 18293332.92 | L23: 25225294.54 | M23: 26059478.51 | N23: 5730590.485
B24: Vol. Supplied | C24: m3 | D24: =D21-D23 -> 18865589.1 | E24: =E21-E23 -> 15543900.34 | F24: =F21-F23 -> 14709716.37 | G24: 13875532.39 | H24: 13041348.42 | I24: 9156981.569 | J24: 8532951.824 | K24: 7908922.079 | L24: 9711045.464 | M24: 8876861.49 | N24: 29205749.51
B25: Full Cost Recovery Ratio | C25: - | D25: =IFERROR(IF(D26/D29<0,0,D26/D29),0) -> 0.7260154969 | E25: =IFERROR(IF(E26/E29<0,0,E26/E29),0) -> 0.5367016664 | F25: 0.5053884608 | G25: 0.4723945919 | H25: 0.4401182991 | I25: 0.3638538791 | J25: 0.3388656499 | K25: 0.3150755908 | L25: 0.3239529308 | M25: 0.298603665 | N25: 0.5483419279
B26: Total Income | C26: US$ | D26: =((D117*(D13/D10)*D4*D81)+(D14*D6*D83))+(D120*D5*D82) -> 8310699.393 | E26: 7522107.513 | F26: 7350209.612 | G26: 7130856.169 | H26: 6896953.995 | I26: 5919527.409 | J26: 5724512.931 | K26: 5527775.401 | L26: 5904342.943 | M26: 5654597.097 | N26: 10790288.84
B27: Water consumed by customers | C27: m3 | D27: =D24 -> 18865589.1 | E27: =E24 -> 15543900.34 | F27: 14709716.37 | G27: 13875532.39 | H27: 13041348.42 | I27: 9156981.569 | J27: 8532951.824 | K27: 7908922.079 | L27: 9711045.464 | M27: 8876861.49 | N27: 29205749.51
B28: Collection Efficiency Average | C28: Dim. | D28: =D80 -> 0.7224982084 | E28: =E80 -> 0.7272670877 | F28: =F80 -> 0.7319708819 | G28: 0.7305820296 | H28: 0.7271748389 | I28: 0.7233506953 | J28: 0.7175182741 | K28: 0.711222198 | L28: 0.7034759276 | M28: 0.6967149567 | N28: 0.7135638765
B29: Total Cost | C29: US$ | D29: =D30+D37+D42+D48 -> 11447000 | E29: =E30+E37+E42+E48 -> 14015435.36 | F29: 14543683.09 | G29: 15095126.6 | H29: 15670682.2 | I29: 16268968.81 | J29: 16893163.8 | K29: 17544283.22 | L29: 18225928.47 | M29: 18936797.37 | N29: 19678029.87
B30: Staff Cost | C30: US$/year | D30: =SUM(D31:D36) -> 4572000 | E30: =SUM(E31:E36) -> 4572000 | F30: 4572000 | G30: 4572000 | H30: 4572000 | I30: 4572000 | J30: 4572000 | K30: 4572000 | L30: 4572000 | M30: 4572000 | N30: 4572000
B31: Director | C31: US$/year | D31: ='Yearly Decision'!E19*'Yearly Costs'!$D$17 -> 1140000 | E31: =('Yearly Decision'!$E19+SUM('Yearly Decision'!$F19:F19))*'Yearly Costs'!$D17 -> 1140000 | F31: =('Yearly Decision'!$E19+SUM('Yearly Decision'!$F19:G19))*'Yearly Costs'!$D17 -> 1140000 | G31: =('Yearly Decision'!$E19+SUM('Yearly Decision'!$F19:H19))*'Yearly Costs'!$D17 -> 1140000 | H31: =('Yearly Decision'!$E19+SUM('Yearly Decision'!$F19:I19))*'Yearly Costs'!$D17 -> 1140000 | I31: =('Yearly Decision'!$E19+SUM('Yearly Decision'!$F19:J19))*'Yearly Costs'!$D17 -> 1140000 | J31: =('Yearly Decision'!$E19+SUM('Yearly Decision'!$F19:K19))*'Yearly Costs'!$D17 -> 1140000 | K31: =('Yearly Decision'!$E19+SUM('Yearly Decision'!$F19:L19))*'Yearly Costs'!$D17 -> 1140000 | L31: =('Yearly Decision'!$E19+SUM('Yearly Decision'!$F19:M19))*'Yearly Costs'!$D17 -> 1140000 | M31: =('Yearly Decision'!$E19+SUM('Yearly Decision'!$F19:N19))*'Yearly Costs'!$D17 -> 1140000 | N31: =('Yearly Decision'!$E19+SUM('Yearly Decision'!$F19:O19))*'Yearly Costs'!$D17 -> 1140000
B32: Manager | C32: US$/year | D32: ='Yearly Decision'!E20*'Yearly Costs'!$D$18 -> 1950000 | E32: =('Yearly Decision'!$E20+SUM('Yearly Decision'!$F20:F20))*'Yearly Costs'!$D18 -> 1950000 | F32: =('Yearly Decision'!$E20+SUM('Yearly Decision'!$F20:G20))*'Yearly Costs'!$D18 -> 1950000 | G32: =('Yearly Decision'!$E20+SUM('Yearly Decision'!$F20:H20))*'Yearly Costs'!$D18 -> 1950000 | H32: =('Yearly Decision'!$E20+SUM('Yearly Decision'!$F20:I20))*'Yearly Costs'!$D18 -> 1950000 | I32: =('Yearly Decision'!$E20+SUM('Yearly Decision'!$F20:J20))*'Yearly Costs'!$D18 -> 1950000 | J32: =('Yearly Decision'!$E20+SUM('Yearly Decision'!$F20:K20))*'Yearly Costs'!$D18 -> 1950000 | K32: =('Yearly Decision'!$E20+SUM('Yearly Decision'!$F20:L20))*'Yearly Costs'!$D18 -> 1950000 | L32: =('Yearly Decision'!$E20+SUM('Yearly Decision'!$F20:M20))*'Yearly Costs'!$D18 -> 1950000 | M32: =('Yearly Decision'!$E20+SUM('Yearly Decision'!$F20:N20))*'Yearly Costs'!$D18 -> 1950000 | N32: =('Yearly Decision'!$E20+SUM('Yearly Decision'!$F20:O20))*'Yearly Costs'!$D18 -> 1950000
B33: Workers | C33: US$/year | D33: ='Yearly Decision'!E21*'Yearly Costs'!$D$19 -> 780000 | E33: =('Yearly Decision'!$E21+SUM('Yearly Decision'!$F21:F21))*'Yearly Costs'!$D19 -> 780000 | F33: =('Yearly Decision'!$E21+SUM('Yearly Decision'!$F21:G21))*'Yearly Costs'!$D19 -> 780000 | G33: =('Yearly Decision'!$E21+SUM('Yearly Decision'!$F21:H21))*'Yearly Costs'!$D19 -> 780000 | H33: =('Yearly Decision'!$E21+SUM('Yearly Decision'!$F21:I21))*'Yearly Costs'!$D19 -> 780000 | I33: =('Yearly Decision'!$E21+SUM('Yearly Decision'!$F21:J21))*'Yearly Costs'!$D19 -> 780000 | J33: =('Yearly Decision'!$E21+SUM('Yearly Decision'!$F21:K21))*'Yearly Costs'!$D19 -> 780000 | K33: =('Yearly Decision'!$E21+SUM('Yearly Decision'!$F21:L21))*'Yearly Costs'!$D19 -> 780000 | L33: =('Yearly Decision'!$E21+SUM('Yearly Decision'!$F21:M21))*'Yearly Costs'!$D19 -> 780000 | M33: =('Yearly Decision'!$E21+SUM('Yearly Decision'!$F21:N21))*'Yearly Costs'!$D19 -> 780000 | N33: =('Yearly Decision'!$E21+SUM('Yearly Decision'!$F21:O21))*'Yearly Costs'!$D19 -> 780000
B34: Bill Collectors | C34: US$/year | D34: ='Yearly Decision'!E22*'Yearly Costs'!$D$20 -> 156000 | E34: =('Yearly Decision'!$E22+SUM('Yearly Decision'!$F22:F22))*'Yearly Costs'!$D20 -> 156000 | F34: =('Yearly Decision'!$E22+SUM('Yearly Decision'!$F22:G22))*'Yearly Costs'!$D20 -> 156000 | G34: =('Yearly Decision'!$E22+SUM('Yearly Decision'!$F22:H22))*'Yearly Costs'!$D20 -> 156000 | H34: =('Yearly Decision'!$E22+SUM('Yearly Decision'!$F22:I22))*'Yearly Costs'!$D20 -> 156000 | I34: =('Yearly Decision'!$E22+SUM('Yearly Decision'!$F22:J22))*'Yearly Costs'!$D20 -> 156000 | J34: =('Yearly Decision'!$E22+SUM('Yearly Decision'!$F22:K22))*'Yearly Costs'!$D20 -> 156000 | K34: =('Yearly Decision'!$E22+SUM('Yearly Decision'!$F22:L22))*'Yearly Costs'!$D20 -> 156000 | L34: =('Yearly Decision'!$E22+SUM('Yearly Decision'!$F22:M22))*'Yearly Costs'!$D20 -> 156000 | M34: =('Yearly Decision'!$E22+SUM('Yearly Decision'!$F22:N22))*'Yearly Costs'!$D20 -> 156000 | N34: =('Yearly Decision'!$E22+SUM('Yearly Decision'!$F22:O22))*'Yearly Costs'!$D20 -> 156000
B35: Costumer Sevices Employees | C35: US$/year | D35: ='Yearly Decision'!E23*'Yearly Costs'!$D$21 -> 546000 | E35: =('Yearly Decision'!$E23+SUM('Yearly Decision'!$F23:F23))*'Yearly Costs'!$D21 -> 546000 | F35: =('Yearly Decision'!$E23+SUM('Yearly Decision'!$F23:G23))*'Yearly Costs'!$D21 -> 546000 | G35: =('Yearly Decision'!$E23+SUM('Yearly Decision'!$F23:H23))*'Yearly Costs'!$D21 -> 546000 | H35: =('Yearly Decision'!$E23+SUM('Yearly Decision'!$F23:I23))*'Yearly Costs'!$D21 -> 546000 | I35: =('Yearly Decision'!$E23+SUM('Yearly Decision'!$F23:J23))*'Yearly Costs'!$D21 -> 546000 | J35: =('Yearly Decision'!$E23+SUM('Yearly Decision'!$F23:K23))*'Yearly Costs'!$D21 -> 546000 | K35: =('Yearly Decision'!$E23+SUM('Yearly Decision'!$F23:L23))*'Yearly Costs'!$D21 -> 546000 | L35: =('Yearly Decision'!$E23+SUM('Yearly Decision'!$F23:M23))*'Yearly Costs'!$D21 -> 546000 | M35: =('Yearly Decision'!$E23+SUM('Yearly Decision'!$F23:N23))*'Yearly Costs'!$D21 -> 546000 | N35: =('Yearly Decision'!$E23+SUM('Yearly Decision'!$F23:O23))*'Yearly Costs'!$D21 -> 546000
B36: Fired Staff | C36: US$/year | D36: 0 | E36: =IF('Yearly Decision'!F19<=0,ABS('Yearly Decision'!F19)*'Yearly Costs'!$D$17*0.5,0)+IF('Yearly Decision'!F20<=0,ABS('Yearly Decision'!F20)*'Yearly Costs'!$D$18*0.5,0)+IF('Yearly Decision'!F21<=0,ABS('Yearly Decision'!F21)*'Yearly Costs'!$D$19*0.5,0)+IF('Yearly Decision'!F22<=0,ABS('Yearly Decision'!F22)*'Yearly Costs'!$D$20*0.5,0)+IF('Yearly Decision'!F23<=0,ABS('Yearly Decision'!F23)*'Yearly Costs'!$D$21*0.5,0) -> 0 | F36: =IF('Yearly Decision'!G19<=0,ABS('Yearly Decision'!G19)*'Yearly Costs'!$D$17*0.5,0)+IF('Yearly Decision'!G20<=0,ABS('Yearly Decision'!G20)*'Yearly Costs'!$D$18*0.5,0)+IF('Yearly Decision'!G21<=0,ABS('Yearly Decision'!G21)*'Yearly Costs'!$D$19*0.5,0)+IF('Yearly Decision'!G22<=0,ABS('Yearly Decision'!G22)*'Yearly Costs'!$D$20*0.5,0)+IF('Yearly Decision'!G23<=0,ABS('Yearly Decision'!G23)*'Yearly Costs'!$D$21*0.5,0) -> 0 | G36: =IF('Yearly Decision'!H19<=0,ABS('Yearly Decision'!H19)*'Yearly Costs'!$D$17*0.5,0)+IF('Yearly Decision'!H20<=0,ABS('Yearly Decision'!H20)*'Yearly Costs'!$D$18*0.5,0)+IF('Yearly Decision'!H21<=0,ABS('Yearly Decision'!H21)*'Yearly Costs'!$D$19*0.5,0)+IF('Yearly Decision'!H22<=0,ABS('Yearly Decision'!H22)*'Yearly Costs'!$D$20*0.5,0)+IF('Yearly Decision'!H23<=0,ABS('Yearly Decision'!H23)*'Yearly Costs'!$D$21*0.5,0) -> 0 | H36: =IF('Yearly Decision'!I19<=0,ABS('Yearly Decision'!I19)*'Yearly Costs'!$D$17*0.5,0)+IF('Yearly Decision'!I20<=0,ABS('Yearly Decision'!I20)*'Yearly Costs'!$D$18*0.5,0)+IF('Yearly Decision'!I21<=0,ABS('Yearly Decision'!I21)*'Yearly Costs'!$D$19*0.5,0)+IF('Yearly Decision'!I22<=0,ABS('Yearly Decision'!I22)*'Yearly Costs'!$D$20*0.5,0)+IF('Yearly Decision'!I23<=0,ABS('Yearly Decision'!I23)*'Yearly Costs'!$D$21*0.5,0) -> 0 | I36: =IF('Yearly Decision'!J19<=0,ABS('Yearly Decision'!J19)*'Yearly Costs'!$D$17*0.5,0)+IF('Yearly Decision'!J20<=0,ABS('Yearly Decision'!J20)*'Yearly Costs'!$D$18*0.5,0)+IF('Yearly Decision'!J21<=0,ABS('Yearly Decision'!J21)*'Yearly Costs'!$D$19*0.5,0)+IF('Yearly Decision'!J22<=0,ABS('Yearly Decision'!J22)*'Yearly Costs'!$D$20*0.5,0)+IF('Yearly Decision'!J23<=0,ABS('Yearly Decision'!J23)*'Yearly Costs'!$D$21*0.5,0) -> 0 | J36: =IF('Yearly Decision'!K19<=0,ABS('Yearly Decision'!K19)*'Yearly Costs'!$D$17*0.5,0)+IF('Yearly Decision'!K20<=0,ABS('Yearly Decision'!K20)*'Yearly Costs'!$D$18*0.5,0)+IF('Yearly Decision'!K21<=0,ABS('Yearly Decision'!K21)*'Yearly Costs'!$D$19*0.5,0)+IF('Yearly Decision'!K22<=0,ABS('Yearly Decision'!K22)*'Yearly Costs'!$D$20*0.5,0)+IF('Yearly Decision'!K23<=0,ABS('Yearly Decision'!K23)*'Yearly Costs'!$D$21*0.5,0) -> 0 | K36: =IF('Yearly Decision'!L19<=0,ABS('Yearly Decision'!L19)*'Yearly Costs'!$D$17*0.5,0)+IF('Yearly Decision'!L20<=0,ABS('Yearly Decision'!L20)*'Yearly Costs'!$D$18*0.5,0)+IF('Yearly Decision'!L21<=0,ABS('Yearly Decision'!L21)*'Yearly Costs'!$D$19*0.5,0)+IF('Yearly Decision'!L22<=0,ABS('Yearly Decision'!L22)*'Yearly Costs'!$D$20*0.5,0)+IF('Yearly Decision'!L23<=0,ABS('Yearly Decision'!L23)*'Yearly Costs'!$D$21*0.5,0) -> 0 | L36: =IF('Yearly Decision'!M19<=0,ABS('Yearly Decision'!M19)*'Yearly Costs'!$D$17*0.5,0)+IF('Yearly Decision'!M20<=0,ABS('Yearly Decision'!M20)*'Yearly Costs'!$D$18*0.5,0)+IF('Yearly Decision'!M21<=0,ABS('Yearly Decision'!M21)*'Yearly Costs'!$D$19*0.5,0)+IF('Yearly Decision'!M22<=0,ABS('Yearly Decision'!M22)*'Yearly Costs'!$D$20*0.5,0)+IF('Yearly Decision'!M23<=0,ABS('Yearly Decision'!M23)*'Yearly Costs'!$D$21*0.5,0) -> 0 | M36: =IF('Yearly Decision'!N19<=0,ABS('Yearly Decision'!N19)*'Yearly Costs'!$D$17*0.5,0)+IF('Yearly Decision'!N20<=0,ABS('Yearly Decision'!N20)*'Yearly Costs'!$D$18*0.5,0)+IF('Yearly Decision'!N21<=0,ABS('Yearly Decision'!N21)*'Yearly Costs'!$D$19*0.5,0)+IF('Yearly Decision'!N22<=0,ABS('Yearly Decision'!N22)*'Yearly Costs'!$D$20*0.5,0)+IF('Yearly Decision'!N23<=0,ABS('Yearly Decision'!N23)*'Yearly Costs'!$D$21*0.5,0) -> 0 | N36: =IF('Yearly Decision'!O19<=0,ABS('Yearly Decision'!O19)*'Yearly Costs'!$D$17*0.5,0)+IF('Yearly Decision'!O20<=0,ABS('Yearly Decision'!O20)*'Yearly Costs'!$D$18*0.5,0)+IF('Yearly Decision'!O21<=0,ABS('Yearly Decision'!O21)*'Yearly Costs'!$D$19*0.5,0)+IF('Yearly Decision'!O22<=0,ABS('Yearly Decision'!O22)*'Yearly Costs'!$D$20*0.5,0)+IF('Yearly Decision'!O23<=0,ABS('Yearly Decision'!O23)*'Yearly Costs'!$D$21*0.5,0) -> 0
B37: Total Infraestructure Investment | C37: US$/year | D37: 0 | E37: =SUM(E38:E41) -> 0 | F37: 0 | G37: 0 | H37: 0 | I37: 0 | J37: 0 | K37: 0 | L37: 0 | M37: 0 | N37: 0
B38: Inv. Distribution | C38: US$/year | D38: 0 | E38: ='Yearly Costs'!F12 -> 0 | F38: ='Yearly Costs'!G12 -> 0 | G38: ='Yearly Costs'!H12 -> 0 | H38: ='Yearly Costs'!I12 -> 0 | I38: ='Yearly Costs'!J12 -> 0 | J38: ='Yearly Costs'!K12 -> 0 | K38: ='Yearly Costs'!L12 -> 0 | L38: ='Yearly Costs'!M12 -> 0 | M38: ='Yearly Costs'!N12 -> 0 | N38: ='Yearly Costs'!O12 -> 0
B39: Inv. Production | C39: US$/year | D39: 0 | E39: ='Yearly Costs'!F13 -> 0 | F39: ='Yearly Costs'!G13 -> 0 | G39: ='Yearly Costs'!H13 -> 0 | H39: ='Yearly Costs'!I13 -> 0 | I39: ='Yearly Costs'!J13 -> 0 | J39: ='Yearly Costs'!K13 -> 0 | K39: ='Yearly Costs'!L13 -> 0 | L39: ='Yearly Costs'!M13 -> 0 | M39: ='Yearly Costs'!N13 -> 0 | N39: ='Yearly Costs'!O13 -> 0
B40: Inv. Resources | C40: US$/year | D40: 0 | E40: ='Yearly Costs'!F14 -> 0 | F40: ='Yearly Costs'!G14 -> 0 | G40: ='Yearly Costs'!H14 -> 0 | H40: ='Yearly Costs'!I14 -> 0 | I40: ='Yearly Costs'!J14 -> 0 | J40: ='Yearly Costs'!K14 -> 0 | K40: ='Yearly Costs'!L14 -> 0 | L40: ='Yearly Costs'!M14 -> 0 | M40: ='Yearly Costs'!N14 -> 0 | N40: ='Yearly Costs'!O14 -> 0
B41: Inv. Kiosks + Meters | C41: US$/year | D41: 0 | E41: =('Yearly Costs'!F11+'Yearly Costs'!F15) -> 0 | F41: =('Yearly Costs'!G11+'Yearly Costs'!G15) -> 0 | G41: =('Yearly Costs'!H11+'Yearly Costs'!H15) -> 0 | H41: =('Yearly Costs'!I11+'Yearly Costs'!I15) -> 0 | I41: =('Yearly Costs'!J11+'Yearly Costs'!J15) -> 0 | J41: =('Yearly Costs'!K11+'Yearly Costs'!K15) -> 0 | K41: =('Yearly Costs'!L11+'Yearly Costs'!L15) -> 0 | L41: =('Yearly Costs'!M11+'Yearly Costs'!M15) -> 0 | M41: =('Yearly Costs'!N11+'Yearly Costs'!N15) -> 0 | N41: =('Yearly Costs'!O11+'Yearly Costs'!O15) -> 0
B42: Total Operation & Maintenance | C42: US$/year | D42: =D78*0.1 -> 6875000 | E42: =(0.7*$D$42*(1+'INI-VAL'!$D$12)^E1)*E47+IF(SUM(E43:E46)<=(0.3*$D$42*(1+'INI-VAL'!$D$12)^E1),(0.3*$D$42*(1+'INI-VAL'!$D$12)^E1*E47),SUM(E43:E46)) -> 9443435.361 | F42: =(0.7*$D$42*(1+'INI-VAL'!$D$12)^F1)*F47+IF(SUM(F43:F46)<=(0.3*$D$42*(1+'INI-VAL'!$D$12)^F1),(0.3*$D$42*(1+'INI-VAL'!$D$12)^F1*F47),SUM(F43:F46)) -> 9971683.093 | G42: =(0.7*$D$42*(1+'INI-VAL'!$D$12)^G1)*G47+IF(SUM(G43:G46)<=(0.3*$D$42*(1+'INI-VAL'!$D$12)^G1),(0.3*$D$42*(1+'INI-VAL'!$D$12)^G1*G47),SUM(G43:G46)) -> 10523126.6 | H42: =(0.7*$D$42*(1+'INI-VAL'!$D$12)^H1)*H47+IF(SUM(H43:H46)<=(0.3*$D$42*(1+'INI-VAL'!$D$12)^H1),(0.3*$D$42*(1+'INI-VAL'!$D$12)^H1*H47),SUM(H43:H46)) -> 11098682.2 | I42: =(0.7*$D$42*(1+'INI-VAL'!$D$12)^I1)*I47+IF(SUM(I43:I46)<=(0.3*$D$42*(1+'INI-VAL'!$D$12)^I1),(0.3*$D$42*(1+'INI-VAL'!$D$12)^I1*I47),SUM(I43:I46)) -> 11696968.81 | J42: =(0.7*$D$42*(1+'INI-VAL'!$D$12)^J1)*J47+IF(SUM(J43:J46)<=(0.3*$D$42*(1+'INI-VAL'!$D$12)^J1),(0.3*$D$42*(1+'INI-VAL'!$D$12)^J1*J47),SUM(J43:J46)) -> 12321163.8 | K42: =(0.7*$D$42*(1+'INI-VAL'!$D$12)^K1)*K47+IF(SUM(K43:K46)<=(0.3*$D$42*(1+'INI-VAL'!$D$12)^K1),(0.3*$D$42*(1+'INI-VAL'!$D$12)^K1*K47),SUM(K43:K46)) -> 12972283.22 | L42: =(0.7*$D$42*(1+'INI-VAL'!$D$12)^L1)*L47+IF(SUM(L43:L46)<=(0.3*$D$42*(1+'INI-VAL'!$D$12)^L1),(0.3*$D$42*(1+'INI-VAL'!$D$12)^L1*L47),SUM(L43:L46)) -> 13653928.47 | M42: =(0.7*$D$42*(1+'INI-VAL'!$D$12)^M1)*M47+IF(SUM(M43:M46)<=(0.3*$D$42*(1+'INI-VAL'!$D$12)^M1),(0.3*$D$42*(1+'INI-VAL'!$D$12)^M1*M47),SUM(M43:M46)) -> 14364797.37 | N42: =(0.7*$D$42*(1+'INI-VAL'!$D$12)^N1)*N47+IF(SUM(N43:N46)<=(0.3*$D$42*(1+'INI-VAL'!$D$12)^N1),(0.3*$D$42*(1+'INI-VAL'!$D$12)^N1*N47),SUM(N43:N46)) -> 15106029.87
B43: Inv. O&Mdistribution (Network) | C43: US$/year | D43: 0 | E43: =('Yearly Costs'!F23)*$E$47 -> 0 | F43: =('Yearly Costs'!G23)*$F$47 -> 0 | G43: =('Yearly Costs'!H23)*F47*G47 -> 0 | H43: =('Yearly Costs'!I23)*G47*H47 -> 0 | I43: =('Yearly Costs'!J23)*H47*I47 -> 0 | J43: =('Yearly Costs'!K23)*I47*J47 -> 0 | K43: =('Yearly Costs'!L23)*J47*K47 -> 0 | L43: =('Yearly Costs'!M23)*K47*L47 -> 0 | M43: =('Yearly Costs'!N23)*L47*M47 -> 0 | N43: =('Yearly Costs'!O23)*M47*N47 -> 0
B44: Inv. O&MProduction (Treatment) | C44: US$/year | D44: 0 | E44: =('Yearly Costs'!F24)*$E$47 -> 0 | F44: =('Yearly Costs'!G24)*$F$47 -> 0 | G44: =('Yearly Costs'!H24)*F47*G47 -> 0 | H44: =('Yearly Costs'!I24)*G47*H47 -> 0 | I44: =('Yearly Costs'!J24)*H47*I47 -> 0 | J44: =('Yearly Costs'!K24)*I47*J47 -> 0 | K44: =('Yearly Costs'!L24)*J47*K47 -> 0 | L44: =('Yearly Costs'!M24)*K47*L47 -> 0 | M44: =('Yearly Costs'!N24)*L47*M47 -> 0 | N44: =('Yearly Costs'!O24)*M47*N47 -> 0
B45: Inv. O&MResources | C45: US$/year | D45: 0 | E45: =('Yearly Costs'!F25)*$E$47 -> 0 | F45: =('Yearly Costs'!G25)*$F$47 -> 0 | G45: =('Yearly Costs'!H25)*F47*G47 -> 0 | H45: =('Yearly Costs'!I25)*G47*H47 -> 0 | I45: =('Yearly Costs'!J25)*H47*I47 -> 0 | J45: =('Yearly Costs'!K25)*I47*J47 -> 0 | K45: =('Yearly Costs'!L25)*J47*K47 -> 0 | L45: =('Yearly Costs'!M25)*K47*L47 -> 0 | M45: =('Yearly Costs'!N25)*L47*M47 -> 0 | N45: =('Yearly Costs'!O25)*M47*N47 -> 0
B46: Inv. Meter Calibration Program | C46: US$/year | D46: 0 | E46: =('Yearly Costs'!F26)*$E$47 -> 0 | F46: =('Yearly Costs'!G26)*$F$47 -> 0 | G46: =('Yearly Costs'!H26)*F47*G47 -> 0 | H46: =('Yearly Costs'!I26)*G47*H47 -> 0 | I46: =('Yearly Costs'!J26)*H47*I47 -> 0 | J46: =('Yearly Costs'!K26)*I47*J47 -> 0 | K46: =('Yearly Costs'!L26)*J47*K47 -> 0 | L46: =('Yearly Costs'!M26)*K47*L47 -> 0 | M46: =('Yearly Costs'!N26)*L47*M47 -> 0 | N46: =('Yearly Costs'!O26)*M47*N47 -> 0
B47: O&M In-Efficiency | C47: % | D47: ='INI-VAL'!H9 -> 1.3 | E47: =IF(D47+0.1-(0.1*E54+0.4*(SUM($E$65:$G$65)/'INI-VAL'!$C$71)+0.3*IF((Calculations!E58/E20)<'INI-VAL'!$E$65,0,IF((Calculations!E58/E20)>'INI-VAL'!$C$65,1,(Calculations!E58/E20)/'INI-VAL'!$C$65))+0.2*(Calculations!E62/Calculations!E58)/'INI-VAL'!$C$74)*(1/4)<1,1,D47+0.1-(0.1*E54+0.4*(SUM($E$65:$G$65)/'INI-VAL'!$C$71)+0.3*IF((Calculations!E58/E20)<'INI-VAL'!$E$65,0,IF((Calculations!E58/E20)>'INI-VAL'!$C$65,1,(Calculations!E58/E20)/'INI-VAL'!$C$65))+0.2*(Calculations!E62/Calculations!E58)/'INI-VAL'!$C$74)*(1/4)) -> 1.333583105 | F47: =IF(E47+0.1-(0.1*F54+0.4*(SUM($E$65:$G$65)/'INI-VAL'!$C$71)+0.3*IF((Calculations!F58/F20)<'INI-VAL'!$E$65,0,IF((Calculations!F58/F20)>'INI-VAL'!$C$65,1,(Calculations!F58/F20)/'INI-VAL'!$C$65))+0.2*(Calculations!F62/Calculations!F58)/'INI-VAL'!$C$74)*(1/4)<1,1,E47+0.1-(0.1*F54+0.4*(SUM($E$65:$G$65)/'INI-VAL'!$C$71)+0.3*IF((Calculations!F58/F20)<'INI-VAL'!$E$65,0,IF((Calculations!F58/F20)>'INI-VAL'!$C$65,1,(Calculations!F58/F20)/'INI-VAL'!$C$65))+0.2*(Calculations!F62/Calculations!F58)/'INI-VAL'!$C$74)*(1/4)) -> 1.36716621 | G47: =IF(F47+0.1-(0.1*G54+0.4*(SUM($E$65:$G$65)/'INI-VAL'!$C$71)+0.3*IF((Calculations!G58/G20)<'INI-VAL'!$E$65,0,IF((Calculations!G58/G20)>'INI-VAL'!$C$65,1,(Calculations!G58/G20)/'INI-VAL'!$C$65))+0.2*(Calculations!G62/Calculations!G58)/'INI-VAL'!$C$74)*(1/4)<1,1,F47+0.1-(0.1*G54+0.4*(SUM($E$65:$G$65)/'INI-VAL'!$C$71)+0.3*IF((Calculations!G58/G20)<'INI-VAL'!$E$65,0,IF((Calculations!G58/G20)>'INI-VAL'!$C$65,1,(Calculations!G58/G20)/'INI-VAL'!$C$65))+0.2*(Calculations!G62/Calculations!G58)/'INI-VAL'!$C$74)*(1/4)) -> 1.400749314 | H47: =IF(G47+0.1-(0.1*H54+0.4*(SUM($E$65:$G$65)/'INI-VAL'!$C$71)+0.3*IF((Calculations!H58/H20)<'INI-VAL'!$E$65,0,IF((Calculations!H58/H20)>'INI-VAL'!$C$65,1,(Calculations!H58/H20)/'INI-VAL'!$C$65))+0.2*(Calculations!H62/Calculations!H58)/'INI-VAL'!$C$74)*(1/4)<1,1,G47+0.1-(0.1*H54+0.4*(SUM($E$65:$G$65)/'INI-VAL'!$C$71)+0.3*IF((Calculations!H58/H20)<'INI-VAL'!$E$65,0,IF((Calculations!H58/H20)>'INI-VAL'!$C$65,1,(Calculations!H58/H20)/'INI-VAL'!$C$65))+0.2*(Calculations!H62/Calculations!H58)/'INI-VAL'!$C$74)*(1/4)) -> 1.434332419 | I47: =IF(H47+0.1-(0.1*I54+0.4*(SUM($E$65:$G$65)/'INI-VAL'!$C$71)+0.3*IF((Calculations!I58/I20)<'INI-VAL'!$E$65,0,IF((Calculations!I58/I20)>'INI-VAL'!$C$65,1,(Calculations!I58/I20)/'INI-VAL'!$C$65))+0.2*(Calculations!I62/Calculations!I58)/'INI-VAL'!$C$74)*(1/4)<1,1,H47+0.1-(0.1*I54+0.4*(SUM($E$65:$G$65)/'INI-VAL'!$C$71)+0.3*IF((Calculations!I58/I20)<'INI-VAL'!$E$65,0,IF((Calculations!I58/I20)>'INI-VAL'!$C$65,1,(Calculations!I58/I20)/'INI-VAL'!$C$65))+0.2*(Calculations!I62/Calculations!I58)/'INI-VAL'!$C$74)*(1/4)) -> 1.467622988 | J47: =IF(I47+0.1-(0.1*J54+0.4*(SUM($E$65:$G$65)/'INI-VAL'!$C$71)+0.3*IF((Calculations!J58/J20)<'INI-VAL'!$E$65,0,IF((Calculations!J58/J20)>'INI-VAL'!$C$65,1,(Calculations!J58/J20)/'INI-VAL'!$C$65))+0.2*(Calculations!J62/Calculations!J58)/'INI-VAL'!$C$74)*(1/4)<1,1,I47+0.1-(0.1*J54+0.4*(SUM($E$65:$G$65)/'INI-VAL'!$C$71)+0.3*IF((Calculations!J58/J20)<'INI-VAL'!$E$65,0,IF((Calculations!J58/J20)>'INI-VAL'!$C$65,1,(Calculations!J58/J20)/'INI-VAL'!$C$65))+0.2*(Calculations!J62/Calculations!J58)/'INI-VAL'!$C$74)*(1/4)) -> 1.500913557 | K47: =IF(J47+0.1-(0.1*K54+0.4*(SUM($E$65:$G$65)/'INI-VAL'!$C$71)+0.3*IF((Calculations!K58/K20)<'INI-VAL'!$E$65,0,IF((Calculations!K58/K20)>'INI-VAL'!$C$65,1,(Calculations!K58/K20)/'INI-VAL'!$C$65))+0.2*(Calculations!K62/Calculations!K58)/'INI-VAL'!$C$74)*(1/4)<1,1,J47+0.1-(0.1*K54+0.4*(SUM($E$65:$G$65)/'INI-VAL'!$C$71)+0.3*IF((Calculations!K58/K20)<'INI-VAL'!$E$65,0,IF((Calculations!K58/K20)>'INI-VAL'!$C$65,1,(Calculations!K58/K20)/'INI-VAL'!$C$65))+0.2*(Calculations!K62/Calculations!K58)/'INI-VAL'!$C$74)*(1/4)) -> 1.534204127 | L47: =IF(K47+0.1-(0.1*L54+0.4*(SUM($E$65:$G$65)/'INI-VAL'!$C$71)+0.3*IF((Calculations!L58/L20)<'INI-VAL'!$E$65,0,IF((Calculations!L58/L20)>'INI-VAL'!$C$65,1,(Calculations!L58/L20)/'INI-VAL'!$C$65))+0.2*(Calculations!L62/Calculations!L58)/'INI-VAL'!$C$74)*(1/4)<1,1,K47+0.1-(0.1*L54+0.4*(SUM($E$65:$G$65)/'INI-VAL'!$C$71)+0.3*IF((Calculations!L58/L20)<'INI-VAL'!$E$65,0,IF((Calculations!L58/L20)>'INI-VAL'!$C$65,1,(Calculations!L58/L20)/'INI-VAL'!$C$65))+0.2*(Calculations!L62/Calculations!L58)/'INI-VAL'!$C$74)*(1/4)) -> 1.567787231 | M47: =IF(L47+0.1-(0.1*M54+0.4*(SUM($E$65:$G$65)/'INI-VAL'!$C$71)+0.3*IF((Calculations!M58/M20)<'INI-VAL'!$E$65,0,IF((Calculations!M58/M20)>'INI-VAL'!$C$65,1,(Calculations!M58/M20)/'INI-VAL'!$C$65))+0.2*(Calculations!M62/Calculations!M58)/'INI-VAL'!$C$74)*(1/4)<1,1,L47+0.1-(0.1*M54+0.4*(SUM($E$65:$G$65)/'INI-VAL'!$C$71)+0.3*IF((Calculations!M58/M20)<'INI-VAL'!$E$65,0,IF((Calculations!M58/M20)>'INI-VAL'!$C$65,1,(Calculations!M58/M20)/'INI-VAL'!$C$65))+0.2*(Calculations!M62/Calculations!M58)/'INI-VAL'!$C$74)*(1/4)) -> 1.601370336 | N47: =IF(M47+0.1-(0.1*N54+0.4*(SUM($E$65:$G$65)/'INI-VAL'!$C$71)+0.3*IF((Calculations!N58/N20)<'INI-VAL'!$E$65,0,IF((Calculations!N58/N20)>'INI-VAL'!$C$65,1,(Calculations!N58/N20)/'INI-VAL'!$C$65))+0.2*(Calculations!N62/Calculations!N58)/'INI-VAL'!$C$74)*(1/4)<1,1,M47+0.1-(0.1*N54+0.4*(SUM($E$65:$G$65)/'INI-VAL'!$C$71)+0.3*IF((Calculations!N58/N20)<'INI-VAL'!$E$65,0,IF((Calculations!N58/N20)>'INI-VAL'!$C$65,1,(Calculations!N58/N20)/'INI-VAL'!$C$65))+0.2*(Calculations!N62/Calculations!N58)/'INI-VAL'!$C$74)*(1/4)) -> 1.634953441
B48: Total Capacity Development Investment | C48: US$/year | D48: 0 | E48: =SUM(E49:E53) -> 0 | F48: =SUM(F49:F53) -> 0 | G48: 0 | H48: 0 | I48: 0 | J48: 0 | K48: 0 | L48: 0 | M48: 0 | N48: 0
B49: Additional Leakage Trainees | C49: US$/year | D49: 0 | E49: =E62*'Yearly Costs'!$D$28 -> 0 | F49: =F62*'Yearly Costs'!$D$28 -> 0 | G49: =G62*'Yearly Costs'!$D$28 -> 0 | H49: =H62*'Yearly Costs'!$D$28 -> 0 | I49: =I62*'Yearly Costs'!$D$28 -> 0 | J49: =J62*'Yearly Costs'!$D$28 -> 0 | K49: =K62*'Yearly Costs'!$D$28 -> 0 | L49: =L62*'Yearly Costs'!$D$28 -> 0 | M49: =M62*'Yearly Costs'!$D$28 -> 0 | N49: =N62*'Yearly Costs'!$D$28 -> 0
B50: Additional Staff training | C50: US$/year | D50: 0 | E50: =E63*'Yearly Costs'!$D$28 -> 0 | F50: =F63*'Yearly Costs'!$D$28 -> 0 | G50: =G63*'Yearly Costs'!$D$28 -> 0 | H50: =H63*'Yearly Costs'!$D$28 -> 0 | I50: =I63*'Yearly Costs'!$D$28 -> 0 | J50: =J63*'Yearly Costs'!$D$28 -> 0 | K50: =K63*'Yearly Costs'!$D$28 -> 0 | L50: =L63*'Yearly Costs'!$D$28 -> 0 | M50: =M63*'Yearly Costs'!$D$28 -> 0 | N50: =N63*'Yearly Costs'!$D$28 -> 0
B51: Additional Office technology | C51: US$/year | D51: 0 | E51: =E64*'Yearly Costs'!$D$28 -> 0 | F51: =F64*'Yearly Costs'!$D$28 -> 0 | G51: =G64*'Yearly Costs'!$D$28 -> 0 | H51: =H64*'Yearly Costs'!$D$28 -> 0 | I51: =I64*'Yearly Costs'!$D$28 -> 0 | J51: =J64*'Yearly Costs'!$D$28 -> 0 | K51: =K64*'Yearly Costs'!$D$28 -> 0 | L51: =L64*'Yearly Costs'!$D$28 -> 0 | M51: =M64*'Yearly Costs'!$D$28 -> 0 | N51: =N64*'Yearly Costs'!$D$28 -> 0
B52: SOPs | C52: US$/year | D52: 0 | E52: =E65*'Yearly Costs'!$D$28 -> 0 | F52: =F65*'Yearly Costs'!$D$28 -> 0 | G52: =G65*'Yearly Costs'!$D$28 -> 0 | H52: =H65*'Yearly Costs'!$D$28 -> 0 | I52: =I65*'Yearly Costs'!$D$28 -> 0 | J52: =J65*'Yearly Costs'!$D$28 -> 0 | K52: =K65*'Yearly Costs'!$D$28 -> 0 | L52: =L65*'Yearly Costs'!$D$28 -> 0 | M52: =M65*'Yearly Costs'!$D$28 -> 0 | N52: =N65*'Yearly Costs'!$D$28 -> 0
B53: Awareness Campaigns | C53: US$/year | D53: 0 | E53: =E66*'Yearly Costs'!$D$28 -> 0 | F53: =F66*'Yearly Costs'!$D$28 -> 0 | G53: =G66*'Yearly Costs'!$D$28 -> 0 | H53: =H66*'Yearly Costs'!$D$28 -> 0 | I53: =I66*'Yearly Costs'!$D$28 -> 0 | J53: =J66*'Yearly Costs'!$D$28 -> 0 | K53: =K66*'Yearly Costs'!$D$28 -> 0 | L53: =L66*'Yearly Costs'!$D$28 -> 0 | M53: =M66*'Yearly Costs'!$D$28 -> 0 | N53: =N66*'Yearly Costs'!$D$28 -> 0
B54: Utility Efficiency | C54: Ratio | D54: =IF((0.5*D55+0.5*D61)<0,0,IF((0.5*D55+0.5*D61)>1,1,(0.5*D55+0.5*D61))) -> 0.4478950549 | E54: =IF((0.5*E55+0.5*E61)<0,0,IF((0.5*E55+0.5*E61)>1,1,(0.5*E55+0.5*E61))) -> 0.4478950549 | F54: 0.4478950549 | G54: 0.4478950549 | H54: 0.4478950549 | I54: 0.4595964819 | J54: 0.4595964819 | K54: 0.4595964819 | L54: 0.4478950549 | M54: 0.4478950549 | N54: 0.4478950549
B55: Staff efficiency | C55: Ratio | D55: =IF((0.15*((D56/D57/'INI-VAL'!$C$63)*0.25+(D57/SUM(D58:D60)/'INI-VAL'!$C$64)*0.75)+0.25*(D58/Calculations!D20/'INI-VAL'!$C$65)+0.1*(Calculations!D58/Calculations!D21/'INI-VAL'!$C$66)+0.25*(Calculations!D59/Calculations!D10/'INI-VAL'!$C$67)+0.25*(Calculations!D60/Calculations!D10/'INI-VAL'!$C$68))>1,1,(0.15*((D56/D57/'INI-VAL'!$C$63)*0.25+(D57/SUM(D58:D60)/'INI-VAL'!$C$64)*0.75)+0.25*(D58/Calculations!D20/'INI-VAL'!$C$65)+0.1*(Calculations!D58/Calculations!D21/'INI-VAL'!$C$66)+0.25*(Calculations!D59/Calculations!D10/'INI-VAL'!$C$67)+0.25*(Calculations!D60/Calculations!D10/'INI-VAL'!$C$68))) -> 0.8957901099 | E55: =IF((0.15*((E56/E57/'INI-VAL'!$C$63)*0.25+(E57/SUM(E58:E60)/'INI-VAL'!$C$64)*0.75)+0.25*(E58/Calculations!E20/'INI-VAL'!$C$65)+0.1*(Calculations!E58/Calculations!E21/'INI-VAL'!$C$66)+0.25*(Calculations!E59/Calculations!E10/'INI-VAL'!$C$67)+0.25*(Calculations!E60/Calculations!E10/'INI-VAL'!$C$68))>1,1,(0.15*((E56/E57/'INI-VAL'!$C$63)*0.25+(E57/SUM(E58:E60)/'INI-VAL'!$C$64)*0.75)+0.25*(E58/Calculations!E20/'INI-VAL'!$C$65)+0.1*(Calculations!E58/Calculations!E21/'INI-VAL'!$C$66)+0.25*(Calculations!E59/Calculations!E10/'INI-VAL'!$C$67)+0.25*(Calculations!E60/Calculations!E10/'INI-VAL'!$C$68))) -> 0.8957901099 | F55: =IF((0.15*((F56/F57/'INI-VAL'!$C$63)*0.25+(F57/SUM(F58:F60)/'INI-VAL'!$C$64)*0.75)+0.25*(F58/Calculations!F20/'INI-VAL'!$C$65)+0.1*(Calculations!F58/Calculations!F21/'INI-VAL'!$C$66)+0.25*(Calculations!F59/Calculations!F10/'INI-VAL'!$C$67)+0.25*(Calculations!F60/Calculations!F10/'INI-VAL'!$C$68))>1,1,(0.15*((F56/F57/'INI-VAL'!$C$63)*0.25+(F57/SUM(F58:F60)/'INI-VAL'!$C$64)*0.75)+0.25*(F58/Calculations!F20/'INI-VAL'!$C$65)+0.1*(Calculations!F58/Calculations!F21/'INI-VAL'!$C$66)+0.25*(Calculations!F59/Calculations!F10/'INI-VAL'!$C$67)+0.25*(Calculations!F60/Calculations!F10/'INI-VAL'!$C$68))) -> 0.8957901099 | G55: =IF((0.15*((G56/G57/'INI-VAL'!$C$63)*0.25+(G57/SUM(G58:G60)/'INI-VAL'!$C$64)*0.75)+0.25*(G58/Calculations!G20/'INI-VAL'!$C$65)+0.1*(Calculations!G58/Calculations!G21/'INI-VAL'!$C$66)+0.25*(Calculations!G59/Calculations!G10/'INI-VAL'!$C$67)+0.25*(Calculations!G60/Calculations!G10/'INI-VAL'!$C$68))>1,1,(0.15*((G56/G57/'INI-VAL'!$C$63)*0.25+(G57/SUM(G58:G60)/'INI-VAL'!$C$64)*0.75)+0.25*(G58/Calculations!G20/'INI-VAL'!$C$65)+0.1*(Calculations!G58/Calculations!G21/'INI-VAL'!$C$66)+0.25*(Calculations!G59/Calculations!G10/'INI-VAL'!$C$67)+0.25*(Calculations!G60/Calculations!G10/'INI-VAL'!$C$68))) -> 0.8957901099 | H55: =IF((0.15*((H56/H57/'INI-VAL'!$C$63)*0.25+(H57/SUM(H58:H60)/'INI-VAL'!$C$64)*0.75)+0.25*(H58/Calculations!H20/'INI-VAL'!$C$65)+0.1*(Calculations!H58/Calculations!H21/'INI-VAL'!$C$66)+0.25*(Calculations!H59/Calculations!H10/'INI-VAL'!$C$67)+0.25*(Calculations!H60/Calculations!H10/'INI-VAL'!$C$68))>1,1,(0.15*((H56/H57/'INI-VAL'!$C$63)*0.25+(H57/SUM(H58:H60)/'INI-VAL'!$C$64)*0.75)+0.25*(H58/Calculations!H20/'INI-VAL'!$C$65)+0.1*(Calculations!H58/Calculations!H21/'INI-VAL'!$C$66)+0.25*(Calculations!H59/Calculations!H10/'INI-VAL'!$C$67)+0.25*(Calculations!H60/Calculations!H10/'INI-VAL'!$C$68))) -> 0.8957901099 | I55: =IF((0.15*((I56/I57/'INI-VAL'!$C$63)*0.25+(I57/SUM(I58:I60)/'INI-VAL'!$C$64)*0.75)+0.25*(I58/Calculations!I20/'INI-VAL'!$C$65)+0.1*(Calculations!I58/Calculations!I21/'INI-VAL'!$C$66)+0.25*(Calculations!I59/Calculations!I10/'INI-VAL'!$C$67)+0.25*(Calculations!I60/Calculations!I10/'INI-VAL'!$C$68))>1,1,(0.15*((I56/I57/'INI-VAL'!$C$63)*0.25+(I57/SUM(I58:I60)/'INI-VAL'!$C$64)*0.75)+0.25*(I58/Calculations!I20/'INI-VAL'!$C$65)+0.1*(Calculations!I58/Calculations!I21/'INI-VAL'!$C$66)+0.25*(Calculations!I59/Calculations!I10/'INI-VAL'!$C$67)+0.25*(Calculations!I60/Calculations!I10/'INI-VAL'!$C$68))) -> 0.9191929638 | J55: =IF((0.15*((J56/J57/'INI-VAL'!$C$63)*0.25+(J57/SUM(J58:J60)/'INI-VAL'!$C$64)*0.75)+0.25*(J58/Calculations!J20/'INI-VAL'!$C$65)+0.1*(Calculations!J58/Calculations!J21/'INI-VAL'!$C$66)+0.25*(Calculations!J59/Calculations!J10/'INI-VAL'!$C$67)+0.25*(Calculations!J60/Calculations!J10/'INI-VAL'!$C$68))>1,1,(0.15*((J56/J57/'INI-VAL'!$C$63)*0.25+(J57/SUM(J58:J60)/'INI-VAL'!$C$64)*0.75)+0.25*(J58/Calculations!J20/'INI-VAL'!$C$65)+0.1*(Calculations!J58/Calculations!J21/'INI-VAL'!$C$66)+0.25*(Calculations!J59/Calculations!J10/'INI-VAL'!$C$67)+0.25*(Calculations!J60/Calculations!J10/'INI-VAL'!$C$68))) -> 0.9191929638 | K55: =IF((0.15*((K56/K57/'INI-VAL'!$C$63)*0.25+(K57/SUM(K58:K60)/'INI-VAL'!$C$64)*0.75)+0.25*(K58/Calculations!K20/'INI-VAL'!$C$65)+0.1*(Calculations!K58/Calculations!K21/'INI-VAL'!$C$66)+0.25*(Calculations!K59/Calculations!K10/'INI-VAL'!$C$67)+0.25*(Calculations!K60/Calculations!K10/'INI-VAL'!$C$68))>1,1,(0.15*((K56/K57/'INI-VAL'!$C$63)*0.25+(K57/SUM(K58:K60)/'INI-VAL'!$C$64)*0.75)+0.25*(K58/Calculations!K20/'INI-VAL'!$C$65)+0.1*(Calculations!K58/Calculations!K21/'INI-VAL'!$C$66)+0.25*(Calculations!K59/Calculations!K10/'INI-VAL'!$C$67)+0.25*(Calculations!K60/Calculations!K10/'INI-VAL'!$C$68))) -> 0.9191929638 | L55: =IF((0.15*((L56/L57/'INI-VAL'!$C$63)*0.25+(L57/SUM(L58:L60)/'INI-VAL'!$C$64)*0.75)+0.25*(L58/Calculations!L20/'INI-VAL'!$C$65)+0.1*(Calculations!L58/Calculations!L21/'INI-VAL'!$C$66)+0.25*(Calculations!L59/Calculations!L10/'INI-VAL'!$C$67)+0.25*(Calculations!L60/Calculations!L10/'INI-VAL'!$C$68))>1,1,(0.15*((L56/L57/'INI-VAL'!$C$63)*0.25+(L57/SUM(L58:L60)/'INI-VAL'!$C$64)*0.75)+0.25*(L58/Calculations!L20/'INI-VAL'!$C$65)+0.1*(Calculations!L58/Calculations!L21/'INI-VAL'!$C$66)+0.25*(Calculations!L59/Calculations!L10/'INI-VAL'!$C$67)+0.25*(Calculations!L60/Calculations!L10/'INI-VAL'!$C$68))) -> 0.8957901099 | M55: =IF((0.15*((M56/M57/'INI-VAL'!$C$63)*0.25+(M57/SUM(M58:M60)/'INI-VAL'!$C$64)*0.75)+0.25*(M58/Calculations!M20/'INI-VAL'!$C$65)+0.1*(Calculations!M58/Calculations!M21/'INI-VAL'!$C$66)+0.25*(Calculations!M59/Calculations!M10/'INI-VAL'!$C$67)+0.25*(Calculations!M60/Calculations!M10/'INI-VAL'!$C$68))>1,1,(0.15*((M56/M57/'INI-VAL'!$C$63)*0.25+(M57/SUM(M58:M60)/'INI-VAL'!$C$64)*0.75)+0.25*(M58/Calculations!M20/'INI-VAL'!$C$65)+0.1*(Calculations!M58/Calculations!M21/'INI-VAL'!$C$66)+0.25*(Calculations!M59/Calculations!M10/'INI-VAL'!$C$67)+0.25*(Calculations!M60/Calculations!M10/'INI-VAL'!$C$68))) -> 0.8957901099 | N55: =IF((0.15*((N56/N57/'INI-VAL'!$C$63)*0.25+(N57/SUM(N58:N60)/'INI-VAL'!$C$64)*0.75)+0.25*(N58/Calculations!N20/'INI-VAL'!$C$65)+0.1*(Calculations!N58/Calculations!N21/'INI-VAL'!$C$66)+0.25*(Calculations!N59/Calculations!N10/'INI-VAL'!$C$67)+0.25*(Calculations!N60/Calculations!N10/'INI-VAL'!$C$68))>1,1,(0.15*((N56/N57/'INI-VAL'!$C$63)*0.25+(N57/SUM(N58:N60)/'INI-VAL'!$C$64)*0.75)+0.25*(N58/Calculations!N20/'INI-VAL'!$C$65)+0.1*(Calculations!N58/Calculations!N21/'INI-VAL'!$C$66)+0.25*(Calculations!N59/Calculations!N10/'INI-VAL'!$C$67)+0.25*(Calculations!N60/Calculations!N10/'INI-VAL'!$C$68))) -> 0.8957901099
B56: Directors | C56: Unit | D56: ='Yearly Decision'!E19 -> 19 | E56: =$D56+SUM('Yearly Decision'!$F19:F19) -> 19 | F56: =$D56+SUM('Yearly Decision'!$F19:G19) -> 19 | G56: =$D56+SUM('Yearly Decision'!$F19:H19) -> 19 | H56: =$D56+SUM('Yearly Decision'!$F19:I19) -> 19 | I56: =$D56+SUM('Yearly Decision'!$F19:J19) -> 19 | J56: =$D56+SUM('Yearly Decision'!$F19:K19) -> 19 | K56: =$D56+SUM('Yearly Decision'!$F19:L19) -> 19 | L56: =$D56+SUM('Yearly Decision'!$F19:M19) -> 19 | M56: =$D56+SUM('Yearly Decision'!$F19:N19) -> 19 | N56: =$D56+SUM('Yearly Decision'!$F19:O19) -> 19
B57: Managers | C57: Unit | D57: ='Yearly Decision'!E20 -> 65 | E57: =$D57+SUM('Yearly Decision'!$F20:F20) -> 65 | F57: =$D57+SUM('Yearly Decision'!$F20:G20) -> 65 | G57: =$D57+SUM('Yearly Decision'!$F20:H20) -> 65 | H57: =$D57+SUM('Yearly Decision'!$F20:I20) -> 65 | I57: =$D57+SUM('Yearly Decision'!$F20:J20) -> 65 | J57: =$D57+SUM('Yearly Decision'!$F20:K20) -> 65 | K57: =$D57+SUM('Yearly Decision'!$F20:L20) -> 65 | L57: =$D57+SUM('Yearly Decision'!$F20:M20) -> 65 | M57: =$D57+SUM('Yearly Decision'!$F20:N20) -> 65 | N57: =$D57+SUM('Yearly Decision'!$F20:O20) -> 65
B58: Workers (Operations) | C58: Unit | D58: ='Yearly Decision'!E21 -> 130 | E58: =$D58+SUM('Yearly Decision'!$F21:F21) -> 130 | F58: =$D58+SUM('Yearly Decision'!$F21:G21) -> 130 | G58: =$D58+SUM('Yearly Decision'!$F21:H21) -> 130 | H58: =$D58+SUM('Yearly Decision'!$F21:I21) -> 130 | I58: =$D58+SUM('Yearly Decision'!$F21:J21) -> 130 | J58: =$D58+SUM('Yearly Decision'!$F21:K21) -> 130 | K58: =$D58+SUM('Yearly Decision'!$F21:L21) -> 130 | L58: =$D58+SUM('Yearly Decision'!$F21:M21) -> 130 | M58: =$D58+SUM('Yearly Decision'!$F21:N21) -> 130 | N58: =$D58+SUM('Yearly Decision'!$F21:O21) -> 130
B59: Bill Collectors | C59: Unit | D59: ='Yearly Decision'!E22 -> 26 | E59: =$D59+SUM('Yearly Decision'!$F22:F22) -> 26 | F59: =$D59+SUM('Yearly Decision'!$F22:G22) -> 26 | G59: =$D59+SUM('Yearly Decision'!$F22:H22) -> 26 | H59: =$D59+SUM('Yearly Decision'!$F22:I22) -> 26 | I59: =$D59+SUM('Yearly Decision'!$F22:J22) -> 26 | J59: =$D59+SUM('Yearly Decision'!$F22:K22) -> 26 | K59: =$D59+SUM('Yearly Decision'!$F22:L22) -> 26 | L59: =$D59+SUM('Yearly Decision'!$F22:M22) -> 26 | M59: =$D59+SUM('Yearly Decision'!$F22:N22) -> 26 | N59: =$D59+SUM('Yearly Decision'!$F22:O22) -> 26
B60: Customer Service | C60: Unit | D60: ='Yearly Decision'!E23 -> 91 | E60: =$D60+SUM('Yearly Decision'!$F23:F23) -> 91 | F60: =$D60+SUM('Yearly Decision'!$F23:G23) -> 91 | G60: =$D60+SUM('Yearly Decision'!$F23:H23) -> 91 | H60: =$D60+SUM('Yearly Decision'!$F23:I23) -> 91 | I60: =$D60+SUM('Yearly Decision'!$F23:J23) -> 91 | J60: =$D60+SUM('Yearly Decision'!$F23:K23) -> 91 | K60: =$D60+SUM('Yearly Decision'!$F23:L23) -> 91 | L60: =$D60+SUM('Yearly Decision'!$F23:M23) -> 91 | M60: =$D60+SUM('Yearly Decision'!$F23:N23) -> 91 | N60: =$D60+SUM('Yearly Decision'!$F23:O23) -> 91
B61: Process efficiency | C61: Ratio | D61: =IF(0.3*(SUM($D$65:$F$65)/'INI-VAL'!$C$71)>0.3,0.3,0.3*(SUM($D$65:$F$65)/'INI-VAL'!$C$71))+IF(0.3*(SUM($D$62:$G$63)/(SUM(D56:D60)/'INI-VAL'!$C$70))>0.3,0.3,0.3*(SUM($D$62:$G$63)/(SUM(D56:D60)/'INI-VAL'!$C$70)))+IF(0.1*(SUM($D$62:$G$62)/D58)>0.1,0.1,0.1*(SUM($D$62:$G$62)/D58))+IF(0.2*(D64/'INI-VAL'!$C$72)>0.2,0.2,0.2*(D64/'INI-VAL'!$C$72))+IF(0.1*(Calculations!D66/'INI-VAL'!$C$73)>0.1,0.1,0.1*(Calculations!D66/'INI-VAL'!$C$73)) -> 0 | E61: =IF(0.3*(SUM($D$65:$F$65)/'INI-VAL'!$C$71)>0.3,0.3,0.3*(SUM($D$65:$F$65)/'INI-VAL'!$C$71))+IF(0.3*(SUM($D$62:$G$63)/(SUM(E56:E60)/'INI-VAL'!$C$70))>0.3,0.3,0.3*(SUM($D$62:$G$63)/(SUM(E56:E60)/'INI-VAL'!$C$70)))+IF(0.1*(SUM($D$62:$G$62)/E58)>0.1,0.1,0.1*(SUM($D$62:$G$62)/E58))+IF(0.2*(E64/'INI-VAL'!$C$72)>0.2,0.2,0.2*(E64/'INI-VAL'!$C$72))+IF(0.1*(Calculations!E66/'INI-VAL'!$C$73)>0.1,0.1,0.1*(Calculations!E66/'INI-VAL'!$C$73)) -> 0 | F61: =IF(0.3*(SUM(D65:F65)/'INI-VAL'!$C$71)>0.3,0.3,0.3*(SUM(D65:F65)/'INI-VAL'!$C$71))+IF(0.3*(SUM($D$62:$G$63)/(SUM(F56:F60)/'INI-VAL'!$C$70))>0.3,0.3,0.3*(SUM($D$62:$G$63)/(SUM(F56:F60)/'INI-VAL'!$C$70)))+IF(0.1*(SUM($D$62:$G$62)/F58)>0.1,0.1,0.1*(SUM($D$62:$G$62)/F58))+IF(0.2*(F64/'INI-VAL'!$C$72)>0.2,0.2,0.2*(F64/'INI-VAL'!$C$72))+IF(0.1*(Calculations!F66/'INI-VAL'!$C$73)>0.1,0.1,0.1*(Calculations!F66/'INI-VAL'!$C$73)) -> 0 | G61: =IF(0.3*(SUM(E65:G65)/'INI-VAL'!$C$71)>0.3,0.3,0.3*(SUM(E65:G65)/'INI-VAL'!$C$71))+IF(0.3*(SUM(D62:G63)/(SUM(G56:G60)/'INI-VAL'!$C$70))>0.3,0.3,0.3*(SUM(D62:G63)/(SUM(G56:G60)/'INI-VAL'!$C$70)))+IF(0.1*(SUM(D62:G62)/G58)>0.1,0.1,0.1*(SUM(D62:G62)/G58))+IF(0.2*(G64/'INI-VAL'!$C$72)>0.2,0.2,0.2*(G64/'INI-VAL'!$C$72))+IF(0.1*(Calculations!G66/'INI-VAL'!$C$73)>0.1,0.1,0.1*(Calculations!G66/'INI-VAL'!$C$73)) -> 0 | H61: =IF(0.3*(SUM(F65:H65)/'INI-VAL'!$C$71)>0.3,0.3,0.3*(SUM(F65:H65)/'INI-VAL'!$C$71))+IF(0.3*(SUM(E62:H63)/(SUM(H56:H60)/'INI-VAL'!$C$70))>0.3,0.3,0.3*(SUM(E62:H63)/(SUM(H56:H60)/'INI-VAL'!$C$70)))+IF(0.1*(SUM(E62:H62)/H58)>0.1,0.1,0.1*(SUM(E62:H62)/H58))+IF(0.2*(H64/'INI-VAL'!$C$72)>0.2,0.2,0.2*(H64/'INI-VAL'!$C$72))+IF(0.1*(Calculations!H66/'INI-VAL'!$C$73)>0.1,0.1,0.1*(Calculations!H66/'INI-VAL'!$C$73)) -> 0 | I61: =IF(0.3*(SUM(G65:I65)/'INI-VAL'!$C$71)>0.3,0.3,0.3*(SUM(G65:I65)/'INI-VAL'!$C$71))+IF(0.3*(SUM(F62:I63)/(SUM(I56:I60)/'INI-VAL'!$C$70))>0.3,0.3,0.3*(SUM(F62:I63)/(SUM(I56:I60)/'INI-VAL'!$C$70)))+IF(0.1*(SUM(F62:I62)/I58)>0.1,0.1,0.1*(SUM(F62:I62)/I58))+IF(0.2*(I64/'INI-VAL'!$C$72)>0.2,0.2,0.2*(I64/'INI-VAL'!$C$72))+IF(0.1*(Calculations!I66/'INI-VAL'!$C$73)>0.1,0.1,0.1*(Calculations!I66/'INI-VAL'!$C$73)) -> 0 | J61: =IF(0.3*(SUM(H65:J65)/'INI-VAL'!$C$71)>0.3,0.3,0.3*(SUM(H65:J65)/'INI-VAL'!$C$71))+IF(0.3*(SUM(G62:J63)/(SUM(J56:J60)/'INI-VAL'!$C$70))>0.3,0.3,0.3*(SUM(G62:J63)/(SUM(J56:J60)/'INI-VAL'!$C$70)))+IF(0.1*(SUM(G62:J62)/J58)>0.1,0.1,0.1*(SUM(G62:J62)/J58))+IF(0.2*(J64/'INI-VAL'!$C$72)>0.2,0.2,0.2*(J64/'INI-VAL'!$C$72))+IF(0.1*(Calculations!J66/'INI-VAL'!$C$73)>0.1,0.1,0.1*(Calculations!J66/'INI-VAL'!$C$73)) -> 0 | K61: =IF(0.3*(SUM(I65:K65)/'INI-VAL'!$C$71)>0.3,0.3,0.3*(SUM(I65:K65)/'INI-VAL'!$C$71))+IF(0.3*(SUM(H62:K63)/(SUM(K56:K60)/'INI-VAL'!$C$70))>0.3,0.3,0.3*(SUM(H62:K63)/(SUM(K56:K60)/'INI-VAL'!$C$70)))+IF(0.1*(SUM(H62:K62)/K58)>0.1,0.1,0.1*(SUM(H62:K62)/K58))+IF(0.2*(K64/'INI-VAL'!$C$72)>0.2,0.2,0.2*(K64/'INI-VAL'!$C$72))+IF(0.1*(Calculations!K66/'INI-VAL'!$C$73)>0.1,0.1,0.1*(Calculations!K66/'INI-VAL'!$C$73)) -> 0 | L61: =IF(0.3*(SUM(J65:L65)/'INI-VAL'!$C$71)>0.3,0.3,0.3*(SUM(J65:L65)/'INI-VAL'!$C$71))+IF(0.3*(SUM(I62:L63)/(SUM(L56:L60)/'INI-VAL'!$C$70))>0.3,0.3,0.3*(SUM(I62:L63)/(SUM(L56:L60)/'INI-VAL'!$C$70)))+IF(0.1*(SUM(I62:L62)/L58)>0.1,0.1,0.1*(SUM(I62:L62)/L58))+IF(0.2*(L64/'INI-VAL'!$C$72)>0.2,0.2,0.2*(L64/'INI-VAL'!$C$72))+IF(0.1*(Calculations!L66/'INI-VAL'!$C$73)>0.1,0.1,0.1*(Calculations!L66/'INI-VAL'!$C$73)) -> 0 | M61: =IF(0.3*(SUM(K65:M65)/'INI-VAL'!$C$71)>0.3,0.3,0.3*(SUM(K65:M65)/'INI-VAL'!$C$71))+IF(0.3*(SUM(J62:M63)/(SUM(M56:M60)/'INI-VAL'!$C$70))>0.3,0.3,0.3*(SUM(J62:M63)/(SUM(M56:M60)/'INI-VAL'!$C$70)))+IF(0.1*(SUM(J62:M62)/M58)>0.1,0.1,0.1*(SUM(J62:M62)/M58))+IF(0.2*(M64/'INI-VAL'!$C$72)>0.2,0.2,0.2*(M64/'INI-VAL'!$C$72))+IF(0.1*(Calculations!M66/'INI-VAL'!$C$73)>0.1,0.1,0.1*(Calculations!M66/'INI-VAL'!$C$73)) -> 0 | N61: =IF(0.3*(SUM(L65:N65)/'INI-VAL'!$C$71)>0.3,0.3,0.3*(SUM(L65:N65)/'INI-VAL'!$C$71))+IF(0.3*(SUM(K62:N63)/(SUM(N56:N60)/'INI-VAL'!$C$70))>0.3,0.3,0.3*(SUM(K62:N63)/(SUM(N56:N60)/'INI-VAL'!$C$70)))+IF(0.1*(SUM(K62:N62)/N58)>0.1,0.1,0.1*(SUM(K62:N62)/N58))+IF(0.2*(N64/'INI-VAL'!$C$72)>0.2,0.2,0.2*(N64/'INI-VAL'!$C$72))+IF(0.1*(Calculations!N66/'INI-VAL'!$C$73)>0.1,0.1,0.1*(Calculations!N66/'INI-VAL'!$C$73)) -> 0
B62: Leakage Trainees | C62: Unit | D62: ='Yearly Decision'!E30 -> 0 | E62: ='Yearly Decision'!F30 -> 0 | F62: ='Yearly Decision'!G30 -> 0 | G62: ='Yearly Decision'!H30 -> 0 | H62: ='Yearly Decision'!I30 -> 0 | I62: ='Yearly Decision'!J30 -> 0 | J62: ='Yearly Decision'!K30 -> 0 | K62: ='Yearly Decision'!L30 -> 0 | L62: ='Yearly Decision'!M30 -> 0 | M62: ='Yearly Decision'!N30 -> 0 | N62: ='Yearly Decision'!O30 -> 0
B63: Staff Trainings | C63: Unit | D63: ='Yearly Decision'!E31 -> 0 | E63: ='Yearly Decision'!F31 -> 0 | F63: ='Yearly Decision'!G31 -> 0 | G63: ='Yearly Decision'!H31 -> 0 | H63: ='Yearly Decision'!I31 -> 0 | I63: ='Yearly Decision'!J31 -> 0 | J63: ='Yearly Decision'!K31 -> 0 | K63: ='Yearly Decision'!L31 -> 0 | L63: ='Yearly Decision'!M31 -> 0 | M63: ='Yearly Decision'!N31 -> 0 | N63: ='Yearly Decision'!O31 -> 0
B64: Office | C64: Unit | D64: ='Yearly Decision'!E32 -> 0 | E64: ='Yearly Decision'!F32 -> 0 | F64: ='Yearly Decision'!G32 -> 0 | G64: ='Yearly Decision'!H32 -> 0 | H64: ='Yearly Decision'!I32 -> 0 | I64: ='Yearly Decision'!J32 -> 0 | J64: ='Yearly Decision'!K32 -> 0 | K64: ='Yearly Decision'!L32 -> 0 | L64: ='Yearly Decision'!M32 -> 0 | M64: ='Yearly Decision'!N32 -> 0 | N64: ='Yearly Decision'!O32 -> 0
B65: SOP's | C65: Unit | D65: ='Yearly Decision'!E33 -> 0 | E65: ='Yearly Decision'!F33 -> 0 | F65: ='Yearly Decision'!G33 -> 0 | G65: ='Yearly Decision'!H33 -> 0 | H65: ='Yearly Decision'!I33 -> 0 | I65: ='Yearly Decision'!J33 -> 0 | J65: ='Yearly Decision'!K33 -> 0 | K65: ='Yearly Decision'!L33 -> 0 | L65: ='Yearly Decision'!M33 -> 0 | M65: ='Yearly Decision'!N33 -> 0 | N65: ='Yearly Decision'!O33 -> 0
B66: Awareness Campaigns | C66: Unit | D66: ='Yearly Decision'!E34 -> 0 | E66: ='Yearly Decision'!F34 -> 0 | F66: ='Yearly Decision'!G34 -> 0 | G66: ='Yearly Decision'!H34 -> 0 | H66: ='Yearly Decision'!I34 -> 0 | I66: ='Yearly Decision'!J34 -> 0 | J66: ='Yearly Decision'!K34 -> 0 | K66: ='Yearly Decision'!L34 -> 0 | L66: ='Yearly Decision'!M34 -> 0 | M66: ='Yearly Decision'!N34 -> 0 | N66: ='Yearly Decision'!O34 -> 0
B67: Ratios
B68: Director to Manager | C68: Ratio | D68: =D56/D57 -> 0.2923076923 | E68: 0.2923076923 | F68: 0.2923076923 | G68: 0.2923076923 | H68: 0.2923076923 | I68: 0.2923076923 | J68: 0.2923076923 | K68: 0.2923076923 | L68: 0.2923076923 | M68: 0.2923076923 | N68: 0.2923076923
B69: Management to Workers | C69: Ratio | D69: =SUM(D56:D57)/SUM(D58:D60) -> 0.3400809717 | E69: 0.3400809717 | F69: 0.3400809717 | G69: 0.3400809717 | H69: 0.3400809717 | I69: 0.3400809717 | J69: 0.3400809717 | K69: 0.3400809717 | L69: 0.3400809717 | M69: 0.3400809717 | N69: 0.3400809717
B70: Workers to Network Size (km) | C70: Ratio | D70: =D58/D20 -> 0.1236917222 | E70: 0.1236917222 | F70: 0.1236917222 | G70: 0.1236917222 | H70: 0.1236917222 | I70: 0.1236917222 | J70: 0.1236917222 | K70: 0.1236917222 | L70: 0.1236917222 | M70: 0.1236917222 | N70: 0.1236917222
B71: Workers to Treatment Capacity (m3) | C71: Ratio | D71: =D58/D21 -> 3.72105378e-06 | E71: 3.72105378e-06 | F71: 3.72105378e-06 | G71: 3.72105378e-06 | H71: 3.72105378e-06 | I71: 4.961405039e-06 | J71: 4.961405039e-06 | K71: 4.961405039e-06 | L71: 3.72105378e-06 | M71: 3.72105378e-06 | N71: 3.72105378e-06
B72: Bill Collectors to # of Connections | C72: Ratio | D72: =D59/D10 -> 0.000513438259 | E72: 0.000513438259 | F72: 0.000513438259 | G72: 0.000513438259 | H72: 0.000513438259 | I72: 0.000513438259 | J72: 0.000513438259 | K72: 0.000513438259 | L72: 0.000513438259 | M72: 0.000513438259 | N72: 0.000513438259
B73: Costumer Service to # of Connections | C73: Ratio | D73: =D60/D10 -> 0.001797033907 | E73: 0.001797033907 | F73: 0.001797033907 | G73: 0.001797033907 | H73: 0.001797033907 | I73: 0.001797033907 | J73: 0.001797033907 | K73: 0.001797033907 | L73: 0.001797033907 | M73: 0.001797033907 | N73: 0.001797033907
B74: Maintence to Network | C74: Ratio | D74: =D38/D20 -> 0 | E74: 0 | F74: 0 | G74: 0 | H74: 0 | I74: 0 | J74: 0 | K74: 0 | L74: 0 | M74: 0 | N74: 0
B75: Maintenance to Treatment (Production) | C75: Ratio | D75: =D39/D20 -> 0 | E75: 0 | F75: 0 | G75: 0 | H75: 0 | I75: 0 | J75: 0 | K75: 0 | L75: 0 | M75: 0 | N75: 0
B76: Maintenance to Resource | C76: Ratio | D76: =D40/D20 -> 0 | E76: 0 | F76: 0 | G76: 0 | H76: 0 | I76: 0 | J76: 0 | K76: 0 | L76: 0 | M76: 0 | N76: 0
B78: Asset Value | C78: US$ | D78: ='INI-VAL'!H45 -> 68750000 | E78: =D78+SUM(E38:E41)-D79 -> 67375000 | F78: 66027500 | G78: 64706950 | H78: 63412811 | I78: 62144554.78 | J78: 60901663.68 | K78: 59683630.41 | L78: 58489957.8 | M78: 57320158.65 | N78: 56173755.47
B79: Depreciation | C79: US$/year | D79: =0.02*D78 -> 1375000 | E79: =0.02*E78 -> 1347500 | F79: 1320550 | G79: 1294139 | H79: 1268256.22 | I79: 1242891.096 | J79: 1218033.274 | K79: 1193672.608 | L79: 1169799.156 | M79: 1146403.173 | N79: 1123475.109
B80: Collection Efficiency | C80: % | D80: =IFERROR((D81*D13+D82*D11+D83*D14)/D10,0) -> 0.7224982084 | E80: =(E81*E13+E82*E11+E83*E14)/E10 -> 0.7272670877 | F80: 0.7319708819 | G80: 0.7305820296 | H80: 0.7271748389 | I80: 0.7233506953 | J80: =(J81*J13+J82*J11+J83*J14)/J10 -> 0.7175182741 | K80: =(K81*K13+K82*K11+K83*K14)/K10 -> 0.711222198 | L80: 0.7034759276 | M80: 0.6967149567 | N80: 0.7135638765
B81: In-house Col. Eff. | C81: % | D81: =IF(IF(D84<=0.025,1,(-0.464*(LN(Calculations!D84))-0.5884))*0.3+D86*0.3+IF(D72<'INI-VAL'!$E$67,0,IF(D72>'INI-VAL'!$C$67,1,(D72-'INI-VAL'!$E$67)/('INI-VAL'!$C$67-'INI-VAL'!$E$67)))*0.3+D54*0.1>1,1,IF(D84<=0.025,1,(-0.464*(LN(Calculations!D84))-0.5884))*0.3+D86*0.3+IF(D72<'INI-VAL'!$E$67,0,IF(D72>'INI-VAL'!$C$67,1,(D72-'INI-VAL'!$E$67)/('INI-VAL'!$C$67-'INI-VAL'!$E$67)))*0.3+D54*0.1) -> 0.710136195 | E81: =IF(IF(E84<=0.025,1,(-0.464*(LN(Calculations!E84))-0.5884))*0.25+E86*0.25+IF(E72<'INI-VAL'!$E$67,0,IF(E72>'INI-VAL'!$C$67,1,(E72-'INI-VAL'!$E$67)/('INI-VAL'!$C$67-'INI-VAL'!$E$67)))*0.4+E54*0.1>1,1,IF(E84<=0.025,1,(-0.464*(LN(Calculations!E84))-0.5884))*0.25+E86*0.25+IF(E72<'INI-VAL'!$E$67,0,IF(E72>'INI-VAL'!$C$67,1,(E72-'INI-VAL'!$E$67)/('INI-VAL'!$C$67-'INI-VAL'!$E$67)))*0.4+E54*0.1) -> 0.7149050742 | F81: =IF(IF(F84<=0.025,1,(-0.464*(LN(Calculations!F84))-0.5884))*0.25+F86*0.25+IF(F72<'INI-VAL'!$E$67,0,IF(F72>'INI-VAL'!$C$67,1,(F72-'INI-VAL'!$E$67)/('INI-VAL'!$C$67-'INI-VAL'!$E$67)))*0.4+F54*0.1>1,1,IF(F84<=0.025,1,(-0.464*(LN(Calculations!F84))-0.5884))*0.25+F86*0.25+IF(F72<'INI-VAL'!$E$67,0,IF(F72>'INI-VAL'!$C$67,1,(F72-'INI-VAL'!$E$67)/('INI-VAL'!$C$67-'INI-VAL'!$E$67)))*0.4+F54*0.1) -> 0.7196088684 | G81: =IF(IF(G84<=0.025,1,(-0.464*(LN(Calculations!G84))-0.5884))*0.25+G86*0.25+IF(G72<'INI-VAL'!$E$67,0,IF(G72>'INI-VAL'!$C$67,1,(G72-'INI-VAL'!$E$67)/('INI-VAL'!$C$67-'INI-VAL'!$E$67)))*0.4+G54*0.1>1,1,IF(G84<=0.025,1,(-0.464*(LN(Calculations!G84))-0.5884))*0.25+G86*0.25+IF(G72<'INI-VAL'!$E$67,0,IF(G72>'INI-VAL'!$C$67,1,(G72-'INI-VAL'!$E$67)/('INI-VAL'!$C$67-'INI-VAL'!$E$67)))*0.4+G54*0.1) -> 0.7182200161 | H81: =IF(IF(H84<=0.025,1,(-0.464*(LN(Calculations!H84))-0.5884))*0.25+H86*0.25+IF(H72<'INI-VAL'!$E$67,0,IF(H72>'INI-VAL'!$C$67,1,(H72-'INI-VAL'!$E$67)/('INI-VAL'!$C$67-'INI-VAL'!$E$67)))*0.4+H54*0.1>1,1,IF(H84<=0.025,1,(-0.464*(LN(Calculations!H84))-0.5884))*0.25+H86*0.25+IF(H72<'INI-VAL'!$E$67,0,IF(H72>'INI-VAL'!$C$67,1,(H72-'INI-VAL'!$E$67)/('INI-VAL'!$C$67-'INI-VAL'!$E$67)))*0.4+H54*0.1) -> 0.7148128254 | I81: =IF(IF(I84<=0.025,1,(-0.464*(LN(Calculations!I84))-0.5884))*0.25+I86*0.25+IF(I72<'INI-VAL'!$E$67,0,IF(I72>'INI-VAL'!$C$67,1,(I72-'INI-VAL'!$E$67)/('INI-VAL'!$C$67-'INI-VAL'!$E$67)))*0.4+I54*0.1>1,1,IF(I84<=0.025,1,(-0.464*(LN(Calculations!I84))-0.5884))*0.25+I86*0.25+IF(I72<'INI-VAL'!$E$67,0,IF(I72>'INI-VAL'!$C$67,1,(I72-'INI-VAL'!$E$67)/('INI-VAL'!$C$67-'INI-VAL'!$E$67)))*0.4+I54*0.1) -> 0.7109886819 | J81: =IF(IF(J84<=0.025,1,(-0.464*(LN(Calculations!J84))-0.5884))*0.25+J86*0.25+IF(J72<'INI-VAL'!$E$67,0,IF(J72>'INI-VAL'!$C$67,1,(J72-'INI-VAL'!$E$67)/('INI-VAL'!$C$67-'INI-VAL'!$E$67)))*0.4+J54*0.1>1,1,IF(J84<=0.025,1,(-0.464*(LN(Calculations!J84))-0.5884))*0.25+J86*0.25+IF(J72<'INI-VAL'!$E$67,0,IF(J72>'INI-VAL'!$C$67,1,(J72-'INI-VAL'!$E$67)/('INI-VAL'!$C$67-'INI-VAL'!$E$67)))*0.4+J54*0.1) -> 0.7051562606 | K81: =IF(IF(K84<=0.025,1,(-0.464*(LN(Calculations!K84))-0.5884))*0.25+K86*0.25+IF(K72<'INI-VAL'!$E$67,0,IF(K72>'INI-VAL'!$C$67,1,(K72-'INI-VAL'!$E$67)/('INI-VAL'!$C$67-'INI-VAL'!$E$67)))*0.4+K54*0.1>1,1,IF(K84<=0.025,1,(-0.464*(LN(Calculations!K84))-0.5884))*0.25+K86*0.25+IF(K72<'INI-VAL'!$E$67,0,IF(K72>'INI-VAL'!$C$67,1,(K72-'INI-VAL'!$E$67)/('INI-VAL'!$C$67-'INI-VAL'!$E$67)))*0.4+K54*0.1) -> 0.6988601846 | L81: =IF(IF(L84<=0.025,1,(-0.464*(LN(Calculations!L84))-0.5884))*0.25+L86*0.25+IF(L72<'INI-VAL'!$E$67,0,IF(L72>'INI-VAL'!$C$67,1,(L72-'INI-VAL'!$E$67)/('INI-VAL'!$C$67-'INI-VAL'!$E$67)))*0.4+L54*0.1>1,1,IF(L84<=0.025,1,(-0.464*(LN(Calculations!L84))-0.5884))*0.25+L86*0.25+IF(L72<'INI-VAL'!$E$67,0,IF(L72>'INI-VAL'!$C$67,1,(L72-'INI-VAL'!$E$67)/('INI-VAL'!$C$67-'INI-VAL'!$E$67)))*0.4+L54*0.1) -> 0.6911139142 | M81: =IF(IF(M84<=0.025,1,(-0.464*(LN(Calculations!M84))-0.5884))*0.25+M86*0.25+IF(M72<'INI-VAL'!$E$67,0,IF(M72>'INI-VAL'!$C$67,1,(M72-'INI-VAL'!$E$67)/('INI-VAL'!$C$67-'INI-VAL'!$E$67)))*0.4+M54*0.1>1,1,IF(M84<=0.025,1,(-0.464*(LN(Calculations!M84))-0.5884))*0.25+M86*0.25+IF(M72<'INI-VAL'!$E$67,0,IF(M72>'INI-VAL'!$C$67,1,(M72-'INI-VAL'!$E$67)/('INI-VAL'!$C$67-'INI-VAL'!$E$67)))*0.4+M54*0.1) -> 0.6843529433 | N81: =IF(IF(N84<=0.025,1,(-0.464*(LN(Calculations!N84))-0.5884))*0.25+N86*0.25+IF(N72<'INI-VAL'!$E$67,0,IF(N72>'INI-VAL'!$C$67,1,(N72-'INI-VAL'!$E$67)/('INI-VAL'!$C$67-'INI-VAL'!$E$67)))*0.4+N54*0.1>1,1,IF(N84<=0.025,1,(-0.464*(LN(Calculations!N84))-0.5884))*0.25+N86*0.25+IF(N72<'INI-VAL'!$E$67,0,IF(N72>'INI-VAL'!$C$67,1,(N72-'INI-VAL'!$E$67)/('INI-VAL'!$C$67-'INI-VAL'!$E$67)))*0.4+N54*0.1) -> 0.7012018631
B82: StandPipe Col. Eff. | C82: % | D82: 1 | E82: 1 | F82: 1 | G82: 1 | H82: 1 | I82: 1 | J82: 1 | K82: 1 | L82: 1 | M82: 1 | N82: 1
B83: Un-metered Col. Eff. | C83: % | D83: =D81 -> 0.710136195 | E83: =E81 -> 0.7149050742 | F83: =F81 -> 0.7196088684 | G83: 0.7182200161 | H83: 0.7148128254 | I83: 0.7109886819 | J83: 0.7051562606 | K83: 0.6988601846 | L83: 0.6911139142 | M83: 0.6843529433 | N83: 0.7012018631
B84: Affordability | C84: % | D84: =IF(((D4*'INI-VAL'!$H$30*12)/D16)>1,1,((D4*'INI-VAL'!$H$30*12)/D16)) -> 0.05000213049 | E84: =IF(E4=0,D84,IF(((E4*'INI-VAL'!$H$30*12)/E16)>1,1,((E4*'INI-VAL'!$H$30*12)/E16))) -> 0.04854575776 | F84: =IF(F4=0,E84,IF(((F4*'INI-VAL'!$H$30*12)/F16)>1,1,((F4*'INI-VAL'!$H$30*12)/F16))) -> 0.04713180365 | G84: =IF(G4=0,F84,IF(((G4*'INI-VAL'!$H$30*12)/G16)>1,1,((G4*'INI-VAL'!$H$30*12)/G16))) -> 0.04575903267 | H84: =IF(H4=0,G84,IF(((H4*'INI-VAL'!$H$30*12)/H16)>1,1,((H4*'INI-VAL'!$H$30*12)/H16))) -> 0.04442624531 | I84: =IF(I4=0,H84,IF(((I4*'INI-VAL'!$H$30*12)/I16)>1,1,((I4*'INI-VAL'!$H$30*12)/I16))) -> 0.043132277 | J84: =IF(J4=0,I84,IF(((J4*'INI-VAL'!$H$30*12)/J16)>1,1,((J4*'INI-VAL'!$H$30*12)/J16))) -> 0.04187599709 | K84: =IF(K4=0,J84,IF(((K4*'INI-VAL'!$H$30*12)/K16)>1,1,((K4*'INI-VAL'!$H$30*12)/K16))) -> 0.04065630785 | L84: =IF(L4=0,K84,IF(((L4*'INI-VAL'!$H$30*12)/L16)>1,1,((L4*'INI-VAL'!$H$30*12)/L16))) -> 0.03947214355 | M84: =IF(M4=0,L84,IF(((M4*'INI-VAL'!$H$30*12)/M16)>1,1,((M4*'INI-VAL'!$H$30*12)/M16))) -> 0.03832246946 | N84: =IF(N4=0,M84,IF(((N4*'INI-VAL'!$H$30*12)/N16)>1,1,((N4*'INI-VAL'!$H$30*12)/N16))) -> 0.03720628103
B85: Customer Satisfaction out of 10 | C85: Unit | D85: =D86*10 -> 7.5 | E85: =E86*10 -> 7.991913161 | F85: 8.042912086 | G85: 7.850205153 | H85: 7.576764681 | I85: 7.239840389 | J85: 6.869390697 | K85: 6.480394812 | L85: 6.080196862 | M85: 5.672605183 | N85: =N86*10 -> 6.209409134
B86: Customer Satisfaction | C86: % | D86: ='INI-VAL'!H7/10 -> 0.75 | E86: =IF(E4=0,D86,IF(IF(E4>D4,IF((D86/2-(E4-D4)/D4)<=0.1,0.1,(D86/2-(E4-D4)/D4)),IF(E4<(D4*0.8),0.5,D86/2+(D4-E4)/(D4*0.25)))>0.4,0.4,IF(E4>D4,IF((D86/2-(E4-D4)/D4)<=0.1,0.1,(D86/2-(E4-D4)/D4)),IF(E4<(D4*0.8),0.4,D86/2+(D4-E4)/(D4*0.25))))+0.2*E88+0.2*E89+0.1*E87+IF((E73-'INI-VAL'!$E$68)/('INI-VAL'!$D$68-'INI-VAL'!$E$68)>1,1,IF((E73-'INI-VAL'!$E$68)/('INI-VAL'!$D$68-'INI-VAL'!$E$68)<0,0,(E73-'INI-VAL'!$E$68)/('INI-VAL'!$D$68-'INI-VAL'!$E$68)))*0.1) -> 0.7991913161 | F86: =IF(F4=0,E86,IF(IF(F4>E4,IF((E86/2-(F4-E4)/E4)<=0.1,0.1,(E86/2-(F4-E4)/E4)),IF(F4<(E4*0.8),0.5,E86/2+(E4-F4)/(E4*0.25)))>0.4,0.4,IF(F4>E4,IF((E86/2-(F4-E4)/E4)<=0.1,0.1,(E86/2-(F4-E4)/E4)),IF(F4<(E4*0.8),0.4,E86/2+(E4-F4)/(E4*0.25))))+0.2*F88+0.2*F89+0.1*F87+IF((F73-'INI-VAL'!$E$68)/('INI-VAL'!$D$68-'INI-VAL'!$E$68)>1,1,IF((F73-'INI-VAL'!$E$68)/('INI-VAL'!$D$68-'INI-VAL'!$E$68)<0,0,(F73-'INI-VAL'!$E$68)/('INI-VAL'!$D$68-'INI-VAL'!$E$68)))*0.1) -> 0.8042912086 | G86: =IF(G4=0,F86,IF(IF(G4>F4,IF((F86/2-(G4-F4)/F4)<=0.1,0.1,(F86/2-(G4-F4)/F4)),IF(G4<(F4*0.8),0.5,F86/2+(F4-G4)/(F4*0.25)))>0.4,0.4,IF(G4>F4,IF((F86/2-(G4-F4)/F4)<=0.1,0.1,(F86/2-(G4-F4)/F4)),IF(G4<(F4*0.8),0.4,F86/2+(F4-G4)/(F4*0.25))))+0.2*G88+0.2*G89+0.1*G87+IF((G73-'INI-VAL'!$E$68)/('INI-VAL'!$D$68-'INI-VAL'!$E$68)>1,1,IF((G73-'INI-VAL'!$E$68)/('INI-VAL'!$D$68-'INI-VAL'!$E$68)<0,0,(G73-'INI-VAL'!$E$68)/('INI-VAL'!$D$68-'INI-VAL'!$E$68)))*0.1) -> 0.7850205153 | H86: =IF(H4=0,G86,IF(IF(H4>G4,IF((G86/2-(H4-G4)/G4)<=0.1,0.1,(G86/2-(H4-G4)/G4)),IF(H4<(G4*0.8),0.5,G86/2+(G4-H4)/(G4*0.25)))>0.4,0.4,IF(H4>G4,IF((G86/2-(H4-G4)/G4)<=0.1,0.1,(G86/2-(H4-G4)/G4)),IF(H4<(G4*0.8),0.4,G86/2+(G4-H4)/(G4*0.25))))+0.2*H88+0.2*H89+0.1*H87+IF((H73-'INI-VAL'!$E$68)/('INI-VAL'!$D$68-'INI-VAL'!$E$68)>1,1,IF((H73-'INI-VAL'!$E$68)/('INI-VAL'!$D$68-'INI-VAL'!$E$68)<0,0,(H73-'INI-VAL'!$E$68)/('INI-VAL'!$D$68-'INI-VAL'!$E$68)))*0.1) -> 0.7576764681 | I86: =IF(I4=0,H86,IF(IF(I4>H4,IF((H86/2-(I4-H4)/H4)<=0.1,0.1,(H86/2-(I4-H4)/H4)),IF(I4<(H4*0.8),0.5,H86/2+(H4-I4)/(H4*0.25)))>0.4,0.4,IF(I4>H4,IF((H86/2-(I4-H4)/H4)<=0.1,0.1,(H86/2-(I4-H4)/H4)),IF(I4<(H4*0.8),0.4,H86/2+(H4-I4)/(H4*0.25))))+0.2*I88+0.2*I89+0.1*I87+IF((I73-'INI-VAL'!$E$68)/('INI-VAL'!$D$68-'INI-VAL'!$E$68)>1,1,IF((I73-'INI-VAL'!$E$68)/('INI-VAL'!$D$68-'INI-VAL'!$E$68)<0,0,(I73-'INI-VAL'!$E$68)/('INI-VAL'!$D$68-'INI-VAL'!$E$68)))*0.1) -> 0.7239840389 | J86: =IF(J4=0,I86,IF(IF(J4>I4,IF((I86/2-(J4-I4)/I4)<=0.1,0.1,(I86/2-(J4-I4)/I4)),IF(J4<(I4*0.8),0.5,I86/2+(I4-J4)/(I4*0.25)))>0.4,0.4,IF(J4>I4,IF((I86/2-(J4-I4)/I4)<=0.1,0.1,(I86/2-(J4-I4)/I4)),IF(J4<(I4*0.8),0.4,I86/2+(I4-J4)/(I4*0.25))))+0.2*J88+0.2*J89+0.1*J87+IF((J73-'INI-VAL'!$E$68)/('INI-VAL'!$D$68-'INI-VAL'!$E$68)>1,1,IF((J73-'INI-VAL'!$E$68)/('INI-VAL'!$D$68-'INI-VAL'!$E$68)<0,0,(J73-'INI-VAL'!$E$68)/('INI-VAL'!$D$68-'INI-VAL'!$E$68)))*0.1) -> 0.6869390697 | K86: =IF(K4=0,J86,IF(IF(K4>J4,IF((J86/2-(K4-J4)/J4)<=0.1,0.1,(J86/2-(K4-J4)/J4)),IF(K4<(J4*0.8),0.5,J86/2+(J4-K4)/(J4*0.25)))>0.4,0.4,IF(K4>J4,IF((J86/2-(K4-J4)/J4)<=0.1,0.1,(J86/2-(K4-J4)/J4)),IF(K4<(J4*0.8),0.4,J86/2+(J4-K4)/(J4*0.25))))+0.2*K88+0.2*K89+0.1*K87+IF((K73-'INI-VAL'!$E$68)/('INI-VAL'!$D$68-'INI-VAL'!$E$68)>1,1,IF((K73-'INI-VAL'!$E$68)/('INI-VAL'!$D$68-'INI-VAL'!$E$68)<0,0,(K73-'INI-VAL'!$E$68)/('INI-VAL'!$D$68-'INI-VAL'!$E$68)))*0.1) -> 0.6480394812 | L86: =IF(L4=0,K86,IF(IF(L4>K4,IF((K86/2-(L4-K4)/K4)<=0.1,0.1,(K86/2-(L4-K4)/K4)),IF(L4<(K4*0.8),0.5,K86/2+(K4-L4)/(K4*0.25)))>0.4,0.4,IF(L4>K4,IF((K86/2-(L4-K4)/K4)<=0.1,0.1,(K86/2-(L4-K4)/K4)),IF(L4<(K4*0.8),0.4,K86/2+(K4-L4)/(K4*0.25))))+0.2*L88+0.2*L89+0.1*L87+IF((L73-'INI-VAL'!$E$68)/('INI-VAL'!$D$68-'INI-VAL'!$E$68)>1,1,IF((L73-'INI-VAL'!$E$68)/('INI-VAL'!$D$68-'INI-VAL'!$E$68)<0,0,(L73-'INI-VAL'!$E$68)/('INI-VAL'!$D$68-'INI-VAL'!$E$68)))*0.1) -> 0.6080196862 | M86: =IF(M4=0,L86,IF(IF(M4>L4,IF((L86/2-(M4-L4)/L4)<=0.1,0.1,(L86/2-(M4-L4)/L4)),IF(M4<(L4*0.8),0.5,L86/2+(L4-M4)/(L4*0.25)))>0.4,0.4,IF(M4>L4,IF((L86/2-(M4-L4)/L4)<=0.1,0.1,(L86/2-(M4-L4)/L4)),IF(M4<(L4*0.8),0.4,L86/2+(L4-M4)/(L4*0.25))))+0.2*M88+0.2*M89+0.1*M87+IF((M73-'INI-VAL'!$E$68)/('INI-VAL'!$D$68-'INI-VAL'!$E$68)>1,1,IF((M73-'INI-VAL'!$E$68)/('INI-VAL'!$D$68-'INI-VAL'!$E$68)<0,0,(M73-'INI-VAL'!$E$68)/('INI-VAL'!$D$68-'INI-VAL'!$E$68)))*0.1) -> 0.5672605183 | N86: =IF(N4=0,M86,IF(IF(N4>M4,IF((M86/2-(N4-M4)/M4)<=0.1,0.1,(M86/2-(N4-M4)/M4)),IF(N4<(M4*0.8),0.5,M86/2+(M4-N4)/(M4*0.25)))>0.4,0.4,IF(N4>M4,IF((M86/2-(N4-M4)/M4)<=0.1,0.1,(M86/2-(N4-M4)/M4)),IF(N4<(M4*0.8),0.4,M86/2+(M4-N4)/(M4*0.25))))+0.2*N88+0.2*N89+0.1*N87+IF((N73-'INI-VAL'!$E$68)/('INI-VAL'!$D$68-'INI-VAL'!$E$68)>1,1,IF((N73-'INI-VAL'!$E$68)/('INI-VAL'!$D$68-'INI-VAL'!$E$68)<0,0,(N73-'INI-VAL'!$E$68)/('INI-VAL'!$D$68-'INI-VAL'!$E$68)))*0.1) -> 0.6209409134
B87: Awareness | C87: % | D87: =D101/10 -> 0.7 | E87: =E101/10 -> 0.65 | F87: 0.6 | G87: 0.55 | H87: 0.5 | I87: 0.45 | J87: 0.4 | K87: 0.35 | L87: 0.3 | M87: 0.25 | N87: 0.2
B88: Water Quality | C88: % | D88: ='INI-VAL'!H20 -> 0.7 | E88: =IF(SUM('Yearly Decision'!F25:F27)=0,D88-0.05,IF(((IF(E91<0.05,1,(0.7-E91)/(0.7-0.05))/4+(SUM('Yearly Decision'!$F$88:$J$88)/E20)/4+(SUM('Yearly Decision'!$F$27:$J$27)/E22)/4+(SUM('Yearly Decision'!$F$26:$J$26)/E22)/4)*0.8+IF((E58/E21)>'INI-VAL'!$C$66,1,((E58/E21)-'INI-VAL'!$E$66)/('INI-VAL'!$C$66-'INI-VAL'!$E$66))*0.1+Calculations!E54*0.1)>0.95,0.95,IF((IF(E91<0.05,1,(0.7-E91)/(0.7-0.05))/4+(SUM('Yearly Decision'!$F$88:$J$88)/E20)/4+(SUM('Yearly Decision'!$F$27:$J$27)/E22)/4+(SUM('Yearly Decision'!$F$26:$J$26)/E22)/4)*0.8+IF((E58/E21)>'INI-VAL'!$C$66,1,((E58/E21)-'INI-VAL'!$E$66)/('INI-VAL'!$C$66-'INI-VAL'!$E$66))*0.1+Calculations!E54*0.1<D88-0.05,D88-0.05,(IF(E91<0.05,1,(0.7-E91)/(0.7-0.05))/4+(SUM('Yearly Decision'!$F$88:$J$88)/E20)/4+(SUM('Yearly Decision'!$F$27:$J$27)/E22)/4+(SUM('Yearly Decision'!$F$26:$J$26)/E22)/4)*0.8+IF((E58/E21)>'INI-VAL'!$C$66,1,((E58/E21)-'INI-VAL'!$E$66)/('INI-VAL'!$C$66-'INI-VAL'!$E$66))*0.1+Calculations!E54*0.1))) -> 0.65 | F88: =IF(SUM('Yearly Decision'!G25:G27)=0,E88-0.05,IF(((IF(F91<0.05,1,(0.7-F91)/(0.7-0.05))/4+(SUM('Yearly Decision'!$F$88:$J$88)/F20)/4+(SUM('Yearly Decision'!$F$27:$J$27)/F22)/4+(SUM('Yearly Decision'!$F$26:$J$26)/F22)/4)*0.8+IF((F58/F21)>'INI-VAL'!$C$66,1,((F58/F21)-'INI-VAL'!$E$66)/('INI-VAL'!$C$66-'INI-VAL'!$E$66))*0.1+Calculations!F54*0.1)>0.95,0.95,IF((IF(F91<0.05,1,(0.7-F91)/(0.7-0.05))/4+(SUM('Yearly Decision'!$F$88:$J$88)/F20)/4+(SUM('Yearly Decision'!$F$27:$J$27)/F22)/4+(SUM('Yearly Decision'!$F$26:$J$26)/F22)/4)*0.8+IF((F58/F21)>'INI-VAL'!$C$66,1,((F58/F21)-'INI-VAL'!$E$66)/('INI-VAL'!$C$66-'INI-VAL'!$E$66))*0.1+Calculations!F54*0.1<E88-0.05,E88-0.05,(IF(F91<0.05,1,(0.7-F91)/(0.7-0.05))/4+(SUM('Yearly Decision'!$F$88:$J$88)/F20)/4+(SUM('Yearly Decision'!$F$27:$J$27)/F22)/4+(SUM('Yearly Decision'!$F$26:$J$26)/F22)/4)*0.8+IF((F58/F21)>'INI-VAL'!$C$66,1,((F58/F21)-'INI-VAL'!$E$66)/('INI-VAL'!$C$66-'INI-VAL'!$E$66))*0.1+Calculations!F54*0.1))) -> 0.6 | G88: =IF(SUM('Yearly Decision'!H25:H27)=0,F88-0.05,IF(((IF(G91<0.05,1,(0.7-G91)/(0.7-0.05))/4+(SUM('Yearly Decision'!$F$88:$J$88)/G20)/4+(SUM('Yearly Decision'!$F$27:$J$27)/G22)/4+(SUM('Yearly Decision'!$F$26:$J$26)/G22)/4)*0.8+IF((G58/G21)>'INI-VAL'!$C$66,1,((G58/G21)-'INI-VAL'!$E$66)/('INI-VAL'!$C$66-'INI-VAL'!$E$66))*0.1+Calculations!G54*0.1)>0.95,0.95,IF((IF(G91<0.05,1,(0.7-G91)/(0.7-0.05))/4+(SUM('Yearly Decision'!$F$88:$J$88)/G20)/4+(SUM('Yearly Decision'!$F$27:$J$27)/G22)/4+(SUM('Yearly Decision'!$F$26:$J$26)/G22)/4)*0.8+IF((G58/G21)>'INI-VAL'!$C$66,1,((G58/G21)-'INI-VAL'!$E$66)/('INI-VAL'!$C$66-'INI-VAL'!$E$66))*0.1+Calculations!G54*0.1<F88-0.05,F88-0.05,(IF(G91<0.05,1,(0.7-G91)/(0.7-0.05))/4+(SUM('Yearly Decision'!$F$88:$J$88)/G20)/4+(SUM('Yearly Decision'!$F$27:$J$27)/G22)/4+(SUM('Yearly Decision'!$F$26:$J$26)/G22)/4)*0.8+IF((G58/G21)>'INI-VAL'!$C$66,1,((G58/G21)-'INI-VAL'!$E$66)/('INI-VAL'!$C$66-'INI-VAL'!$E$66))*0.1+Calculations!G54*0.1))) -> 0.55 | H88: =IF(SUM('Yearly Decision'!I25:I27)=0,G88-0.05,IF(((IF(H91<0.05,1,(0.7-H91)/(0.7-0.05))/4+(SUM('Yearly Decision'!$F$88:$J$88)/H20)/4+(SUM('Yearly Decision'!$F$27:$J$27)/H22)/4+(SUM('Yearly Decision'!$F$26:$J$26)/H22)/4)*0.8+IF((H58/H21)>'INI-VAL'!$C$66,1,((H58/H21)-'INI-VAL'!$E$66)/('INI-VAL'!$C$66-'INI-VAL'!$E$66))*0.1+Calculations!H54*0.1)>0.95,0.95,IF((IF(H91<0.05,1,(0.7-H91)/(0.7-0.05))/4+(SUM('Yearly Decision'!$F$88:$J$88)/H20)/4+(SUM('Yearly Decision'!$F$27:$J$27)/H22)/4+(SUM('Yearly Decision'!$F$26:$J$26)/H22)/4)*0.8+IF((H58/H21)>'INI-VAL'!$C$66,1,((H58/H21)-'INI-VAL'!$E$66)/('INI-VAL'!$C$66-'INI-VAL'!$E$66))*0.1+Calculations!H54*0.1<G88-0.05,G88-0.05,(IF(H91<0.05,1,(0.7-H91)/(0.7-0.05))/4+(SUM('Yearly Decision'!$F$88:$J$88)/H20)/4+(SUM('Yearly Decision'!$F$27:$J$27)/H22)/4+(SUM('Yearly Decision'!$F$26:$J$26)/H22)/4)*0.8+IF((H58/H21)>'INI-VAL'!$C$66,1,((H58/H21)-'INI-VAL'!$E$66)/('INI-VAL'!$C$66-'INI-VAL'!$E$66))*0.1+Calculations!H54*0.1))) -> 0.5 | I88: =IF(SUM('Yearly Decision'!J25:J27)=0,H88-0.05,IF(((IF(I91<0.05,1,(0.7-I91)/(0.7-0.05))/4+(SUM('Yearly Decision'!F88:J88)/I20)/4+(SUM('Yearly Decision'!F27:J27)/I22)/4+(SUM('Yearly Decision'!F26:J26)/I22)/4)*0.8+IF((I58/I21)>'INI-VAL'!$C$66,1,((I58/I21)-'INI-VAL'!$E$66)/('INI-VAL'!$C$66-'INI-VAL'!$E$66))*0.1+Calculations!I54*0.1)>0.95,0.95,IF((IF(I91<0.05,1,(0.7-I91)/(0.7-0.05))/4+(SUM('Yearly Decision'!F88:J88)/I20)/4+(SUM('Yearly Decision'!F27:J27)/I22)/4+(SUM('Yearly Decision'!F26:J26)/I22)/4)*0.8+IF((I58/I21)>'INI-VAL'!$C$66,1,((I58/I21)-'INI-VAL'!$E$66)/('INI-VAL'!$C$66-'INI-VAL'!$E$66))*0.1+Calculations!I54*0.1<H88-0.05,H88-0.05,(IF(I91<0.05,1,(0.7-I91)/(0.7-0.05))/4+(SUM('Yearly Decision'!F88:J88)/I20)/4+(SUM('Yearly Decision'!F27:J27)/I22)/4+(SUM('Yearly Decision'!F26:J26)/I22)/4)*0.8+IF((I58/I21)>'INI-VAL'!$C$66,1,((I58/I21)-'INI-VAL'!$E$66)/('INI-VAL'!$C$66-'INI-VAL'!$E$66))*0.1+Calculations!I54*0.1))) -> 0.45 | J88: =IF(SUM('Yearly Decision'!K25:K27)=0,I88-0.05,IF(((IF(J91<0.05,1,(0.7-J91)/(0.7-0.05))/4+(SUM('Yearly Decision'!G88:K88)/J20)/4+(SUM('Yearly Decision'!G27:K27)/J22)/4+(SUM('Yearly Decision'!G26:K26)/J22)/4)*0.8+IF((J58/J21)>'INI-VAL'!$C$66,1,((J58/J21)-'INI-VAL'!$E$66)/('INI-VAL'!$C$66-'INI-VAL'!$E$66))*0.1+Calculations!J54*0.1)>0.95,0.95,IF((IF(J91<0.05,1,(0.7-J91)/(0.7-0.05))/4+(SUM('Yearly Decision'!G88:K88)/J20)/4+(SUM('Yearly Decision'!G27:K27)/J22)/4+(SUM('Yearly Decision'!G26:K26)/J22)/4)*0.8+IF((J58/J21)>'INI-VAL'!$C$66,1,((J58/J21)-'INI-VAL'!$E$66)/('INI-VAL'!$C$66-'INI-VAL'!$E$66))*0.1+Calculations!J54*0.1<I88-0.05,I88-0.05,(IF(J91<0.05,1,(0.7-J91)/(0.7-0.05))/4+(SUM('Yearly Decision'!G88:K88)/J20)/4+(SUM('Yearly Decision'!G27:K27)/J22)/4+(SUM('Yearly Decision'!G26:K26)/J22)/4)*0.8+IF((J58/J21)>'INI-VAL'!$C$66,1,((J58/J21)-'INI-VAL'!$E$66)/('INI-VAL'!$C$66-'INI-VAL'!$E$66))*0.1+Calculations!J54*0.1))) -> 0.4 | K88: =IF(SUM('Yearly Decision'!L25:L27)=0,J88-0.05,IF(((IF(K91<0.05,1,(0.7-K91)/(0.7-0.05))/4+(SUM('Yearly Decision'!H88:L88)/K20)/4+(SUM('Yearly Decision'!H27:L27)/K22)/4+(SUM('Yearly Decision'!H26:L26)/K22)/4)*0.8+IF((K58/K21)>'INI-VAL'!$C$66,1,((K58/K21)-'INI-VAL'!$E$66)/('INI-VAL'!$C$66-'INI-VAL'!$E$66))*0.1+Calculations!K54*0.1)>0.95,0.95,IF((IF(K91<0.05,1,(0.7-K91)/(0.7-0.05))/4+(SUM('Yearly Decision'!H88:L88)/K20)/4+(SUM('Yearly Decision'!H27:L27)/K22)/4+(SUM('Yearly Decision'!H26:L26)/K22)/4)*0.8+IF((K58/K21)>'INI-VAL'!$C$66,1,((K58/K21)-'INI-VAL'!$E$66)/('INI-VAL'!$C$66-'INI-VAL'!$E$66))*0.1+Calculations!K54*0.1<J88-0.05,J88-0.05,(IF(K91<0.05,1,(0.7-K91)/(0.7-0.05))/4+(SUM('Yearly Decision'!H88:L88)/K20)/4+(SUM('Yearly Decision'!H27:L27)/K22)/4+(SUM('Yearly Decision'!H26:L26)/K22)/4)*0.8+IF((K58/K21)>'INI-VAL'!$C$66,1,((K58/K21)-'INI-VAL'!$E$66)/('INI-VAL'!$C$66-'INI-VAL'!$E$66))*0.1+Calculations!K54*0.1))) -> 0.35 | L88: =IF(SUM('Yearly Decision'!M25:M27)=0,K88-0.05,IF(((IF(L91<0.05,1,(0.7-L91)/(0.7-0.05))/4+(SUM('Yearly Decision'!I88:M88)/L20)/4+(SUM('Yearly Decision'!I27:M27)/L22)/4+(SUM('Yearly Decision'!I26:M26)/L22)/4)*0.8+IF((L58/L21)>'INI-VAL'!$C$66,1,((L58/L21)-'INI-VAL'!$E$66)/('INI-VAL'!$C$66-'INI-VAL'!$E$66))*0.1+Calculations!L54*0.1)>0.95,0.95,IF((IF(L91<0.05,1,(0.7-L91)/(0.7-0.05))/4+(SUM('Yearly Decision'!I88:M88)/L20)/4+(SUM('Yearly Decision'!I27:M27)/L22)/4+(SUM('Yearly Decision'!I26:M26)/L22)/4)*0.8+IF((L58/L21)>'INI-VAL'!$C$66,1,((L58/L21)-'INI-VAL'!$E$66)/('INI-VAL'!$C$66-'INI-VAL'!$E$66))*0.1+Calculations!L54*0.1<K88-0.05,K88-0.05,(IF(L91<0.05,1,(0.7-L91)/(0.7-0.05))/4+(SUM('Yearly Decision'!I88:M88)/L20)/4+(SUM('Yearly Decision'!I27:M27)/L22)/4+(SUM('Yearly Decision'!I26:M26)/L22)/4)*0.8+IF((L58/L21)>'INI-VAL'!$C$66,1,((L58/L21)-'INI-VAL'!$E$66)/('INI-VAL'!$C$66-'INI-VAL'!$E$66))*0.1+Calculations!L54*0.1))) -> 0.3 | M88: =IF(SUM('Yearly Decision'!N25:N27)=0,L88-0.05,IF(((IF(M91<0.05,1,(0.7-M91)/(0.7-0.05))/4+(SUM('Yearly Decision'!J88:N88)/M20)/4+(SUM('Yearly Decision'!J27:N27)/M22)/4+(SUM('Yearly Decision'!J26:N26)/M22)/4)*0.8+IF((M58/M21)>'INI-VAL'!$C$66,1,((M58/M21)-'INI-VAL'!$E$66)/('INI-VAL'!$C$66-'INI-VAL'!$E$66))*0.1+Calculations!M54*0.1)>0.95,0.95,IF((IF(M91<0.05,1,(0.7-M91)/(0.7-0.05))/4+(SUM('Yearly Decision'!J88:N88)/M20)/4+(SUM('Yearly Decision'!J27:N27)/M22)/4+(SUM('Yearly Decision'!J26:N26)/M22)/4)*0.8+IF((M58/M21)>'INI-VAL'!$C$66,1,((M58/M21)-'INI-VAL'!$E$66)/('INI-VAL'!$C$66-'INI-VAL'!$E$66))*0.1+Calculations!M54*0.1<L88-0.05,L88-0.05,(IF(M91<0.05,1,(0.7-M91)/(0.7-0.05))/4+(SUM('Yearly Decision'!J88:N88)/M20)/4+(SUM('Yearly Decision'!J27:N27)/M22)/4+(SUM('Yearly Decision'!J26:N26)/M22)/4)*0.8+IF((M58/M21)>'INI-VAL'!$C$66,1,((M58/M21)-'INI-VAL'!$E$66)/('INI-VAL'!$C$66-'INI-VAL'!$E$66))*0.1+Calculations!M54*0.1))) -> 0.25 | N88: =IF(SUM('Yearly Decision'!O25:O27)=0,M88-0.05,IF(((IF(N91<0.05,1,(0.7-N91)/(0.7-0.05))/4+(SUM('Yearly Decision'!K88:O88)/N20)/4+(SUM('Yearly Decision'!K27:O27)/N22)/4+(SUM('Yearly Decision'!K26:O26)/N22)/4)*0.8+IF((N58/N21)>'INI-VAL'!$C$66,1,((N58/N21)-'INI-VAL'!$E$66)/('INI-VAL'!$C$66-'INI-VAL'!$E$66))*0.1+Calculations!N54*0.1)>0.95,0.95,IF((IF(N91<0.05,1,(0.7-N91)/(0.7-0.05))/4+(SUM('Yearly Decision'!K88:O88)/N20)/4+(SUM('Yearly Decision'!K27:O27)/N22)/4+(SUM('Yearly Decision'!K26:O26)/N22)/4)*0.8+IF((N58/N21)>'INI-VAL'!$C$66,1,((N58/N21)-'INI-VAL'!$E$66)/('INI-VAL'!$C$66-'INI-VAL'!$E$66))*0.1+Calculations!N54*0.1<M88-0.05,M88-0.05,(IF(N91<0.05,1,(0.7-N91)/(0.7-0.05))/4+(SUM('Yearly Decision'!K88:O88)/N20)/4+(SUM('Yearly Decision'!K27:O27)/N22)/4+(SUM('Yearly Decision'!K26:O26)/N22)/4)*0.8+IF((N58/N21)>'INI-VAL'!$C$66,1,((N58/N21)-'INI-VAL'!$E$66)/('INI-VAL'!$C$66-'INI-VAL'!$E$66))*0.1+Calculations!N54*0.1))) -> 0.2
B89: Continuity | C89: % | D89: =((-26.952*D91^2-10.555*D91+23.599)*0.7+(218.85*D19/D10+2.3279)*0.15+(-0.0006*D10+43.471)*0.15)/24*D24/D27+0.028 -> 0.7179377672 | E89: 0.6459565806 | F89: 0.6234777525 | G89: 0.6001025764 | H89: 0.5758310522 | I89: 0.5507290245 | J89: 0.524735251 | K89: 0.4978497319 | L89: 0.4699997279 | M89: 0.441253376 | N89: 0.8865532712
B90: Continuity | C90: Hours | D90: =D89*24 -> 17.23050641 | E90: =E89*24 -> 15.50295793 | F90: =F89*24 -> 14.96346606 | G90: 14.40246183 | H90: 13.81994525 | I90: 13.21749659 | J90: 12.59364602 | K90: 11.94839356 | L90: 11.27999347 | M90: 10.59008102 | N90: 21.27727851
B91: Physical Losses | C91: % | D91: ='INI-VAL'!$H$17 -> 0.3 | E91: =IF(IF((E92/E21)>1,1,(E92/E21))<0,0,(E92/E21)) -> 0.3910498116 | F91: 0.4149270687 | G91: 0.4388043259 | H91: 0.462681583 | I91: 0.4864974624 | J91: 0.5103133418 | K91: 0.5341292212 | L91: 0.5580064784 | M91: 0.5818837355 | N91: 0
B92: Physical Loss Volumen | C92: m3 | D92: =D91*D21 -> 10480902 | E92: =('Yearly Decision'!F36*0.2+'Yearly Decision'!F37)*8718*E93 -> 13661849.17 | F92: =('Yearly Decision'!G36*0.2+'Yearly Decision'!G37)*8718*F93 -> 14496033.15 | G92: =('Yearly Decision'!H36*0.2+'Yearly Decision'!H37)*8718*G93 -> 15330217.12 | H92: =('Yearly Decision'!I36*0.2+'Yearly Decision'!I37)*8718*H93 -> 16164401.1 | I92: =('Yearly Decision'!J36*0.2+'Yearly Decision'!J37)*8718*I93*'INI-VAL'!$D$15 -> 12747330.57 | J92: =('Yearly Decision'!K36*0.2+'Yearly Decision'!K37)*8718*J93*'INI-VAL'!$D$15 -> 13371360.31 | K92: =('Yearly Decision'!L36*0.2+'Yearly Decision'!L37)*8718*K93*'INI-VAL'!$D$15 -> 13995390.06 | L92: =('Yearly Decision'!M36*0.2+'Yearly Decision'!M37)*8718*L93 -> 19494704.05 | M92: =('Yearly Decision'!N36*0.2+'Yearly Decision'!N37)*8718*M93 -> 20328888.03 | N92: =('Yearly Decision'!O36*0.2+'Yearly Decision'!O37)*8718*N93 -> 0
B93: Physical Losses In-efficiency | C93: % | D93: ='INI-VAL'!H18 -> 1.4 | E93: =IF((D93+0.1-0.2*(E54*0.1+IF((SUM($E$62:$G$62)/Calculations!E58)>'INI-VAL'!$C$74,1,(SUM($E$62:$G$62)/Calculations!E58))*0.2+IF((SUM('Yearly Decision'!$F$25:$J$25)/E20)>1,1,(SUM('Yearly Decision'!$F$25:$J$25)))*0.7))<1,1,(D93+0.1-0.2*(E54*0.1+IF((SUM($E$62:$G$62)/Calculations!E58)>'INI-VAL'!$C$74,1,(SUM($E$62:$G$62)/Calculations!E58))*0.2+IF((SUM('Yearly Decision'!$F$25:$J$25)/E20)>1,1,(SUM('Yearly Decision'!$F$25:$J$25)))*0.7))) -> 1.491042099 | F93: =IF((E93+0.1-0.2*(F54*0.1+IF((SUM($E$62:$G$62)/Calculations!F58)>'INI-VAL'!$C$74,1,(SUM($E$62:$G$62)/Calculations!F58))*0.2+IF((SUM('Yearly Decision'!$F$25:$J$25)/F20)>1,1,(SUM('Yearly Decision'!$F$25:$J$25)))*0.7))<1,1,(E93+0.1-0.2*(F54*0.1+IF((SUM($E$62:$G$62)/Calculations!F58)>'INI-VAL'!$C$74,1,(SUM($E$62:$G$62)/Calculations!F58))*0.2+IF((SUM('Yearly Decision'!$F$25:$J$25)/F20)>1,1,(SUM('Yearly Decision'!$F$25:$J$25)))*0.7))) -> 1.582084198 | G93: =IF((F93+0.1-0.2*(G54*0.1+IF((SUM($E$62:$G$62)/Calculations!G58)>'INI-VAL'!$C$74,1,(SUM($E$62:$G$62)/Calculations!G58))*0.2+IF((SUM('Yearly Decision'!$F$25:$J$25)/G20)>1,1,(SUM('Yearly Decision'!$F$25:$J$25)))*0.7))<1,1,(F93+0.1-0.2*(G54*0.1+IF((SUM($E$62:$G$62)/Calculations!G58)>'INI-VAL'!$C$74,1,(SUM($E$62:$G$62)/Calculations!G58))*0.2+IF((SUM('Yearly Decision'!$F$25:$J$25)/G20)>1,1,(SUM('Yearly Decision'!$F$25:$J$25)))*0.7))) -> 1.673126297 | H93: =IF((G93+0.1-0.2*(H54*0.1+IF((SUM(E62:G62)/Calculations!H58)>'INI-VAL'!$C$74,1,(SUM(E62:G62)/Calculations!H58))*0.2+IF((SUM('Yearly Decision'!$F$25:$J$25)/H20)>1,1,(SUM('Yearly Decision'!$F$25:$J$25)))*0.7))<1,1,(G93+0.1-0.2*(H54*0.1+IF((SUM(E62:G62)/Calculations!H58)>'INI-VAL'!$C$74,1,(SUM(E62:G62)/Calculations!H58))*0.2+IF((SUM('Yearly Decision'!$F$25:$J$25)/H20)>1,1,(SUM('Yearly Decision'!$F$25:$J$25)))*0.7))) -> 1.764168396 | I93: =IF((H93+0.1-0.2*(I54*0.1+IF((SUM(F62:H62)/Calculations!I58)>'INI-VAL'!$C$74,1,(SUM(F62:H62)/Calculations!I58))*0.2+IF((SUM('Yearly Decision'!F25:J25)/I20)>1,1,(SUM('Yearly Decision'!F25:J25)))*0.7))<1,1,(H93+0.1-0.2*(I54*0.1+IF((SUM(F62:H62)/Calculations!I58)>'INI-VAL'!$C$74,1,(SUM(F62:H62)/Calculations!I58))*0.2+IF((SUM('Yearly Decision'!F25:J25)/I20)>1,1,(SUM('Yearly Decision'!F25:J25)))*0.7))) -> 1.854976466 | J93: =IF((I93+0.1-0.2*(J54*0.1+IF((SUM(G62:I62)/Calculations!J58)>'INI-VAL'!$C$74,1,(SUM(G62:I62)/Calculations!J58))*0.2+IF((SUM('Yearly Decision'!G25:K25)/J20)>1,1,(SUM('Yearly Decision'!G25:K25)))*0.7))<1,1,(I93+0.1-0.2*(J54*0.1+IF((SUM(G62:I62)/Calculations!J58)>'INI-VAL'!$C$74,1,(SUM(G62:I62)/Calculations!J58))*0.2+IF((SUM('Yearly Decision'!G25:K25)/J20)>1,1,(SUM('Yearly Decision'!G25:K25)))*0.7))) -> 1.945784536 | K93: =IF((J93+0.1-0.2*(K54*0.1+IF((SUM(H62:J62)/Calculations!K58)>'INI-VAL'!$C$74,1,(SUM(H62:J62)/Calculations!K58))*0.2+IF((SUM('Yearly Decision'!H25:L25)/K20)>1,1,(SUM('Yearly Decision'!H25:L25)))*0.7))<1,1,(J93+0.1-0.2*(K54*0.1+IF((SUM(H62:J62)/Calculations!K58)>'INI-VAL'!$C$74,1,(SUM(H62:J62)/Calculations!K58))*0.2+IF((SUM('Yearly Decision'!H25:L25)/K20)>1,1,(SUM('Yearly Decision'!H25:L25)))*0.7))) -> 2.036592607 | L93: =IF((K93+0.1-0.2*(L54*0.1+IF((SUM(I62:K62)/Calculations!L58)>'INI-VAL'!$C$74,1,(SUM(I62:K62)/Calculations!L58))*0.2+IF((SUM('Yearly Decision'!I25:M25)/L20)>1,1,(SUM('Yearly Decision'!I25:M25)))*0.7))<1,1,(K93+0.1-0.2*(L54*0.1+IF((SUM(I62:K62)/Calculations!L58)>'INI-VAL'!$C$74,1,(SUM(I62:K62)/Calculations!L58))*0.2+IF((SUM('Yearly Decision'!I25:M25)/L20)>1,1,(SUM('Yearly Decision'!I25:M25)))*0.7))) -> 2.127634706 | M93: =IF((L93+0.1-0.2*(M54*0.1+IF((SUM(J62:L62)/Calculations!M58)>'INI-VAL'!$C$74,1,(SUM(J62:L62)/Calculations!M58))*0.2+IF((SUM('Yearly Decision'!J25:N25)/M20)>1,1,(SUM('Yearly Decision'!J25:N25)))*0.7))<1,1,(L93+0.1-0.2*(M54*0.1+IF((SUM(J62:L62)/Calculations!M58)>'INI-VAL'!$C$74,1,(SUM(J62:L62)/Calculations!M58))*0.2+IF((SUM('Yearly Decision'!J25:N25)/M20)>1,1,(SUM('Yearly Decision'!J25:N25)))*0.7))) -> 2.218676804 | N93: =IF((M93+0.1-0.2*(N54*0.1+IF((SUM(K62:M62)/Calculations!N58)>'INI-VAL'!$C$74,1,(SUM(K62:M62)/Calculations!N58))*0.2+IF((SUM('Yearly Decision'!K25:O25)/N20)>1,1,(SUM('Yearly Decision'!K25:O25)))*0.7))<1,1,(M93+0.1-0.2*(N54*0.1+IF((SUM(K62:M62)/Calculations!N58)>'INI-VAL'!$C$74,1,(SUM(K62:M62)/Calculations!N58))*0.2+IF((SUM('Yearly Decision'!K25:O25)/N20)>1,1,(SUM('Yearly Decision'!K25:O25)))*0.7))) -> 2.309718903
B94: Comercial Losses | C94: % | D94: =IF(IF((D96+D97+D98)>1,1,(D96+D97+D98))<0,0,IF((D96+D97+D98)>1,1,(D96+D97+D98))) -> 0.1600009874 | E94: =IF(IF((E96+E97+E98)>1,1,(E96+E97+E98))<0,0,IF((E96+E97+E98)>1,1,(E96+E97+E98))) -> 0.164029503 | F94: 0.164029503 | G94: 0.164029503 | H94: 0.164029503 | I94: 0.164029503 | J94: 0.164029503 | K94: 0.164029503 | L94: 0.164029503 | M94: 0.164029503 | N94: 0.164029503
B95: Comercial Loss Volumen | C95: m3 | D95: =D21*D94 -> 5589848.895 | E95: 5730590.485 | F95: 5730590.485 | G95: 5730590.485 | H95: 5730590.485 | I95: 4297942.864 | J95: 4297942.864 | K95: 4297942.864 | L95: 5730590.485 | M95: 5730590.485 | N95: 5730590.485
B96: Illegal Connections | C96: % | D96: =D19/D10 -> 0.05000098738 | E96: 0.05402950295 | F96: 0.05402950295 | G96: 0.05402950295 | H96: 0.05402950295 | I96: 0.05402950295 | J96: 0.05402950295 | K96: 0.05402950295 | L96: 0.05402950295 | M96: 0.05402950295 | N96: 0.05402950295
B97: Meter Errors | C97: % | D97: =(D126*'INI-VAL'!$D$43+Calculations!D127*'INI-VAL'!$D$44+Calculations!D128*'INI-VAL'!$D$45)/Calculations!D13+IF(IF(SUM('Yearly Decision'!$F$28:$I$28)/SUM(Calculations!D126:D128)<=0.2,-(SUM('Yearly Decision'!$F$28:$I$28)/SUM(Calculations!D126:D128)-0.2),-SUM('Yearly Decision'!$F$28:$I$28)/SUM(Calculations!D126:D128))/10<-0.01,-0.01,IF(SUM('Yearly Decision'!$F$28:$I$28)/SUM(Calculations!D126:D128)<=0.2,-(SUM('Yearly Decision'!$F$28:$I$28)/SUM(Calculations!D126:D128)-0.2),-SUM('Yearly Decision'!$F$28:$I$28)/SUM(Calculations!D126:D128))/10) -> 0.1 | E97: =(E126*'INI-VAL'!$D$43+Calculations!E127*'INI-VAL'!$D$44+Calculations!E128*'INI-VAL'!$D$45)/Calculations!E13+IF(SUM('Yearly Decision'!$F$28:$I$28)/SUM(Calculations!E126:E128)<=0.2,-(SUM('Yearly Decision'!$F$28:$I$28)/SUM(Calculations!E126:E128)-0.2),-SUM('Yearly Decision'!$F$28:$I$28)/SUM(Calculations!E126:E128))/10 -> 0.1 | F97: =(F126*'INI-VAL'!$D$43+Calculations!F127*'INI-VAL'!$D$44+Calculations!F128*'INI-VAL'!$D$45)/Calculations!F13+IF(SUM('Yearly Decision'!$F$28:$I$28)/SUM(Calculations!F126:F128)<=0.2,-(SUM('Yearly Decision'!$F$28:$I$28)/SUM(Calculations!F126:F128)-0.2),-SUM('Yearly Decision'!$F$28:$I$28)/SUM(Calculations!F126:F128))/10 -> 0.1 | G97: =(G126*'INI-VAL'!$D$43+Calculations!G127*'INI-VAL'!$D$44+Calculations!G128*'INI-VAL'!$D$45)/Calculations!G13+IF(SUM('Yearly Decision'!$F$28:$I$28)/SUM(Calculations!G126:G128)<=0.2,-(SUM('Yearly Decision'!$F$28:$I$28)/SUM(Calculations!G126:G128)-0.2),-SUM('Yearly Decision'!$F$28:$I$28)/SUM(Calculations!G126:G128))/10 -> 0.1 | H97: =(H126*'INI-VAL'!$D$43+Calculations!H127*'INI-VAL'!$D$44+Calculations!H128*'INI-VAL'!$D$45)/Calculations!H13+IF(SUM('Yearly Decision'!F28:I28)/SUM(Calculations!H126:H128)<=0.2,-(SUM('Yearly Decision'!F28:I28)/SUM(Calculations!H126:H128)-0.2),-SUM('Yearly Decision'!F28:I28)/SUM(Calculations!H126:H128))/10 -> 0.1 | I97: =(I126*'INI-VAL'!$D$43+Calculations!I127*'INI-VAL'!$D$44+Calculations!I128*'INI-VAL'!$D$45)/Calculations!I13+IF(SUM('Yearly Decision'!G28:J28)/SUM(Calculations!I126:I128)<=0.2,-(SUM('Yearly Decision'!G28:J28)/SUM(Calculations!I126:I128)-0.2),-SUM('Yearly Decision'!G28:J28)/SUM(Calculations!I126:I128))/10 -> 0.1 | J97: =(J126*'INI-VAL'!$D$43+Calculations!J127*'INI-VAL'!$D$44+Calculations!J128*'INI-VAL'!$D$45)/Calculations!J13+IF(SUM('Yearly Decision'!H28:K28)/SUM(Calculations!J126:J128)<=0.2,-(SUM('Yearly Decision'!H28:K28)/SUM(Calculations!J126:J128)-0.2),-SUM('Yearly Decision'!H28:K28)/SUM(Calculations!J126:J128))/10 -> 0.1 | K97: =(K126*'INI-VAL'!$D$43+Calculations!K127*'INI-VAL'!$D$44+Calculations!K128*'INI-VAL'!$D$45)/Calculations!K13+IF(SUM('Yearly Decision'!I28:L28)/SUM(Calculations!K126:K128)<=0.2,-(SUM('Yearly Decision'!I28:L28)/SUM(Calculations!K126:K128)-0.2),-SUM('Yearly Decision'!I28:L28)/SUM(Calculations!K126:K128))/10 -> 0.1 | L97: =(L126*'INI-VAL'!$D$43+Calculations!L127*'INI-VAL'!$D$44+Calculations!L128*'INI-VAL'!$D$45)/Calculations!L13+IF(SUM('Yearly Decision'!J28:M28)/SUM(Calculations!L126:L128)<=0.2,-(SUM('Yearly Decision'!J28:M28)/SUM(Calculations!L126:L128)-0.2),-SUM('Yearly Decision'!J28:M28)/SUM(Calculations!L126:L128))/10 -> 0.1 | M97: =(M126*'INI-VAL'!$D$43+Calculations!M127*'INI-VAL'!$D$44+Calculations!M128*'INI-VAL'!$D$45)/Calculations!M13+IF(SUM('Yearly Decision'!K28:N28)/SUM(Calculations!M126:M128)<=0.2,-(SUM('Yearly Decision'!K28:N28)/SUM(Calculations!M126:M128)-0.2),-SUM('Yearly Decision'!K28:N28)/SUM(Calculations!M126:M128))/10 -> 0.1 | N97: =(N126*'INI-VAL'!$D$43+Calculations!N127*'INI-VAL'!$D$44+Calculations!N128*'INI-VAL'!$D$45)/Calculations!N13+IF(SUM('Yearly Decision'!L28:O28)/SUM(Calculations!N126:N128)<=0.2,-(SUM('Yearly Decision'!L28:O28)/SUM(Calculations!N126:N128)-0.2),-SUM('Yearly Decision'!L28:O28)/SUM(Calculations!N126:N128))/10 -> 0.1
B98: Own Use | C98: % | D98: ='INI-VAL'!$H$24 -> 0.01 | E98: ='INI-VAL'!$H$24 -> 0.01 | F98: ='INI-VAL'!$H$24 -> 0.01 | G98: ='INI-VAL'!$H$24 -> 0.01 | H98: ='INI-VAL'!$H$24 -> 0.01 | I98: ='INI-VAL'!$H$24 -> 0.01 | J98: ='INI-VAL'!$H$24 -> 0.01 | K98: ='INI-VAL'!$H$24 -> 0.01 | L98: ='INI-VAL'!$H$24 -> 0.01 | M98: ='INI-VAL'!$H$24 -> 0.01 | N98: ='INI-VAL'!$H$24 -> 0.01
B99: Coverage | C99: % | D99: =IF((D18/D17)>1,1,D18/D17) -> 0.7858410793 | E99: 0.7719461124 | F99: 0.7582968194 | G99: 0.7448890422 | H99: 0.7317181123 | I99: 0.7187801724 | J99: 0.7060708739 | K99: 0.6935860405 | L99: 0.6813222018 | M99: 0.6692754251 | N99: 0.6574414029
B100: Willingness to Connect | C100: % | D100: =IF(0.7+(0.03*(D101+2*D102)/3)<0.2,0.2,IF(0.7+(0.03*(D101+2*D102)/3)>0.99,0.99,0.7+(0.03*(D101+2*D102)/3))) -> 0.85 | E100: =IF(0.7+(0.03*(E101+2*E102)/3)<0.2,0.2,IF(0.7+(0.03*(E101+2*E102)/3)>0.99,0.99,0.7+(0.03*(E101+2*E102)/3))) -> 0.845 | F100: 0.84 | G100: 0.835 | H100: 0.83 | I100: 0.825 | J100: 0.82 | K100: 0.815 | L100: 0.81 | M100: 0.805 | N100: 0.8
B101: Awareness (1-10) | C101: Unit | D101: ='INI-VAL'!H53 -> 7 | E101: =IF(IF('Yearly Decision'!F34>0,Calculations!D101+'Yearly Decision'!F34,Calculations!D101-0.5)>=10,10,IF('Yearly Decision'!F34>0,Calculations!D101+'Yearly Decision'!F34,Calculations!D101-0.5)) -> 6.5 | F101: =IF(IF('Yearly Decision'!G34>0,Calculations!E101+'Yearly Decision'!G34,Calculations!E101-0.5)>=10,10,IF('Yearly Decision'!G34>0,Calculations!E101+'Yearly Decision'!G34,Calculations!E101-0.5)) -> 6 | G101: =IF(IF('Yearly Decision'!H34>0,Calculations!F101+'Yearly Decision'!H34,Calculations!F101-0.5)>=10,10,IF('Yearly Decision'!H34>0,Calculations!F101+'Yearly Decision'!H34,Calculations!F101-0.5)) -> 5.5 | H101: =IF(IF('Yearly Decision'!I34>0,Calculations!G101+'Yearly Decision'!I34,Calculations!G101-0.5)>=10,10,IF('Yearly Decision'!I34>0,Calculations!G101+'Yearly Decision'!I34,Calculations!G101-0.5)) -> 5 | I101: =IF(IF('Yearly Decision'!J34>0,Calculations!H101+'Yearly Decision'!J34,Calculations!H101-0.5)>=10,10,IF('Yearly Decision'!J34>0,Calculations!H101+'Yearly Decision'!J34,Calculations!H101-0.5)) -> 4.5 | J101: =IF(IF('Yearly Decision'!K34>0,Calculations!I101+'Yearly Decision'!K34,Calculations!I101-0.5)>=10,10,IF('Yearly Decision'!K34>0,Calculations!I101+'Yearly Decision'!K34,Calculations!I101-0.5)) -> 4 | K101: =IF(IF('Yearly Decision'!L34>0,Calculations!J101+'Yearly Decision'!L34,Calculations!J101-0.5)>=10,10,IF('Yearly Decision'!L34>0,Calculations!J101+'Yearly Decision'!L34,Calculations!J101-0.5)) -> 3.5 | L101: =IF(IF('Yearly Decision'!M34>0,Calculations!K101+'Yearly Decision'!M34,Calculations!K101-0.5)>=10,10,IF('Yearly Decision'!M34>0,Calculations!K101+'Yearly Decision'!M34,Calculations!K101-0.5)) -> 3 | M101: =IF(IF('Yearly Decision'!N34>0,Calculations!L101+'Yearly Decision'!N34,Calculations!L101-0.5)>=10,10,IF('Yearly Decision'!N34>0,Calculations!L101+'Yearly Decision'!N34,Calculations!L101-0.5)) -> 2.5 | N101: =IF(IF('Yearly Decision'!O34>0,Calculations!M101+'Yearly Decision'!O34,Calculations!M101-0.5)>=10,10,IF('Yearly Decision'!O34>0,Calculations!M101+'Yearly Decision'!O34,Calculations!M101-0.5)) -> 2
B102: Subsidy impact | C102: Unit | D102: =D3*10 -> 4 | E102: 4 | F102: 4 | G102: 4 | H102: 4 | I102: 4 | J102: 4 | K102: 4 | L102: 4 | M102: 4 | N102: 4
B104: Total Demand | C104: m3 | D104: =D105+D112+D113 -> 34941616.82 | E104: =E105+E112+E113 -> 38263305.58 | F104: 39097489.55 | G104: 39931673.53 | H104: 40765857.5 | I104: 35916139.35 | J104: 36540169.1 | K104: 37164198.84 | L104: 44096160.46 | M104: 44930344.43 | N104: 24601456.41
B105: Demand Consumers | C105: m3 | D105: =('INI-VAL'!$H$30*Calculations!D13*12)+('INI-VAL'!$H$31*Calculations!D11*12)+('INI-VAL'!$H$32*Calculations!D14*12) -> 18870865.92 | E105: =('INI-VAL'!$H$30*Calculations!E13*12)+('INI-VAL'!$H$31*Calculations!E11*12)+('INI-VAL'!$H$32*Calculations!E14*12) -> 18870865.92 | F105: =('INI-VAL'!$H$30*Calculations!F13*12)+('INI-VAL'!$H$31*Calculations!F11*12)+('INI-VAL'!$H$32*Calculations!F14*12) -> 18870865.92 | G105: =('INI-VAL'!$H$30*Calculations!G13*12)+('INI-VAL'!$H$31*Calculations!G11*12)+('INI-VAL'!$H$32*Calculations!G14*12) -> 18870865.92 | H105: =('INI-VAL'!$H$30*Calculations!H13*12)+('INI-VAL'!$H$31*Calculations!H11*12)+('INI-VAL'!$H$32*Calculations!H14*12) -> 18870865.92 | I105: =('INI-VAL'!$H$30*Calculations!I13*12)+('INI-VAL'!$H$31*Calculations!I11*12)+('INI-VAL'!$H$32*Calculations!I14*12) -> 18870865.92 | J105: =('INI-VAL'!$H$30*Calculations!J13*12)+('INI-VAL'!$H$31*Calculations!J11*12)+('INI-VAL'!$H$32*Calculations!J14*12) -> 18870865.92 | K105: =('INI-VAL'!$H$30*Calculations!K13*12)+('INI-VAL'!$H$31*Calculations!K11*12)+('INI-VAL'!$H$32*Calculations!K14*12) -> 18870865.92 | L105: =('INI-VAL'!$H$30*Calculations!L13*12)+('INI-VAL'!$H$31*Calculations!L11*12)+('INI-VAL'!$H$32*Calculations!L14*12) -> 18870865.92 | M105: =('INI-VAL'!$H$30*Calculations!M13*12)+('INI-VAL'!$H$31*Calculations!M11*12)+('INI-VAL'!$H$32*Calculations!M14*12) -> 18870865.92 | N105: =('INI-VAL'!$H$30*Calculations!N13*12)+('INI-VAL'!$H$31*Calculations!N11*12)+('INI-VAL'!$H$32*Calculations!N14*12) -> 18870865.92
B106: In-house connections Demand | C106: m3 | D106: =(D13*'INI-VAL'!$H$30+D14*'INI-VAL'!$H$32)*12 -> 16646562.72 | E106: =(E13*'INI-VAL'!$H$30+E14*'INI-VAL'!$H$32)*12 -> 16646562.72 | F106: =(F13*'INI-VAL'!$H$30+F14*'INI-VAL'!$H$32)*12 -> 16646562.72 | G106: =(G13*'INI-VAL'!$H$30+G14*'INI-VAL'!$H$32)*12 -> 16646562.72 | H106: =(H13*'INI-VAL'!$H$30+H14*'INI-VAL'!$H$32)*12 -> 16646562.72 | I106: =(I13*'INI-VAL'!$H$30+I14*'INI-VAL'!$H$32)*12 -> 16646562.72 | J106: =(J13*'INI-VAL'!$H$30+J14*'INI-VAL'!$H$32)*12 -> 16646562.72 | K106: =(K13*'INI-VAL'!$H$30+K14*'INI-VAL'!$H$32)*12 -> 16646562.72 | L106: =(L13*'INI-VAL'!$H$30+L14*'INI-VAL'!$H$32)*12 -> 16646562.72 | M106: =(M13*'INI-VAL'!$H$30+M14*'INI-VAL'!$H$32)*12 -> 16646562.72 | N106: =(N13*'INI-VAL'!$H$30+N14*'INI-VAL'!$H$32)*12 -> 16646562.72
B107: In-house connections Demand | C107: % | D107: =D106/(D106+D109) -> 0.8821303055 | E107: 0.8821303055 | F107: 0.8821303055 | G107: 0.8821303055 | H107: 0.8821303055 | I107: =I106/(I106+I109) -> 0.8821303055 | J107: 0.8821303055 | K107: 0.8821303055 | L107: 0.8821303055 | M107: 0.8821303055 | N107: 0.8821303055
B108: Liters per capita per day In-house | C108: lcd | D108: =D106/(D10*'INI-VAL'!$H$54)*(1000/365) -> 112.5787959 | E108: =E106/(E10*'INI-VAL'!$H$54)*(1000/365) -> 112.5787959 | F108: =F106/(F10*'INI-VAL'!$H$54)*(1000/365) -> 112.5787959 | G108: =G106/(G10*'INI-VAL'!$H$54)*(1000/365) -> 112.5787959 | H108: =H106/(H10*'INI-VAL'!$H$54)*(1000/365) -> 112.5787959 | I108: =I106/(I10*'INI-VAL'!$H$54)*(1000/365) -> 112.5787959 | J108: =J106/(J10*'INI-VAL'!$H$54)*(1000/365) -> 112.5787959 | K108: =K106/(K10*'INI-VAL'!$H$54)*(1000/365) -> 112.5787959 | L108: =L106/(L10*'INI-VAL'!$H$54)*(1000/365) -> 112.5787959 | M108: =M106/(M10*'INI-VAL'!$H$54)*(1000/365) -> 112.5787959 | N108: =N106/(N10*'INI-VAL'!$H$54)*(1000/365) -> 112.5787959
B109: Water Kiosks Demand | C109: m3 | D109: =(D11*'INI-VAL'!$H$31*12) -> 2224303.2 | E109: =(E11*'INI-VAL'!$H$31*12) -> 2224303.2 | F109: =(F11*'INI-VAL'!$H$31*12) -> 2224303.2 | G109: =(G11*'INI-VAL'!$H$31*12) -> 2224303.2 | H109: =(H11*'INI-VAL'!$H$31*12) -> 2224303.2 | I109: =(I11*'INI-VAL'!$H$31*12) -> 2224303.2 | J109: =(J11*'INI-VAL'!$H$31*12) -> 2224303.2 | K109: =(K11*'INI-VAL'!$H$31*12) -> 2224303.2 | L109: =(L11*'INI-VAL'!$H$31*12) -> 2224303.2 | M109: =(M11*'INI-VAL'!$H$31*12) -> 2224303.2 | N109: =(N11*'INI-VAL'!$H$31*12) -> 2224303.2
B110: Water Kiosks Demand | C110: % | D110: =1-D107 -> 0.1178696945 | E110: 0.1178696945 | F110: 0.1178696945 | G110: =1-G107 -> 0.1178696945 | H110: =1-H107 -> 0.1178696945 | I110: 0.1178696945 | J110: 0.1178696945 | K110: 0.1178696945 | L110: 0.1178696945 | M110: 0.1178696945 | N110: 0.1178696945
B111: Liters per capita per day PSP | C111: lcd | D111: =D109/(D11*'INI-VAL'!$H$31)*(1000/365) -> 32.87671233 | E111: =E109/(E11*'INI-VAL'!$H$31)*(1000/365) -> 32.87671233 | F111: =F109/(F11*'INI-VAL'!$H$31)*(1000/365) -> 32.87671233 | G111: =G109/(G11*'INI-VAL'!$H$31)*(1000/365) -> 32.87671233 | H111: =H109/(H11*'INI-VAL'!$H$31)*(1000/365) -> 32.87671233 | I111: =I109/(I11*'INI-VAL'!$H$31)*(1000/365) -> 32.87671233 | J111: =J109/(J11*'INI-VAL'!$H$31)*(1000/365) -> 32.87671233 | K111: =K109/(K11*'INI-VAL'!$H$31)*(1000/365) -> 32.87671233 | L111: =L109/(L11*'INI-VAL'!$H$31)*(1000/365) -> 32.87671233 | M111: =M109/(M11*'INI-VAL'!$H$31)*(1000/365) -> 32.87671233 | N111: =N109/(N11*'INI-VAL'!$H$31)*(1000/365) -> 32.87671233
B112: Demand NRW Physical | C112: m3 | D112: =D92 -> 10480902 | E112: =E92 -> 13661849.17 | F112: 14496033.15 | G112: 15330217.12 | H112: 16164401.1 | I112: 12747330.57 | J112: 13371360.31 | K112: 13995390.06 | L112: 19494704.05 | M112: 20328888.03 | N112: 0
B113: Demand NRW Commercial | C113: m3 | D113: =D95 -> 5589848.895 | E113: =E95 -> 5730590.485 | F113: 5730590.485 | G113: 5730590.485 | H113: 5730590.485 | I113: 4297942.864 | J113: 4297942.864 | K113: 4297942.864 | L113: 5730590.485 | M113: 5730590.485 | N113: 5730590.485
B115: Total Supplied (after NRW) | C115: m3 | D115: =D24 -> 18865589.1 | E115: 15543900.34 | F115: 14709716.37 | G115: 13875532.39 | H115: 13041348.42 | I115: 9156981.569 | J115: 8532951.824 | K115: 7908922.079 | L115: 9711045.464 | M115: 8876861.49 | N115: 29205749.51
B116: Supplied to In-house Connections | C116: % | D116: =D107 -> 0.8821303055 | E116: =E107 -> 0.8821303055 | F116: 0.8821303055 | G116: 0.8821303055 | H116: 0.8821303055 | I116: ='Yearly Decision'!J39 -> 0.88 | J116: ='Yearly Decision'!K39 -> 0.88 | K116: ='Yearly Decision'!L39 -> 0.88 | L116: =L107 -> 0.8821303055 | M116: =M107 -> 0.8821303055 | N116: 0.8821303055
B117: Supplied to In-house Connections | C117: m3 | D117: =D115*D116 -> 16641907.88 | E117: 13711745.56 | F117: 12975886.59 | G117: 12240027.63 | H117: 11504168.66 | I117: =I115*I116 -> 8058143.78 | J117: =J115*J116 -> 7508997.605 | K117: 6959851.429 | L117: =L115*L116 -> 8566407.502 | M117: =M115*M116 -> 7830548.538 | N117: =N115*N116 -> 25763276.74
B118: Liters per capita per day In-house | C118: lcd | D118: =D117/(D10*'INI-VAL'!$H$54)*(1000/365) -> 112.5473157 | E118: =E117/(E10*'INI-VAL'!$H$54)*(1000/365) -> 92.73096374 | F118: =F117/(F10*'INI-VAL'!$H$54)*(1000/365) -> 87.7544339 | G118: =G117/(G10*'INI-VAL'!$H$54)*(1000/365) -> 82.77790406 | H118: =H117/(H10*'INI-VAL'!$H$54)*(1000/365) -> 77.80137422 | I118: =I117/(I10*'INI-VAL'!$H$54)*(1000/365) -> 54.49630287 | J118: =J117/(J10*'INI-VAL'!$H$54)*(1000/365) -> 50.78249022 | K118: =K117/(K10*'INI-VAL'!$H$54)*(1000/365) -> 47.06867757 | L118: =L117/(L10*'INI-VAL'!$H$54)*(1000/365) -> 57.93363217 | M118: =M117/(M10*'INI-VAL'!$H$54)*(1000/365) -> 52.95710233 | N118: =N117/(N10*'INI-VAL'!$H$54)*(1000/365) -> 174.234088
B119: Supplied to Water Kiosks | C119: % | D119: =1-D116 -> 0.1178696945 | E119: 0.1178696945 | F119: 0.1178696945 | G119: 0.1178696945 | H119: 0.1178696945 | I119: =1-I116 -> 0.12 | J119: =1-J116 -> 0.12 | K119: 0.12 | L119: =1-L116 -> 0.1178696945 | M119: 0.1178696945 | N119: 0.1178696945
B120: Supplied to Water Kiosks | C120: m3 | D120: =D119*D115 -> 2223681.223 | E120: 1832154.784 | F120: 1733829.774 | G120: 1635504.763 | H120: 1537179.753 | I120: =I119*I115 -> 1098837.788 | J120: =J119*J115 -> 1023954.219 | K120: 949070.6494 | L120: =L119*L115 -> 1144637.962 | M120: =M119*M115 -> 1046312.951 | N120: =N119*N115 -> 3442472.772
B121: Liters per capita per day Water Kiosks | C121: lcd | D121: =D120/(D11*'INI-VAL'!$H$31)*(1000/365) -> 32.86751909 | E121: =E120/(E11*'INI-VAL'!$H$31)*(1000/365) -> 27.08049234 | F121: =F120/(F11*'INI-VAL'!$H$31)*(1000/365) -> 25.62718189 | G121: =G120/(G11*'INI-VAL'!$H$31)*(1000/365) -> 24.17387145 | H121: =H120/(H11*'INI-VAL'!$H$31)*(1000/365) -> 22.720561 | I121: =I120/(I11*'INI-VAL'!$H$31)*(1000/365) -> 16.24156898 | J121: =J120/(J11*'INI-VAL'!$H$31)*(1000/365) -> 15.13473896 | K121: =K120/(K11*'INI-VAL'!$H$31)*(1000/365) -> 14.02790893 | L121: =L120/(L11*'INI-VAL'!$H$31)*(1000/365) -> 16.91852666 | M121: =M120/(M11*'INI-VAL'!$H$31)*(1000/365) -> 15.46521621 | N121: =N120/(N11*'INI-VAL'!$H$31)*(1000/365) -> 50.88208613
B123: Consumer Demand Deficit | C123: m3 | D123: =D105-D115 -> 5276.815488 | E123: =E105-E115 -> 3326965.579 | F123: 4161149.553 | G123: 4995333.528 | H123: 5829517.502 | I123: 9713884.351 | J123: 10337914.1 | K123: 10961943.84 | L123: 9159820.456 | M123: 9994004.43 | N123: -10334883.59
B125: Meters | D125: =D13 -> 16711 | E125: 16711 | F125: 16711 | G125: 16711 | H125: 16711 | I125: 16711 | J125: 16711 | K125: 16711 | L125: 16711 | M125: 16711 | N125: 16711
B126: A | C126: unit | D126: ='Yearly Decision'!E15 -> 0 | E126: =D126+'Yearly Decision'!F15 -> 0 | F126: =E126+'Yearly Decision'!G15 -> 0 | G126: =F126+'Yearly Decision'!H15 -> 0 | H126: =G126+'Yearly Decision'!I15 -> 0 | I126: =H126+'Yearly Decision'!J15 -> 0 | J126: =I126+'Yearly Decision'!K15 -> 0 | K126: =J126+'Yearly Decision'!L15 -> 0 | L126: =K126+'Yearly Decision'!M15 -> 0 | M126: =L126+'Yearly Decision'!N15 -> 0 | N126: =M126+'Yearly Decision'!O15 -> 0
B127: B | C127: unit | D127: ='Yearly Decision'!E16 -> 0 | E127: =D127+'Yearly Decision'!F16 -> 0 | F127: =E127+'Yearly Decision'!G16 -> 0 | G127: =F127+'Yearly Decision'!H16 -> 0 | H127: =G127+'Yearly Decision'!I16 -> 0 | I127: =H127+'Yearly Decision'!J16 -> 0 | J127: =I127+'Yearly Decision'!K16 -> 0 | K127: =J127+'Yearly Decision'!L16 -> 0 | L127: =K127+'Yearly Decision'!M16 -> 0 | M127: =L127+'Yearly Decision'!N16 -> 0 | N127: =M127+'Yearly Decision'!O16 -> 0
B128: C | C128: unit | D128: ='Yearly Decision'!E17 -> 16711 | E128: =IF(IF(E125>E10, D128-(E125-E10), D128+'Yearly Decision'!F17)<0,0,IF(E125>E10, D128-(E125-E10), D128+'Yearly Decision'!F17)) -> 16711 | F128: =IF(IF(F125>F10, E128-(F125-F10), E128+'Yearly Decision'!G17)<0,0,IF(F125>F10, E128-(F125-F10), E128+'Yearly Decision'!G17)) -> 16711 | G128: =IF(IF(G125>G10, F128-(G125-G10), F128+'Yearly Decision'!H17)<0,0,IF(G125>G10, F128-(G125-G10), F128+'Yearly Decision'!H17)) -> 16711 | H128: =IF(IF(H125>H10, G128-(H125-H10), G128+'Yearly Decision'!I17)<0,0,IF(H125>H10, G128-(H125-H10), G128+'Yearly Decision'!I17)) -> 16711 | I128: =IF(IF(I125>I10, H128-(I125-I10), H128+'Yearly Decision'!J17)<0,0,IF(I125>I10, H128-(I125-I10), H128+'Yearly Decision'!J17)) -> 16711 | J128: =IF(IF(J125>J10, I128-(J125-J10), I128+'Yearly Decision'!K17)<0,0,IF(J125>J10, I128-(J125-J10), I128+'Yearly Decision'!K17)) -> 16711 | K128: =IF(IF(K125>K10, J128-(K125-K10), J128+'Yearly Decision'!L17)<0,0,IF(K125>K10, J128-(K125-K10), J128+'Yearly Decision'!L17)) -> 16711 | L128: =IF(IF(L125>L10, K128-(L125-L10), K128+'Yearly Decision'!M17)<0,0,IF(L125>L10, K128-(L125-L10), K128+'Yearly Decision'!M17)) -> 16711 | M128: =IF(IF(M125>M10, L128-(M125-M10), L128+'Yearly Decision'!N17)<0,0,IF(M125>M10, L128-(M125-M10), L128+'Yearly Decision'!N17)) -> 16711 | N128: =IF(IF(N125>N10, M128-(N125-N10), M128+'Yearly Decision'!O17)<0,0,IF(N125>N10, M128-(N125-N10), M128+'Yearly Decision'!O17)) -> 16711
B132: SOP | C132: Unit | D132: 1 | E132: 2 | F132: =E132*2 -> 4 | G132: 8 | H132: 16 | I132: 32 | J132: 20
B133: Investment in SOP | C133: Value | D133: =D132*'Yearly Costs'!$D$31 -> 10000 | E133: =E132*'Yearly Costs'!$D$31 -> 20000 | F133: =F132*'Yearly Costs'!$D$31 -> 40000 | G133: =G132*'Yearly Costs'!$D$31 -> 80000 | H133: =H132*'Yearly Costs'!$D$31 -> 160000 | I133: =I132*'Yearly Costs'!$D$31 -> 320000 | J133: =J132*'Yearly Costs'!$D$31 -> 200000 | K133: =K132*'Yearly Costs'!$D$31 -> 0 | L133: =L132*'Yearly Costs'!$D$31 -> 0 | M133: =M132*'Yearly Costs'!$D$31 -> 0 | N133: =N132*'Yearly Costs'!$D$31 -> 0
B134: Trainees Total | C134: Unit | D134: =D136+D138 -> 2 | E134: =E136+E138 -> 8 | F134: 16 | G134: 32 | H134: 64 | I134: 128 | J134: 55 | K134: 0 | L134: 0 | M134: 0 | N134: 0
B135: Trainees Investment Total | C135: Value | D135: =D137+D139 -> 1750 | E135: =E137+E139 -> 7000 | F135: 14000 | G135: 28000 | H135: 56000 | I135: 112000 | J135: 48750 | K135: 0 | L135: 0 | M135: 0 | N135: 0
B136: Trainees Leakage | C136: Unit | D136: 1 | E136: 4 | F136: =E136*2 -> 8 | G136: 16 | H136: 32 | I136: 64 | J136: 25
B137: Investment Trainees L | C137: Value | D137: =Calculations!D136*'Yearly Costs'!$D$28 -> 750 | E137: =Calculations!E136*'Yearly Costs'!$D$28 -> 3000 | F137: =Calculations!F136*'Yearly Costs'!$D$28 -> 6000 | G137: =Calculations!G136*'Yearly Costs'!$D$28 -> 12000 | H137: =Calculations!H136*'Yearly Costs'!$D$28 -> 24000 | I137: =Calculations!I136*'Yearly Costs'!$D$28 -> 48000 | J137: =Calculations!J136*'Yearly Costs'!$D$28 -> 18750 | K137: =Calculations!K136*'Yearly Costs'!$D$28 -> 0 | L137: =Calculations!L136*'Yearly Costs'!$D$28 -> 0 | M137: =Calculations!M136*'Yearly Costs'!$D$28 -> 0 | N137: =Calculations!N136*'Yearly Costs'!$D$28 -> 0
B138: Trainees Costumer Management | C138: Unit | D138: 1 | E138: 4 | F138: =E138*2 -> 8 | G138: 16 | H138: 32 | I138: 64 | J138: 30
B139: Investment Trainees CM | C139: Value | D139: =D138*'Yearly Costs'!$D$29 -> 1000 | E139: =E138*'Yearly Costs'!$D$29 -> 4000 | F139: =F138*'Yearly Costs'!$D$29 -> 8000 | G139: =G138*'Yearly Costs'!$D$29 -> 16000 | H139: =H138*'Yearly Costs'!$D$29 -> 32000 | I139: =I138*'Yearly Costs'!$D$29 -> 64000 | J139: =J138*'Yearly Costs'!$D$29 -> 30000 | K139: =K138*'Yearly Costs'!$D$29 -> 0 | L139: =L138*'Yearly Costs'!$D$29 -> 0 | M139: =M138*'Yearly Costs'!$D$29 -> 0 | N139: =N138*'Yearly Costs'!$D$29 -> 0
B140: H&S | C140: Unit | D140: 1 | E140: 2 | F140: =E140*2 -> 4 | G140: 8 | H140: 16 | I140: 32 | J140: 10
B141: H&S investment | C141: Value | D141: =D140*'Yearly Costs'!$D$30 -> 5000 | E141: =E140*'Yearly Costs'!$D$30 -> 10000 | F141: =F140*'Yearly Costs'!$D$30 -> 20000 | G141: =G140*'Yearly Costs'!$D$30 -> 40000 | H141: =H140*'Yearly Costs'!$D$30 -> 80000 | I141: =I140*'Yearly Costs'!$D$30 -> 160000 | J141: =J140*'Yearly Costs'!$D$30 -> 50000 | K141: =K140*'Yearly Costs'!$D$30 -> 0 | L141: =L140*'Yearly Costs'!$D$30 -> 0 | M141: =M140*'Yearly Costs'!$D$30 -> 0 | N141: =N140*'Yearly Costs'!$D$30 -> 0
B142: Bill Collectors | C142: Unit | D142: 1 | E142: 2 | F142: =E142*2 -> 4 | G142: 8 | H142: 16 | I142: 32 | J142: 8 | K142: 8 | L142: 8 | M142: 8 | N142: 8
B143: Network Rehab | C143: Value | D143: =D144*'Yearly Costs'!$D$23 -> 20000 | E143: =E144*'Yearly Costs'!$D$23 -> 40000 | F143: =F144*'Yearly Costs'!$D$23 -> 80000 | G143: =G144*'Yearly Costs'!$D$23 -> 160000 | H143: =H144*'Yearly Costs'!$D$23 -> 320000 | I143: =I144*'Yearly Costs'!$D$23 -> 640000 | J143: =J144*'Yearly Costs'!$D$23 -> 1280000 | K143: =K144*'Yearly Costs'!$D$23 -> 0 | L143: =L144*'Yearly Costs'!$D$23 -> 0 | M143: =M144*'Yearly Costs'!$D$23 -> 0 | N143: =N144*'Yearly Costs'!$D$23 -> 0
B144: Network Rehab | C144: Unit | D144: 1 | E144: =D144*2 -> 2 | F144: =E144*2 -> 4 | G144: 8 | H144: 16 | I144: 32 | J144: 64

Sheet Bench2 (hidden)
N7: 0
N15: 0
A44: 44 | B44: Utility Efficiency

Sheet Bench3 (hidden)
N7: 0
N15: 0
A44: 44 | B44: Utility Efficiency

Sheet Bench4 (hidden)
N7: 0
N15: 0
A44: 44 | B44: Utility Efficiency
